Workbook

Sheet Bierzów
A1: Miejscowość | B1: Nr posesji | C1: Liczba Mieszkańców | D1: Zadeklarowane pojemniki na odpady zmieszane | G1: kompostownik | H1: Zapotrzebowanie na pojemniki | K1: Uwagi
H2: odpady zmieszane | J2: szkło
D3: 110 l. | E3: 120 l. | F3: 240 l. | H3: 120 l. | I3: 240 l. | J3: 120 l.
A4: Bierzów | B4: 2 | C4: 4 | D4: - | E4: 1 | F4: - | G4: nie | H4: 1 | I4: - | J4: 1
A5: Bierzów | B5: 3 | C5: 2 | D5: - | E5: - | F5: 1 | G5: nie | H5: - | I5: - | J5: 1
A6: Bierzów | B6: 4 | C6: 2 | D6: - | E6: 1 | F6: - | G6: tak | H6: 1 | I6: - | J6: 1
A7: Bierzów | B7: 5 | C7: 8 | D7: - | E7: 4 | F7: - | G7: tak | H7: - | I7: - | J7: 1
A8: Bierzów | B8: 6 | C8: 6 | D8: - | E8: - | F8: 1 | G8: tak | H8: 1 | I8: - | J8: 1
A9: Bierzów | B9: 8 | C9: 2 | D9: - | E9: - | F9: 1 | G9: nie | H9: - | I9: - | J9: 1
A10: Bierzów | B10: 9 | C10: 2 | D10: - | E10: 1 | F10: - | G10: tak | H10: - | I10: - | J10: 1
A11: Bierzów | B11: 9 | C11: 2 | D11: - | E11: 1 | F11: - | G11: tak | H11: - | I11: - | J11: 1
A12: Bierzów | B12: 11 | C12: 5 | D12: - | E12: 1 | F12: - | G12: tak | H12: 1 | I12: - | J12: 1
A13: Bierzów | B13: 11 | C13: 2 | D13: - | E13: 1 | F13: - | G13: nie | H13: - | I13: - | J13: 1
A14: Bierzów | B14: 13 | C14: 5 | D14: - | E14: - | F14: 1 | G14: nie | H14: 1 | I14: - | J14: 1
A15: Bierzów | B15: 14 | C15: 4 | D15: - | E15: 1 | F15: - | G15: tak | H15: 1 | I15: - | J15: 1
A16: Bierzów | B16: 15 | C16: 6 | D16: - | E16: - | F16: 1 | G16: nie | H16: 1 | I16: - | J16: 1 | K16: osobne gospodarstwo
A17: Bierzów | B17: 15 | C17: 3 | D17: - | E17: - | F17: 1 | G17: nie | H17: - | I17: - | J17: 1 | K17: osobne gospodarstwo
A18: Bierzów | B18: 16 | C18: 3 | D18: - | E18: 1 | F18: - | G18: tak | H18: 1 | I18: - | J18: 1
A19: Bierzów | B19: 18 | C19: 5 | E19: 1 | F19: 1 | G19: nie | H19: - | I19: - | J19: 1
A20: Bierzów | B20: 19 | C20: 1 | D20: - | E20: - | F20: - | G20: nie | H20: 1 | I20: - | J20: 1
A21: Bierzów | B21: 19 | C21: 3 | D21: - | E21: 1 | F21: - | G21: nie | H21: 1 | I21: - | J21: 1
A22: Bierzów | B22: 20 | C22: 4 | D22: - | E22: 1 | F22: - | G22: tak | H22: 1 | I22: - | J22: 1
A23: Bierzów | B23: 22a | C23: 4 | D23: - | E23: - | F23: - | G23: tak | H23: - | I23: 1 | J23: 1
A24: Bierzów | B24: 22b | C24: 2 | D24: - | E24: - | F24: 1 | G24: nie | H24: - | I24: - | J24: 1
A25: Bierzów | B25: 22c | C25: 4 | D25: - | E25: - | F25: - | G25: nie | H25: - | I25: 1 | J25: 1
A26: Bierzów | B26: 22d | C26: 5 | D26: - | E26: - | F26: 1 | G26: tak | H26: - | I26: - | J26: 1
A27: Bierzów | B27: 22e | C27: 6 | D27: - | E27: 1 | F27: - | G27: nie | H27: - | I27: 1 | J27: 1
A28: Bierzów | B28: 22f | C28: 6 | D28: - | E28: 1 | F28: - | G28: nie | H28: - | I28: 1 | J28: 1
A29: Bierzów | B29: 22g | C29: 3 | D29: - | E29: 1 | F29: - | G29: nie | H29: 1 | I29: - | J29: 1
A30: Bierzów | B30: 22h | C30: 3 | D30: - | E30: 1 | F30: - | G30: tak | H30: 1 | I30: - | J30: 1
A31: Bierzów | B31: 22i | C31: 7 | D31: - | E31: 1 | F31: - | G31: nie | H31: - | I31: 1 | J31: 1
A32: Bierzów | B32: 24 | C32: 1 | D32: - | E32: - | F32: - | G32: tak | H32: 1 | I32: - | J32: 1
A33: Bierzów | B33: 25 | C33: 5 | D33: - | E33: 1 | F33: - | G33: nie | H33: 1 | I33: - | J33: 1
A34: Bierzów | B34: 26 | C34: 2 | D34: - | E34: 1 | F34: - | G34: nie | H34: - | I34: - | J34: 1
A35: Bierzów | B35: 27 | C35: 2 | D35: - | E35: - | F35: 1 | G35: nie | H35: - | I35: - | J35: 1
A36: Bierzów | B36: 29 | C36: 2 | D36: - | E36: - | F36: 1 | G36: tak | H36: - | I36: - | J36: 1
A37: Bierzów | B37: 30 | C37: 1 | D37: - | E37: - | F37: 1 | G37: nie | H37: - | I37: - | J37: 1
A38: Bierzów | B38: 31 | C38: 2 | D38: - | E38: - | F38: 1 | G38: nie | H38: - | I38: - | J38: 1
A39: Bierzów | B39: 32 | C39: 5 | D39: - | E39: - | F39: 1 | G39: tak | H39: - | I39: - | J39: 1
A40: Bierzów | B40: 33 | C40: 4 | D40: - | E40: 1 | F40: - | G40: nie | H40: 1 | I40: - | J40: 1
A41: Bierzów | B41: 33 | C41: 3 | D41: - | E41: - | F41: - | G41: nie | H41: - | I41: 1 | J41: 1
A42: Bierzów | B42: 34 | C42: 1 | D42: - | E42: 1 | F42: - | G42: tak | H42: - | I42: - | J42: 1
A43: Bierzów | B43: 35 | C43: 1 | D43: - | E43: - | F43: 1 | G43: tak | H43: - | I43: - | J43: 1
A44: Bierzów | B44: 36 | C44: 1 | D44: - | E44: 1 | F44: - | G44: nie | H44: - | I44: - | J44: 1
A45: Bierzów | B45: 37 | C45: 3 | D45: - | E45: - | F45: 1 | G45: tak | H45: - | I45: - | J45: 1
A46: Bierzów | B46: 38 | C46: 4 | D46: - | E46: - | F46: 1 | G46: tak | H46: - | I46: - | J46: 1
A47: Bierzów | B47: 39 | C47: 5 | D47: - | E47: - | F47: 1 | G47: nie | H47: - | I47: - | J47: 1
B48: suma | C48: =SUM(C4:C47) -> 151 | D48: =SUM(D4:D47) -> 0 | E48: =SUM(E4:E47) -> 25 | F48: =SUM(F4:F47) -> 18 | H48: =SUM(H4:H47) -> 16 | I48: =SUM(I4:I47) -> 6 | J48: =SUM(J4:J47) -> 44
A51: nieruchomości zamieszkałe: | C51: 44

Sheet Brzezina
A1: Miejscowość | B1: Nr posesji | C1: Liczba Mieszkańców | D1: Pojemniki zadeklarowane na odpady zmieszane | G1: kompostownik | H1: Zapotrzebowanie na pojemniki | K1: Uwagi
H2: odpady zmieszane | J2: szkło
D3: 110 l. | E3: 120 l . | F3: 240 l. | H3: 120 l. | I3: 240 l. | J3: 120 l.
A4: Brzezina | B4: 3A | C4: 2 | D4: - | E4: - | F4: - | G4: tak | H4: 1 | I4: - | J4: 1
A5: Brzezina | B5: 4 | C5: 4 | D5: - | E5: 1 | F5: - | G5: tak | H5: 1 | I5: - | J5: 1
A6: Brzezina | B6: 5 | C6: 2 | D6: - | E6: - | F6: - | G6: tak | H6: 1 | I6: - | J6: 1
A7: Brzezina | B7: 6 | C7: 3 | D7: - | E7: - | F7: 1 | G7: tak | H7: - | I7: - | J7: 1
A8: Brzezina | B8: 7 | C8: 9 | D8: - | E8: - | F8: 1 | G8: tak | H8: - | I8: 1 | J8: 1
A9: Brzezina | B9: 9 | C9: 2 | D9: - | E9: - | F9: - | G9: tak | H9: 1 | I9: - | J9: 1
A10: Brzezina | B10: 9A | C10: 4 | D10: - | E10: - | F10: 1 | G10: tak | H10: - | I10: - | J10: 1
A11: Brzezina | B11: 10 | C11: 3 | D11: 1 | E11: - | F11: - | G11: nie | H11: 1 | I11: - | J11: 1
A12: Brzezina | B12: 12 | C12: 4 | D12: - | E12: 1 | F12: - | G12: nie | H12: 1 | I12: - | J12: 1
A13: Brzezina | B13: 14 | C13: 4 | D13: 1 | E13: - | F13: - | G13: nie | H13: 1 | I13: - | J13: 1
A14: Brzezina | B14: 15 | C14: 2 | D14: - | E14: - | F14: - | G14: nie | H14: 1 | I14: - | J14: 1
A15: Brzezina | B15: 16 | C15: 1 | D15: - | E15: - | F15: - | G15: nie | H15: 1 | I15: - | J15: 1
A16: Brzezina | B16: 17 | C16: 2 | D16: - | E16: - | F16: - | G16: nie | H16: 1 | I16: - | J16: 1
A17: Brzezina | B17: 18 | C17: 3 | D17: - | E17: 1 | F17: - | G17: nie | H17: 1 | I17: - | J17: 1
A18: Brzezina | B18: 19 | C18: 4 | D18: - | E18: - | F18: - | G18: nie | H18: - | I18: 1 | J18: 1
A19: Brzezina | B19: 19A | C19: 1 | D19: - | E19: - | F19: - | G19: tak | H19: 1 | I19: - | J19: 1
A20: Brzezina | B20: 20/1 | C20: 1 | D20: - | E20: - | F20: - | G20: nie | H20: 1 | I20: - | J20: 1
A21: Brzezina | B21: 20/4 | C21: 1 | D21: - | E21: 1 | F21: - | G21: nie | H21: - | I21: - | J21: 1
A22: Brzezina | B22: 21 | C22: 3 | D22: - | E22: 1 | F22: - | G22: tak | H22: 1 | I22: - | J22: 1
A23: Brzezina | B23: 21/A | C23: 2 | D23: - | E23: 1 | F23: - | G23: tak | H23: - | I23: - | J23: 1
A24: Brzezina | B24: 22 | C24: 3 | D24: 1 | E24: - | F24: - | G24: tak | H24: 1 | I24: - | J24: 1
A25: Brzezina | B25: 24 | C25: 5 | D25: - | E25: - | F25: 2 | G25: tak | H25: - | I25: - | J25: 1
A26: Brzezina | B26: 25 | C26: 2 | D26: - | E26: - | F26: - | G26: nie | H26: 1 | I26: - | J26: 1
A27: Brzezina | B27: 26 | C27: 7 | D27: 1 | E27: 1 | F27: - | G27: tak | H27: 1 | I27: - | J27: 1
A28: Brzezina | B28: 26A | C28: 6 | D28: - | E28: - | F28: 1 | G28: nie | H28: 1 | I28: - | J28: 1
A29: Brzezina | B29: 26B | C29: 6 | D29: - | E29: - | F29: 1 | G29: nie | H29: 1 | I29: - | J29: 1
A30: Brzezina | B30: 27 | C30: 1 | D30: - | E30: 1 | F30: - | G30: tak | H30: - | I30: - | J30: 1
A31: Brzezina | B31: 28 | C31: 4 | D31: - | E31: 1 | F31: - | G31: tak | H31: 1 | I31: - | J31: 1
A32: Brzezina | B32: 29 | C32: 3 | D32: 1 | E32: - | F32: - | G32: tak | H32: 1 | I32: - | J32: 1
A33: Brzezina | B33: 31 | C33: 5 | D33: - | E33: 1 | F33: - | G33: nie | H33: 1 | I33: - | J33: 1
A34: Brzezina | B34: 32 | C34: 5 | D34: 1 | E34: - | F34: - | G34: tak | H34: 1 | I34: - | J34: 1
A35: Brzezina | B35: 33 | C35: 2 | D35: - | E35: - | F35: - | G35: tak | H35: 1 | I35: - | J35: 1
A36: Brzezina | B36: 34 | C36: 2 | D36: - | E36: 1 | F36: - | G36: nie | H36: - | I36: - | J36: 1
A37: Brzezina | B37: 38 | C37: 2 | D37: - | E37: - | F37: - | G37: nie | H37: 1 | I37: - | J37: 1
A38: Brzezina | B38: 39 | C38: 6 | D38: - | E38: 1 | F38: - | G38: nie | H38: - | I38: 1 | J38: 1
A39: Brzezina | B39: 40 | C39: 4 | D39: 1 | E39: - | F39: - | G39: nie | H39: 1 | I39: - | J39: 1
A40: Brzezina | B40: 41 | C40: 7 | D40: - | E40: - | F40: - | G40: nie | H40: 1 | I40: 1 | J40: 1
A41: Brzezina | B41: 43 | C41: 7 | D41: 1 | E41: - | F41: - | G41: nie | H41: - | I41: 1 | J41: 1
A42: Brzezina | B42: 43A | C42: 2 | D42: - | E42: 1 | F42: - | G42: tak | H42: - | I42: - | J42: 1
A43: Brzezina | B43: 43B | C43: 4 | D43: - | E43: - | F43: - | G43: nie | H43: - | I43: 1 | J43: 1
A44: Brzezina | B44: 44/5 | C44: 1 | D44: 1 | E44: - | F44: - | G44: nie | H44: - | I44: - | J44: 1
A45: Brzezina | B45: 45 | C45: 4 | D45: - | E45: - | F45: - | G45: tak | H45: - | I45: 1 | J45: 1
A46: Brzezina | B46: 46 | C46: 2 | D46: - | E46: - | F46: - | G46: tak | H46: 1 | I46: - | J46: 1
A47: Brzezina | B47: 47 | C47: 2 | D47: - | E47: - | F47: - | G47: nie | H47: 1 | I47: - | J47: 1
A48: Brzezina | B48: 48 | C48: 4 | D48: 1 | E48: - | F48: - | G48: nie | H48: 1 | I48: - | J48: 1
A49: Brzezina | B49: 49 | C49: 2 | D49: - | E49: - | F49: - | G49: nie | H49: 1 | I49: - | J49: 1
A50: Brzezina | B50: 51 | C50: 2 | D50: - | E50: 1 | F50: - | G50: tak | H50: - | I50: - | J50: 1
A51: Brzezina | B51: 53 | C51: 1 | D51: - | E51: 1 | F51: - | G51: tak | H51: - | I51: - | J51: 1
A52: Brzezina | B52: 54 | C52: 5 | D52: - | E52: - | F52: - | G52: nie | H52: - | I52: 1 | J52: 1
A53: Brzezina | B53: 55 | C53: 2 | D53: - | E53: - | F53: - | G53: tak | H53: 1 | I53: - | J53: 1
A54: Brzezina | B54: 55 | C54: 5 | D54: - | E54: - | F54: - | G54: tak | H54: - | I54: 1 | J54: 1
A55: Brzezina | B55: 56 | C55: 2 | D55: - | E55: - | F55: 1 | G55: nie | H55: - | I55: - | J55: 1
A56: Brzezina | B56: 56B | C56: 3 | D56: - | E56: - | F56: - | G56: tak | H56: - | I56: 1 | J56: 1
A57: Brzezina | B57: 58 | C57: 1 | D57: - | E57: - | F57: - | G57: tak | H57: 1 | I57: - | J57: 1
A58: Brzezina | B58: 59A | C58: 2 | D58: - | E58: - | F58: - | G58: nie | H58: 1 | I58: - | J58: 1
A59: Brzezina | B59: 60 | C59: 6 | D59: - | E59: 1 | F59: - | G59: nie | H59: - | I59: 1 | J59: 1
A60: Brzezina | B60: 61 | C60: 1 | D60: 1 | E60: - | F60: - | G60: tak | H60: - | I60: - | J60: 1
A61: Brzezina | B61: 62 | C61: 2 | D61: - | E61: 1 | F61: - | G61: nie | H61: - | I61: - | J61: 1
A62: Brzezina | B62: 62 | C62: 2 | D62: 1 | E62: - | F62: - | G62: nie | H62: - | I62: - | J62: 1
A63: Brzezina | B63: 63 | C63: 3 | D63: - | E63: - | F63: 1 | G63: nie | H63: - | I63: - | J63: 1
A64: Brzezina | B64: 64 | C64: 3 | D64: - | E64: - | F64: - | G64: nie | H64: 1 | I64: - | J64: 1
A65: Brzezina | B65: 65B | C65: 4 | D65: - | E65: - | F65: 1 | G65: nie | H65: - | I65: - | J65: 1
A66: Brzezina | B66: 65C | C66: 4 | D66: - | E66: - | F66: - | G66: tak | H66: - | I66: - | J66: 1
A67: Brzezina | B67: 65D | C67: 2 | D67: - | E67: - | F67: - | G67: nie | H67: 1 | I67: - | J67: 1
A68: Brzezina | B68: 66 | C68: 4 | D68: - | E68: - | F68: - | G68: tak | H68: - | I68: 1 | J68: 1
A69: Brzezina | B69: 66A | C69: 1 | D69: - | E69: - | F69: - | G69: nie | H69: 1 | I69: - | J69: 1
A70: Brzezina | B70: 69 | C70: 4 | D70: - | E70: - | F70: - | G70: nie | H70: - | I70: 1 | J70: 1
A71: Brzezina | B71: 71 | C71: 5 | D71: - | E71: - | F71: - | G71: tak | H71: - | I71: 1 | J71: 1
A72: Brzezina | B72: 72 | C72: 3 | D72: - | E72: - | F72: 1 | G72: nie | H72: - | I72: - | J72: 1
A73: Brzezina | B73: 72 | C73: 4 | D73: - | E73: - | F73: 1 | G73: nie | H73: - | I73: - | J73: 1
A74: Brzezina | B74: 74 | C74: 3 | D74: - | E74: 1 | F74: - | G74: tak | H74: 1 | I74: - | J74: 1
A75: Brzezina | B75: 75A | C75: 4 | D75: - | E75: - | F75: 1 | G75: nie | H75: 1 | I75: - | J75: 1
A76: Brzezina | B76: 77 | C76: 6 | D76: 1 | E76: - | F76: - | G76: nie | H76: - | I76: 1 | J76: 1
A77: Brzezina | B77: 77A | C77: 4 | D77: - | E77: - | F77: - | G77: nie | H77: - | I77: 1 | J77: 1
A78: Brzezina | B78: 79 | C78: 1 | D78: - | E78: - | F78: - | G78: tak | H78: 1 | I78: - | J78: 1
A79: Brzezina | B79: 80 | C79: 2 | D79: - | E79: - | F79: - | G79: nie | H79: 1 | I79: - | J79: 1
A80: Brzezina | B80: 80A | C80: 2 | D80: - | E80: - | F80: - | G80: tak | H80: 1 | I80: - | J80: 1
A81: Brzezina | B81: 81 | C81: 1 | D81: - | E81: - | F81: - | G81: nie | H81: 1 | I81: - | J81: 1
A82: Brzezina | B82: 82 | C82: 5 | D82: - | E82: - | F82: - | G82: nie | H82: - | I82: 1 | J82: 1
A83: Brzezina | B83: 83 | C83: 2 | D83: - | E83: - | F83: 1 | G83: nie | H83: - | I83: - | J83: 1
A84: Brzezina | B84: 83B | C84: 3 | D84: - | E84: - | F84: - | G84: nie | H84: - | I84: 1 | J84: 1
A85: Brzezina | B85: 83C | C85: 4 | D85: - | E85: 1 | F85: - | G85: nie | H85: 1 | I85: - | J85: 1
A86: Brzezina | B86: 84 | C86: 2 | D86: - | E86: 1 | F86: - | G86: nie | H86: - | I86: - | J86: 1
A87: Brzezina | B87: 84A | C87: 2 | D87: - | E87: 1 | F87: - | G87: nie | H87: - | I87: - | J87: 1
A88: Brzezina | B88: 85 | C88: 5 | D88: - | E88: - | F88: - | G88: tak | H88: - | I88: 1 | J88: 1
A89: Brzezina | B89: 85a | C89: 4 | D89: - | E89: - | F89: 1 | G89: tak | H89: - | I89: - | J89: 1
A90: Brzezina | B90: 86 | C90: 6 | D90: - | E90: - | F90: 1 | G90: tak | H90: 1 | I90: - | J90: 1
A91: Brzezina | B91: 86a | C91: 2 | D91: - | E91: - | F91: - | G91: tak | H91: 1 | I91: - | J91: 1
A92: Brzezina | B92: 87 | C92: 4 | D92: - | E92: - | F92: - | G92: tak | H92: - | I92: 1 | J92: 1
A93: Brzezina | B93: 88 | C93: 3 | D93: - | E93: 1 | F93: - | G93: tak | H93: 1 | I93: - | J93: 1
A94: Brzezina | B94: 89 | C94: 2 | D94: - | E94: 1 | F94: - | G94: tak | H94: - | I94: - | J94: 1
A95: Brzezina | B95: 90 | C95: 2 | D95: 1 | E95: - | F95: - | G95: tak | H95: - | I95: - | J95: 1
A96: Brzezina | B96: 91 | C96: 3 | D96: 2 | E96: - | F96: - | G96: nie | H96: - | I96: - | J96: 1
A97: Brzezina | B97: 92 | C97: 4 | D97: - | E97: - | F97: - | G97: nie | H97: - | I97: 1 | J97: 1
A98: Brzezina | B98: 93 | C98: 6 | D98: - | E98: - | F98: 1 | G98: nie | H98: 1 | I98: - | J98: 1
A99: Brzezina | B99: 94 | C99: 7 | D99: 1 | E99: - | F99: - | G99: tak | H99: - | I99: 1 | J99: 1
A100: Brzezina | B100: 95 | C100: 8 | D100: - | E100: 1 | F100: - | G100: tak | H100: - | I100: 1 | J100: 1
A101: Brzezina | B101: 98 | C101: 6 | D101: 1 | E101: - | F101: - | G101: nie | H101: - | I101: 1 | J101: 1
A102: Brzezina | B102: 100 | C102: 4 | D102: - | E102: - | F102: - | G102: nie | H102: - | I102: 1 | J102: 1
A103: Brzezina | B103: 104 | C103: 6 | D103: - | E103: - | F103: - | G103: nie | H103: 1 | I103: 1 | J103: 1
A104: Brzezina | B104: 113 | C104: 1 | D104: - | E104: - | F104: 1 | G104: tak | H104: - | I104: - | J104: 1
A105: Brzezina | B105: 145 | C105: 3 | D105: - | E105: - | F105: - | G105: tak | H105: - | I105: 1 | J105: 1
A106: Brzezina | B106: 152 | C106: 2 | D106: - | E106: - | F106: - | G106: tak | H106: 1 | I106: - | J106: 1
A107: Brzezina | B107: 155 | C107: 4 | D107: - | E107: 2 | F107: - | G107: tak | H107: - | I107: - | J107: 1
A108: Brzezina | B108: dz. nr 249/9 | C108: 4 | D108: - | E108: - | F108: - | G108: nie | H108: - | I108: 1 | J108: 1
B109: suma | C109: =SUM(C4:C108) -> 353 | D109: 18 | E109: 26 | F109: 18 | H109: 50 | I109: 28 | J109: =SUM(J4:J108) -> 105
A112: nieruchomości zamieszkałe: | C112: 105

Sheet Brzezina wielorodzinna
A1: Nr posesji | B1: Liczba Mieszkańców | C1: Pojemniki zadeklarowane | F1: Zapotrzebowanie na pojemniki (odpady zmieszane)
C2: 110 l | D2: 120 l | E2: 240 l | F2: 120 l | G2: 240 l | H2: V-1100
A3: 44A/1 | B3: 3 | C3: - | D3: - | E3: - | F3: - | G3: - | H3: 3
A4: 44A/2 | B4: 1 | C4: - | D4: - | E4: - | F4: - | G4: -
A5: 44A/3 | B5: 2 | C5: - | D5: - | E5: - | F5: - | G5: -
A6: 44A/4 | B6: 0 | C6: - | D6: - | E6: - | F6: - | G6: -
A7: 44A/5 | B7: 2 | C7: - | D7: - | E7: - | F7: - | G7: -
A8: 44A/6 | B8: 1 | C8: - | D8: - | E8: - | F8: - | G8: -
A9: 44B/1 | B9: 1 | C9: - | D9: - | E9: - | F9: - | G9: -
A10: 44B/2 | B10: 5 | C10: - | D10: - | E10: - | F10: - | G10: -
A11: 44B/3 | B11: 4 | C11: - | D11: - | E11: - | F11: - | G11: -
A12: 44B/4 | B12: 2 | C12: - | D12: - | E12: - | F12: - | G12: -
A13: 44B/5 | B13: 2 | C13: - | D13: - | E13: - | F13: - | G13: -
A14: 44B/6 | B14: 4 | C14: - | D14: - | E14: - | F14: - | G14: -
A15: 44C/1 | B15: 5 | C15: - | D15: - | E15: - | F15: - | G15: -
A16: 44C/2 | B16: 1 | C16: - | D16: - | E16: - | F16: - | G16: -
A17: 44C/3 | B17: 3 | C17: - | D17: - | E17: - | F17: - | G17: -
A18: 44C/4 | B18: 2 | C18: - | D18: - | E18: - | F18: - | G18: -
A19: 44C/6 | B19: 4 | C19: - | D19: - | E19: - | F19: - | G19: -
A20: 44D/1 | B20: 1 | C20: - | D20: - | E20: - | F20: - | G20: -
A21: 44D/2 | B21: 2 | C21: - | D21: - | E21: - | F21: - | G21: -
A22: 44D/3 | B22: 1 | C22: - | D22: - | E22: - | F22: - | G22: -
A23: 44D/4 | B23: 2 | C23: - | D23: - | E23: - | F23: - | G23: -
A24: 44D/5 | B24: 3 | C24: - | D24: - | E24: - | F24: - | G24: -
A25: 44D/6 | B25: 0 | C25: - | D25: - | E25: - | F25: - | G25: -
A26: 44E/1 | B26: 4 | C26: - | D26: - | E26: - | F26: - | G26: -
A27: 44E/1 | B27: 1 | C27: - | D27: - | E27: - | F27: - | G27: -
A28: 44E/2 | B28: 2 | C28: - | D28: - | E28: - | F28: - | G28: -
A29: 44E/3 | B29: 2 | C29: - | D29: - | E29: - | F29: - | G29: -
A30: 44E/4 | B30: 1 | C30: - | D30: - | E30: - | F30: - | G30: -
A31: 44E/5 | B31: 2 | C31: - | D31: - | E31: - | F31: - | G31: -
A32: 44E/6 | B32: 4 | C32: - | D32: - | E32: - | F32: - | G32: -
A33: 44F/1 | B33: 1 | C33: - | D33: - | E33: - | F33: - | G33: -
A34: 44F/2 | B34: 4 | C34: - | D34: - | E34: - | F34: - | G34: -
A35: 44F/3 | B35: 4 | C35: - | D35: - | E35: - | F35: - | G35: -
A36: 44F/4 | B36: 1 | C36: - | D36: - | E36: - | F36: - | G36: -
A37: 44F/5 | B37: 1 | C37: - | D37: - | E37: - | F37: - | G37: -
A38: 44F/6 | B38: 2 | C38: - | D38: - | E38: - | F38: - | G38: -
A39: 44G/1 | B39: 2 | C39: - | D39: - | E39: - | F39: - | G39: -
A40: 44G/2 | B40: 5 | C40: - | D40: - | E40: - | F40: - | G40: -
A41: 44G/3 | B41: 4 | C41: - | D41: - | E41: - | F41: - | G41: -
A42: 44G/4 | B42: 1 | C42: - | D42: - | E42: - | F42: - | G42: -
A43: 44G/6 | B43: 3 | C43: - | D43: - | E43: - | F43: - | G43: -
A44: 44H/1 | B44: 8 | C44: - | D44: - | E44: - | F44: - | G44: -
A45: 44H/2 | B45: 2 | C45: - | D45: - | E45: - | F45: - | G45: -
A46: 44H/3 | B46: 4 | C46: - | D46: - | E46: - | F46: - | G46: -
A47: 44H/4 | B47: 2 | C47: - | D47: - | E47: - | F47: - | G47: -
A48: 44H/5 | B48: 3 | C48: - | D48: - | E48: - | F48: - | G48: -
A49: 44H/6 | B49: 2 | C49: - | D49: - | E49: - | F49: - | G49: -
A50: suma | B50: =SUM(B4:B49) -> 113 | C50: 0 | D50: 0 | E50: 0 | F50: 0 | G50: 0 | H50: 3
A52: nieruchomości zamieszkałe: | C52: 46

Sheet Kopanie
A1: Miejscowość | B1: Nr posesji | C1: Liczba Mieszkańców | D1: Pojemniki zadeklarowane _(odpady zmieszane) | G1: kompostownik | H1: Zapotrzebowanie na pojemniki | K1: Uwagi
H2: odpady zmieszane | J2: szkło
D3: 110 l. | E3: 120 l. | F3: 240 l. | H3: 120 l. | I3: 240 l. | J3: 120 l.
A4: Kopanie | B4: 2 | C4: 4 | D4: - | E4: - | F4: 1 | G4: tak | H4: - | I4: - | J4: 1
A5: Kopanie | B5: 2 | C5: 3 | D5: - | E5: - | F5: 1 | G5: tak | H5: - | I5: - | J5: 1
A6: Kopanie | B6: 4 | C6: 1 | D6: - | E6: - | F6: 1 | G6: nie | H6: - | I6: - | J6: 1
A7: Kopanie | B7: 5 | C7: 4 | D7: - | E7: 1 | F7: 1 | G7: nie | H7: - | I7: - | J7: 1
A8: Kopanie | B8: 6 | C8: 7 | D8: - | E8: - | F8: 1 | G8: nie | H8: 1 | I8: - | J8: 1
A9: Kopanie | B9: 7 | C9: 6 | D9: - | E9: - | F9: 1 | G9: nie | H9: 1 | I9: - | J9: 1
A10: Kopanie | B10: 8 | C10: 3 | D10: - | E10: - | F10: 1 | G10: tak | H10: - | I10: - | J10: 1
A11: Kopanie | B11: 9 | C11: 7 | D11: - | E11: - | F11: 1 | G11: nie | H11: 1 | I11: - | J11: 1
A12: Kopanie | B12: 10 | C12: 1 | D12: - | E12: - | F12: 1 | G12: nie | H12: - | I12: - | J12: 1
A13: Kopanie | B13: 12 | C13: 2 | D13: - | E13: 1 | F13: - | G13: tak | H13: - | I13: - | J13: 1
A14: Kopanie | B14: 12 | C14: 3 | D14: - | E14: - | F14: 1 | G14: tak | H14: - | I14: - | J14: 1
A15: Kopanie | B15: 13 | C15: 4 | D15: - | E15: 1 | F15: 1 | G15: nie | H15: - | I15: - | J15: 1
A16: Kopanie | B16: 13A | C16: 4 | D16: - | E16: - | F16: 1 | G16: nie | H16: - | I16: - | J16: 1
A17: Kopanie | B17: 15 | C17: 2 | D17: - | E17: 1 | F17: - | G17: tak | H17: - | I17: - | J17: 1
A18: Kopanie | B18: 15 | C18: 3 | D18: - | E18: - | F18: 1 | G18: tak | H18: - | I18: - | J18: 1
A19: Kopanie | B19: 16 | C19: 5 | D19: - | E19: - | F19: 1 | G19: tak | H19: - | I19: - | J19: 1
A20: Kopanie | B20: 17 | C20: 6 | D20: - | E20: - | F20: 1 | G20: tak | H20: 1 | I20: - | J20: 1
A21: Kopanie | B21: 17A | C21: 1 | D21: - | E21: - | F21: - | G21: nie | H21: 1 | I21: - | J21: 1
A22: Kopanie | B22: 18 | C22: 1 | D22: - | E22: - | F22: 1 | G22: tak | H22: - | I22: - | J22: 1
A23: Kopanie | B23: 19 | C23: 3 | D23: - | E23: - | F23: 1 | G23: tak | H23: - | I23: - | J23: 1
A24: Kopanie | B24: 19A | C24: 4 | D24: - | E24: - | F24: 1 | G24: tak | H24: - | I24: - | J24: 1
A25: Kopanie | B25: 20 | C25: 3 | D25: - | E25: - | F25: 1 | G25: tak | H25: - | I25: - | J25: 1
A26: Kopanie | B26: 20A | C26: 5 | D26: - | E26: - | F26: 1 | G26: tak | H26: - | I26: - | J26: 1
A27: Kopanie | B27: 21A | C27: 2 | D27: - | E27: - | F27: 1 | G27: tak | H27: - | I27: - | J27: 1
A28: Kopanie | B28: 22 | C28: 4 | D28: - | E28: - | F28: 1 | G28: nie | H28: - | I28: - | J28: 1
A29: Kopanie | B29: 23 | C29: 4 | D29: - | E29: - | F29: 1 | G29: tak | H29: - | I29: - | J29: 1
A30: Kopanie | B30: 23A | C30: 1 | D30: - | E30: - | F30: - | G30: tak | H30: 1 | I30: - | J30: 1
A31: Kopanie | B31: 25 | C31: 1 | D31: - | E31: 1 | F31: - | G31: nie | H31: - | I31: - | J31: 1
A32: Kopanie | B32: 27 | C32: 1 | D32: - | E32: - | F32: 1 | G32: tak | H32: - | I32: - | J32: 1
A33: Kopanie | B33: 29 | C33: 5 | D33: - | E33: - | F33: 1 | G33: tak | H33: - | I33: - | J33: 1
A34: Kopanie | B34: 30 | C34: 3 | D34: - | E34: - | F34: - | G34: nie | H34: - | I34: 1 | J34: 1
A35: Kopanie | B35: 30A | C35: 4 | D35: - | E35: - | F35: - | G35: tak | H35: - | I35: 1 | J35: 1
A36: Kopanie | B36: 30B | C36: 4 | D36: - | E36: - | F36: - | G36: nie | H36: - | I36: 1 | J36: 1
A37: Kopanie | B37: 31/1 | C37: 4 | D37: - | E37: - | F37: 2 | G37: tak | H37: - | I37: - | J37: 1
A38: Kopanie | B38: 31/2 | C38: 4 | D38: - | E38: - | F38: 1 | G38: tak | H38: - | I38: - | J38: 1
A39: Kopanie | B39: 33 | C39: 2 | D39: - | E39: - | F39: 1 | G39: tak | H39: - | I39: - | J39: 1
A40: Kopanie | B40: 34 | C40: 1 | D40: - | E40: 1 | F40: - | G40: tak | H40: - | I40: - | J40: 1
A41: Kopanie | B41: 36 | C41: 7 | D41: - | E41: 1 | F41: 1 | G41: nie | H41: - | I41: - | J41: 1
A42: Kopanie | B42: 37 | C42: 2 | D42: - | E42: - | F42: 1 | G42: tak | H42: - | I42: - | J42: 1
A43: Kopanie | B43: 38 | C43: 1 | D43: - | E43: - | F43: - | G43: tak | H43: 1 | I43: - | J43: 1
A44: Kopanie | B44: 39 | C44: 5 | D44: - | E44: - | F44: 1 | G44: nie | H44: - | I44: - | J44: 1
A45: Kopanie | B45: 41 | C45: 1 | D45: - | E45: - | F45: - | G45: tak | H45: 1 | I45: - | J45: 1
B46: suma | C46: =SUM(C4:C45) -> 138 | D46: =SUM(D4:D45) -> 0 | E46: =SUM(E4:E45) -> 7 | F46: =SUM(F4:F45) -> 32 | H46: =SUM(H4:H45) -> 8 | I46: =SUM(I4:I45) -> 3 | J46: =SUM(J4:J45) -> 42
A51: nieruchomości zamieszkałe: | C51: 42

Sheet Kruszyna
A1: Miejscowość | B1: Nr posesji | C1: Liczba Mieszkańców | D1: Pojemniki zadeklarowane (odpady zmieszane) | G1: kompostownik | H1: Zapotrzebowanie na pojemniki | K1: Uwagi
H2: odpady zmieszane | J2: szkło
D3: 110 l. | E3: 120 l. | F3: 240 l. | H3: 120 l. | I3: 240 l. | J3: 120 l.
A4: Kruszyna | B4: 1 | C4: 3 | D4: - | E4: - | F4: 1 | G4: tak | H4: - | I4: - | J4: 1
A5: Kruszyna | B5: 1A | C5: 4 | D5: - | E5: 1 | F5: - | G5: nie | H5: 1 | I5: - | J5: 1
A6: Kruszyna | B6: 2 | C6: 4 | D6: - | E6: - | F6: - | G6: tak | H6: - | I6: 1 | J6: 1
A7: Kruszyna | B7: 3 | C7: 2 | D7: - | E7: - | F7: 1 | G7: nie | H7: - | I7: - | J7: 1
A8: Kruszyna | B8: 3A | C8: 3 | D8: - | E8: - | F8: 1 | G8: tak | H8: - | I8: - | J8: 1
A9: Kruszyna | B9: 4 | C9: 2 | D9: - | E9: - | F9: - | G9: nie | H9: 1 | I9: - | J9: 1
A10: Kruszyna | B10: 5 | C10: 1 | D10: - | E10: - | F10: 1 | G10: tak | H10: - | I10: - | J10: 1
A11: Kruszyna | B11: 6 | C11: 4 | D11: - | E11: - | F11: 1 | G11: tak | H11: - | I11: - | J11: 1
A12: Kruszyna | B12: 7 | C12: 1 | D12: - | E12: - | F12: 1 | G12: tak | H12: - | I12: - | J12: 1
A13: Kruszyna | B13: 10 | C13: 1 | D13: - | E13: 1 | F13: - | G13: nie | H13: - | I13: - | J13: 1
A14: Kruszyna | B14: 11 | C14: 2 | D14: - | E14: - | F14: - | G14: nie | H14: 1 | I14: - | J14: 1
A15: Kruszyna | B15: 13 | C15: 1 | D15: - | E15: - | F15: 1 | G15: nie | H15: - | I15: - | J15: 1
A16: Kruszyna | B16: 14 | C16: 5 | D16: - | E16: - | F16: 1 | G16: tak | H16: - | I16: - | J16: 1
A17: Kruszyna | B17: 15 | C17: 1 | D17: - | E17: - | F17: 1 | G17: nie | H17: - | I17: - | J17: 1
A18: Kruszyna | B18: 16 | C18: 1 | D18: - | E18: - | F18: - | G18: nie | H18: 1 | I18: - | J18: 1
A19: Kruszyna | B19: 17 | C19: 4 | D19: - | E19: - | F19: 1 | G19: nie | H19: - | I19: - | J19: 1
A20: Kruszyna | B20: 18 | C20: 6 | D20: - | E20: - | F20: 2 | G20: tak | H20: - | I20: - | J20: 1
A21: Kruszyna | B21: 19 | C21: 1 | D21: - | E21: - | F21: 1 | G21: tak | H21: - | I21: - | J21: 1
A22: Kruszyna | B22: 20 | C22: 6 | D22: - | E22: - | F22: 1 | G22: tak | H22: 1 | I22: - | J22: 1
A23: Kruszyna | B23: 21 | C23: 1 | D23: - | E23: - | F23: 1 | G23: nie | H23: - | I23: - | J23: 1
A24: Kruszyna | B24: 22 | C24: 6 | D24: - | E24: - | F24: 1 | G24: nie | H24: 1 | I24: - | J24: 1
A25: Kruszyna | B25: 23 | C25: 1 | D25: - | E25: - | F25: 1 | G25: nie | H25: - | I25: - | J25: 1
A26: Kruszyna | B26: 24 | C26: 4 | D26: - | E26: - | F26: 1 | G26: nie | H26: - | I26: - | J26: 1
A27: Kruszyna | B27: 25 | C27: 4 | D27: - | E27: - | F27: 1 | G27: tak | H27: - | I27: - | J27: 1
A28: Kruszyna | B28: 26 | C28: 3 | D28: - | E28: - | F28: 1 | G28: tak | H28: - | I28: - | J28: 1
A29: Kruszyna | B29: 27 | C29: 5 | D29: - | E29: - | F29: 1 | G29: nie | H29: - | I29: - | J29: 1
A30: Kruszyna | B30: 29 | C30: 2 | D30: - | E30: - | F30: 1 | G30: tak | H30: - | I30: - | J30: 1
A31: Kruszyna | B31: 30 | C31: 4 | D31: - | E31: - | F31: 1 | G31: tak | H31: - | I31: - | J31: 1
A32: Kruszyna | B32: 30a | C32: 1 | D32: - | E32: - | F32: - | G32: nie | H32: 1 | I32: - | J32: 1
A33: Kruszyna | B33: 31 | C33: 3 | D33: - | E33: - | F33: 1 | G33: nie | H33: - | I33: - | J33: 1
A34: Kruszyna | B34: 34 | C34: 4 | D34: - | E34: - | F34: 1 | G34: tak | H34: - | I34: - | J34: 1
A35: Kruszyna | B35: 35 | C35: 3 | D35: - | E35: - | F35: 1 | G35: tak | H35: - | I35: - | J35: 1
A36: Kruszyna | B36: 36 | C36: 1 | D36: - | E36: - | F36: 1 | G36: tak | H36: - | I36: - | J36: 1
A37: Kruszyna | B37: 40 | C37: 6 | D37: - | E37: - | F37: 1 | G37: nie | H37: 1 | I37: - | J37: 1
A38: Kruszyna | B38: 40A | C38: 4 | D38: - | E38: - | F38: 1 | G38: tak | H38: - | I38: - | J38: 1
A39: Kruszyna | B39: 42 | C39: 7 | D39: - | E39: - | F39: - | G39: nie | H39: 1 | I39: 1 | J39: 1
A40: Kruszyna | B40: 44 | C40: 3 | D40: - | E40: 1 | F40: - | G40: nie | H40: 1 | I40: - | J40: 1
A41: Kruszyna | B41: 45 | C41: 4 | D41: - | E41: - | F41: 1 | G41: tak | H41: - | I41: - | J41: 1
A42: Kruszyna | B42: 46 | C42: 6 | D42: - | E42: 1 | F42: - | G42: tak | H42: - | I42: 1 | J42: 1
A43: Kruszyna | B43: 47 | C43: 1 | D43: - | E43: - | F43: 1 | G43: tak | H43: - | I43: - | J43: 1
A44: Kruszyna | B44: 48 | C44: 1 | D44: - | E44: 1 | F44: - | G44: tak | H44: - | I44: - | J44: 1
A45: Kruszyna | B45: 49 | C45: 3 | D45: - | E45: - | F45: 1 | G45: tak | H45: - | I45: - | J45: 1
A46: Kruszyna | B46: 50 | C46: 3 | D46: - | E46: - | F46: 1 | G46: tak | H46: - | I46: - | J46: 1
A47: Kruszyna | B47: 51 | C47: 6 | D47: - | E47: - | F47: 1 | G47: tak | H47: 1 | I47: - | J47: 1
A48: Kruszyna | B48: 52 | C48: 3 | D48: - | E48: - | F48: 1 | G48: nie | H48: - | I48: - | J48: 1
A49: Kruszyna | B49: 55 | C49: 5 | D49: - | E49: - | F49: - | G49: tak | H49: - | I49: 1 | J49: 1
A50: Kruszyna | B50: 56 | C50: 6 | D50: - | E50: 1 | F50: - | G50: nie | H50: - | I50: 1 | J50: 1
A51: Kruszyna | B51: 57 | C51: 1 | D51: - | E51: - | F51: 1 | G51: nie | H51: - | I51: - | J51: 1
A52: Kruszyna | B52: 58 | C52: 7 | D52: - | E52: - | F52: 1 | G52: nie | H52: 1 | I52: - | J52: 1
A53: Kruszyna | B53: 60 | C53: 6 | D53: - | E53: - | F53: - | G53: tak | H53: 1 | I53: 1 | J53: 1
A54: Kruszyna | B54: 62A | C54: 3 | D54: - | E54: 1 | F54: - | G54: nie | H54: 1 | I54: - | J54: 1
A55: Kruszyna | B55: 62A | C55: 5 | D55: - | E55: - | F55: 1 | G55: nie | H55: - | I55: - | J55: 1
A56: Kruszyna | B56: 62A/1 | C56: 3 | D56: - | E56: - | F56: 1 | G56: nie | H56: - | I56: - | J56: 1
A57: Kruszyna | B57: 63 | C57: 9 | D57: - | E57: 1 | F57: - | G57: nie | H57: 1 | I57: 1 | J57: 1
A58: Kruszyna | B58: 64 | C58: 5 | D58: - | E58: 1 | F58: - | G58: tak | H58: 1 | I58: - | J58: 1
A59: Kruszyna | B59: 66 | C59: 1 | D59: - | E59: - | F59: - | G59: nie | H59: 1 | I59: - | J59: 1
A60: Kruszyna | B60: 66 | C60: 5 | D60: - | E60: - | F60: 1 | G60: tak | H60: - | I60: - | J60: 1
A61: Kruszyna | B61: 66 | C61: 2 | D61: - | E61: - | F61: - | G61: nie | H61: 1 | I61: - | J61: 1
A62: Kruszyna | B62: 67 | C62: 1 | D62: - | E62: - | F62: - | G62: nie | H62: 1 | I62: - | J62: 1
A63: Kruszyna | B63: 68 | C63: 5 | D63: - | E63: - | F63: 1 | G63: tak | H63: - | I63: - | J63: 1
A64: Kruszyna | B64: 69 | C64: 2 | D64: - | E64: - | F64: - | G64: nie | H64: 1 | I64: - | J64: 1
A65: Kruszyna | B65: 70 | C65: 2 | D65: - | E65: 1 | F65: - | G65: nie | H65: - | I65: - | J65: 1
A66: Kruszyna | B66: 70 | C66: 4 | D66: - | E66: - | F66: 1 | G66: nie | H66: - | I66: - | J66: 1
A67: Kruszyna | B67: 71 | C67: 1 | D67: - | E67: - | F67: - | G67: nie | H67: 1 | I67: - | J67: 1
A68: Kruszyna | B68: 72 | C68: 2 | D68: - | E68: - | F68: - | G68: nie | H68: 1 | I68: - | J68: 1
A69: Kruszyna | B69: 73 | C69: 3 | D69: - | E69: - | F69: 1 | G69: tak | H69: - | I69: - | J69: 1
A70: Kruszyna | B70: 74 | C70: 4 | D70: - | E70: - | F70: 2 | G70: tak | H70: - | I70: - | J70: 1
A71: Kruszyna | B71: 78 | C71: 4 | D71: - | E71: - | F71: 1 | G71: tak | H71: - | I71: - | J71: 1
A72: Kruszyna | B72: 79 | C72: 1 | D72: 1 | E72: - | F72: - | G72: nie | H72: - | I72: - | J72: 1
A73: Kruszyna | B73: 80 | C73: 2 | D73: - | E73: - | F73: 1 | G73: nie | H73: - | I73: - | J73: 1
A74: Kruszyna | B74: 81 | C74: 7 | D74: - | E74: - | F74: 2 | G74: nie | H74: - | I74: - | J74: 1
A75: Kruszyna | B75: 82 | C75: 1 | D75: - | E75: - | F75: - | G75: nie | H75: 1 | I75: - | J75: 1
A76: Kruszyna | B76: 83 | C76: 1 | D76: - | E76: 1 | F76: - | G76: tak | H76: - | I76: - | J76: 1
B77: suma | C77: =SUM(C4:C76) -> 239 | D77: 1 | E77: 11 | F77: 49 | H77: 23 | I77: 7 | J77: =SUM(J4:J76) -> 73
A82: nieruchomości zamieszkałe: | C82: 73

Sheet Lipki
A1: Miejscowość | B1: Nr posesji | C1: Liczba Mieszkańców | D1: Ilość pojemników w gospodarstwie | E1: Pojemniki zadeklarowane (odpady zmieszane) | H1: kompostownik | I1: Zapotrzebowanie na pojemniki | L1: Uwagi
I2: odpady zmieszane | K2: szkło
E3: 110 l. | F3: 120 l. | G3: 240 l. | I3: 120 l. | J3: 240 l. | K3: 120 l.
A4: Lipki | B4: 1 | C4: 1 | D4: 1 | E4: - | F4: - | G4: 1 | H4: nie | I4: - | J4: - | K4: 1
A5: Lipki | B5: 1a | C5: 1 | D5: 1 | E5: - | F5: - | G5: 1 | H5: nie | I5: - | J5: - | K5: 1
A6: Lipki | B6: 2 | C6: 1 | D6: 1 | E6: - | F6: - | G6: - | H6: nie | I6: 1 | J6: - | K6: 1
A7: Lipki | B7: 3 | C7: 1 | D7: 1 | E7: - | F7: - | G7: 1 | H7: tak | I7: - | J7: - | K7: 1
A8: Lipki | B8: 5 | C8: 7 | D8: 2 | E8: - | F8: 1 | G8: - | H8: nie | I8: - | J8: 1 | K8: 1
A9: Lipki | B9: 6 | C9: 2 | D9: 1 | E9: - | F9: - | G9: 1 | H9: tak | I9: - | J9: - | K9: 1
A10: Lipki | B10: 6A | C10: 6 | D10: 2 | E10: - | F10: - | G10: 1 | H10: nie | I10: 1 | J10: - | K10: 1
A11: Lipki | B11: 8 | C11: 7 | D11: 2 | E11: - | F11: - | G11: 1 | H11: tak | I11: 1 | J11: - | K11: 1
A12: Lipki | B12: 9 | C12: 4 | D12: 1 | E12: - | F12: - | G12: 1 | H12: tak | I12: - | J12: - | K12: 1
A13: Lipki | B13: 10 | C13: 8 | D13: 2 | E13: - | F13: - | G13: 1 | H13: tak | I13: 1 | J13: - | K13: 1
A14: Lipki | B14: 11 | C14: 5 | D14: 1 | E14: - | F14: - | G14: 1 | H14: tak | I14: - | J14: - | K14: 1
A15: Lipki | B15: 11A | C15: 5 | D15: 2 | E15: - | F15: 1 | G15: - | H15: tak | I15: 1 | J15: - | K15: 1
A16: Lipki | B16: 12 | C16: 5 | D16: 1 | E16: - | F16: - | G16: 1 | H16: tak | I16: - | J16: - | K16: 1
A17: Lipki | B17: 12A | C17: 7 | D17: 2 | E17: - | F17: - | G17: 1 | H17: nie | I17: 1 | J17: - | K17: 1
A18: Lipki | B18: 12/3 | C18: 1 | D18: 1 | E18: - | F18: 1 | G18: - | H18: tak | I18: - | J18: - | K18: 1
A19: Lipki | B19: 12/12 | C19: 2 | D19: 1 | E19: - | F19: - | G19: 1 | H19: nie | I19: - | J19: - | K19: 1
A20: Lipki | B20: 15 | C20: 7 | D20: 2 | E20: - | F20: - | G20: 2 | H20: nie | I20: - | J20: - | K20: 1
A21: Lipki | B21: 16 | C21: 6 | D21: 2 | E21: - | F21: - | G21: 1 | H21: tak | I21: 1 | J21: - | K21: 1
A22: Lipki | B22: 17 | C22: 2 | D22: 1 | E22: - | F22: - | G22: 1 | H22: nie | I22: - | J22: - | K22: 1
A23: Lipki | B23: 18 | C23: 5 | D23: 1 | E23: - | F23: - | G23: 1 | H23: nie | I23: - | J23: - | K23: 1
A24: Lipki | B24: 19 | C24: 2 | D24: 1 | E24: - | F24: - | G24: 1 | H24: tak | I24: - | J24: - | K24: 1
A25: Lipki | B25: 20 | C25: 5 | D25: 1 | E25: - | F25: - | G25: 1 | H25: tak | I25: - | J25: - | K25: 1
A26: Lipki | B26: 21 | C26: 2 | D26: 1 | E26: - | F26: - | G26: - | H26: tak | I26: 1 | J26: - | K26: 1
A27: Lipki | B27: 22 | C27: 1 | D27: 1 | E27: - | F27: - | G27: - | H27: tak | I27: 1 | J27: - | K27: 1
A28: Lipki | B28: 23 | C28: 2 | D28: 1 | E28: - | F28: - | G28: 1 | H28: tak | I28: - | J28: - | K28: 1
A29: Lipki | B29: 24 | C29: 5 | D29: 1 | E29: - | F29: - | G29: - | H29: tak | I29: - | J29: 1 | K29: 1
A30: Lipki | B30: 25 | C30: 4 | D30: 3 | E30: - | F30: 2 | G30: 1 | H30: nie | I30: - | J30: - | K30: 1
A31: Lipki | B31: 27 | C31: 3 | D31: 1 | E31: - | F31: - | G31: - | H31: tak | I31: - | J31: 1 | K31: 1
A32: Lipki | B32: 28 | C32: 4 | D32: 1 | E32: - | F32: - | G32: - | H32: tak | I32: - | J32: 1 | K32: 1
A33: Lipki | B33: 29 | C33: 5 | D33: 1 | E33: - | F33: - | G33: 1 | H33: nie | I33: - | J33: - | K33: 1
A34: Lipki | B34: 30 | C34: 2 | D34: 1 | E34: - | F34: - | G34: 1 | H34: nie | I34: - | J34: - | K34: 1
A35: Lipki | B35: 31 | C35: 6 | D35: 2 | E35: - | F35: - | G35: 1 | H35: nie | I35: 1 | J35: - | K35: 1
A36: Lipki | B36: 33 | C36: 7 | D36: 2 | E36: - | F36: - | G36: 2 | H36: tak | I36: - | J36: - | K36: 1
A37: Lipki | B37: 33A | C37: 3 | D37: 1 | E37: - | F37: - | G37: - | H37: tak | I37: - | J37: 1 | K37: 1
A38: Lipki | B38: 34 | C38: 2 | D38: 1 | E38: - | F38: - | G38: 1 | H38: nie | I38: - | J38: - | K38: 1
A39: Lipki | B39: 40 | C39: 3 | D39: 1 | E39: - | F39: - | G39: - | H39: nie | I39: - | J39: 1 | K39: 1
A40: Lipki | B40: 43A | C40: 6 | D40: 2 | E40: - | F40: - | G40: 1 | H40: tak | I40: 1 | J40: - | K40: 1
A41: Lipki | B41: 44 | C41: 2 | D41: 1 | E41: - | F41: 1 | G41: - | H41: nie | I41: - | J41: - | K41: 1
A42: Lipki | B42: 45 | C42: 4 | D42: 2 | E42: - | F42: 1 | G42: - | H42: tak | I42: 1 | J42: - | K42: 1
A43: Lipki | B43: 48 | C43: 7 | D43: 2 | E43: - | F43: - | G43: 1 | H43: tak | I43: 1 | J43: - | K43: 1
A44: Lipki | B44: 50 | C44: 3 | D44: 1 | E44: - | F44: - | G44: - | H44: tak | I44: - | J44: 1 | K44: 1
A45: Lipki | B45: 51 | C45: 5 | D45: 1 | E45: - | F45: - | G45: 1 | H45: nie | I45: - | J45: - | K45: 1
A46: Lipki | B46: 52 | C46: 4 | D46: 1 | E46: - | F46: - | G46: - | H46: tak | I46: - | J46: 1 | K46: 1
A47: Lipki | B47: 53 | C47: 4 | D47: 1 | E47: - | F47: - | G47: 1 | H47: tak | I47: - | J47: - | K47: 1
A48: Lipki | B48: 54 | C48: 6 | D48: 2 | E48: - | F48: - | G48: 1 | H48: nie | I48: 1 | J48: - | K48: 1
A49: Lipki | B49: 55 | C49: 4 | D49: 1 | E49: - | F49: - | G49: - | H49: tak | I49: - | J49: 1 | K49: 1
A50: Lipki | B50: 56 | C50: 3 | D50: 1 | E50: - | F50: - | G50: - | H50: nie | I50: - | J50: 1 | K50: 1
A51: Lipki | B51: 57 | C51: 2 | D51: 1 | E51: - | F51: - | G51: 1 | H51: tak | I51: - | J51: - | K51: 1
A52: Lipki | B52: 57A | C52: 3 | D52: 2 | E52: - | F52: 1 | G52: - | H52: nie | I52: 1 | J52: - | K52: 1
A53: Lipki | B53: 58 | C53: 6 | D53: 2 | E53: - | F53: - | G53: 1 | H53: nie | I53: 1 | J53: - | K53: 1
A54: Lipki | B54: 59 | C54: 1 | D54: 1 | E54: - | F54: 1 | G54: - | H54: nie | I54: - | J54: - | K54: 1
A55: Lipki | B55: 60 | C55: 2 | D55: 1 | E55: - | F55: - | G55: 1 | H55: tak | I55: - | J55: - | K55: 1
A56: Lipki | B56: 61 | C56: 4 | D56: 1 | E56: - | F56: - | G56: 1 | H56: nie | I56: - | J56: - | K56: 1
A57: Lipki | B57: 62A | C57: 2 | D57: 1 | E57: - | F57: - | G57: - | H57: nie | I57: 1 | J57: - | K57: 1
A58: Lipki | B58: 65 | C58: 3 | D58: 1 | E58: - | F58: - | G58: 1 | H58: nie | I58: - | J58: - | K58: 1
A59: Lipki | B59: 67 | C59: 2 | D59: 1 | E59: - | F59: - | G59: 1 | H59: tak | I59: - | J59: - | K59: 1
A60: Lipki | B60: 68 | C60: 3 | D60: 1 | E60: - | F60: - | G60: - | H60: tak | I60: - | J60: 1 | K60: 1
A61: Lipki | B61: 69 | C61: 2 | E61: - | F61: - | G61: - | H61: nie | I61: - | J61: - | K61: 1
A62: Lipki | B62: 69A | C62: 3 | D62: 2 | E62: - | F62: 1 | G62: - | H62: tak | I62: 1 | J62: - | K62: 1
A63: Lipki | B63: 71 | C63: 3 | D63: 2 | E63: - | F63: 1 | G63: - | H63: nie | I63: 1 | J63: - | K63: 1
A64: Lipki | B64: 73 | C64: 3 | D64: 1 | E64: - | F64: - | G64: - | H64: nie | I64: - | J64: 1 | K64: 1
A65: Lipki | B65: 74 | C65: 1 | D65: 2 | E65: - | F65: 2 | G65: - | H65: tak | I65: - | J65: - | K65: 1
A66: Lipki | B66: 76 | C66: 5 | D66: 2 | E66: - | F66: 1 | G66: - | H66: tak | I66: 1 | J66: - | K66: 1
A67: Lipki | B67: 76A | C67: 4 | D67: 1 | E67: - | F67: - | G67: 1 | H67: nie | I67: - | J67: - | K67: 1
A68: Lipki | B68: 76B | C68: 5 | D68: 2 | E68: 1 | F68: - | G68: - | H68: tak | I68: 1 | J68: - | K68: 1
A69: Lipki | B69: 76C | C69: 2 | D69: 1 | E69: - | F69: 1 | G69: - | H69: nie | I69: - | J69: - | K69: 1
A70: Lipki | B70: 76D | C70: 2 | D70: 1 | E70: - | F70: 1 | G70: - | H70: tak | I70: - | J70: - | K70: 1
A71: Lipki | B71: 76E | C71: 5 | D71: 2 | E71: - | F71: 1 | G71: - | H71: nie | I71: 1 | J71: - | K71: 1
A72: Lipki | B72: 77 | C72: 9 | D72: 2 | E72: - | F72: - | G72: 1 | H72: tak | I72: - | J72: 1 | K72: 1
A73: Lipki | B73: 80 | C73: 1 | D73: 1 | E73: - | F73: - | G73: - | H73: nie | I73: 1 | J73: - | K73: 1
A74: Lipki | B74: 82 | C74: 3 | D74: 2 | E74: - | F74: 1 | G74: - | H74: tak | I74: 1 | J74: - | K74: 1
A75: Lipki | B75: 83 | C75: 3 | D75: 1 | E75: - | F75: - | G75: - | H75: tak | I75: - | J75: 1 | K75: 1
A76: Lipki | B76: 85 | C76: 2 | D76: 1 | E76: - | F76: - | G76: 1 | H76: tak | I76: - | J76: - | K76: 1
A77: Lipki | B77: 86 | C77: 8 | D77: 2 | E77: - | F77: - | G77: 1 | H77: nie | I77: 1 | J77: - | K77: 1
A78: Lipki | B78: 88 | C78: 3 | D78: 1 | E78: - | F78: - | G78: - | H78: tak | I78: - | J78: 1 | K78: 1
A79: Lipki | B79: 88a | C79: 6 | D79: 2 | E79: - | F79: - | G79: 1 | H79: nie | I79: 1 | J79: - | K79: 1
A80: Lipki | B80: 89 | C80: 3 | E80: - | F80: - | G80: - | H80: nie | I80: - | J80: - | K80: 1
A81: Lipki | B81: 90 | C81: 5 | D81: 1 | E81: - | F81: - | G81: 1 | H81: tak | I81: - | J81: - | K81: 1
A82: Lipki | B82: 90a | C82: 2 | D82: 1 | E82: - | F82: - | G82: 1 | H82: nie | I82: - | J82: - | K82: 1
A83: Lipki | B83: 91 | C83: 2 | D83: 1 | E83: - | F83: 1 | G83: - | H83: tak | I83: - | J83: - | K83: 1
A84: Lipki | B84: 92 | C84: 2 | D84: 1 | E84: - | F84: - | G84: - | H84: tak | I84: 1 | J84: - | K84: 1
A85: Lipki | B85: 94 | C85: 2 | D85: 1 | E85: - | F85: - | G85: 1 | H85: tak | I85: - | J85: - | K85: 1
A86: Lipki | B86: 96 | C86: 4 | D86: 1 | E86: - | F86: - | G86: 1 | H86: tak | I86: - | J86: - | K86: 1
A87: Lipki | B87: 98 | C87: 4 | D87: 1 | E87: - | F87: - | G87: 1 | H87: tak | I87: - | J87: - | K87: 1
A88: Lipki | B88: 100 | C88: 5 | D88: 1 | E88: - | F88: - | G88: 1 | H88: tak | I88: - | J88: - | K88: 1
A89: Lipki | B89: 100 | C89: 3 | D89: 1 | E89: - | F89: - | G89: 1 | H89: tak | I89: - | J89: - | K89: 1
A90: Lipki | B90: 101 | C90: 6 | D90: 2 | E90: - | F90: - | G90: 1 | H90: tak | I90: 1 | J90: - | K90: 1
A91: Lipki | B91: 102 | C91: 6 | D91: 2 | E91: - | F91: - | G91: 2 | H91: nie | I91: - | J91: - | K91: 1
A92: Lipki | B92: 103 | C92: 3 | D92: 1 | E92: - | F92: - | G92: - | H92: tak | I92: - | J92: 1 | K92: 1
A93: Lipki | B93: 103A | C93: 7 | D93: 2 | E93: - | F93: - | G93: - | H93: nie | I93: 1 | J93: 1 | K93: 1
A94: Lipki | B94: 104 | C94: 5 | D94: 2 | E94: - | F94: 1 | G94: - | H94: nie | I94: 1 | J94: - | K94: 1
A95: Lipki | B95: 105 | C95: 4 | D95: 1 | E95: - | F95: - | G95: - | H95: nie | I95: - | J95: 1 | K95: 1
A96: Lipki | B96: 105A | C96: 5 | D96: 1 | E96: - | F96: - | G96: 1 | H96: nie | I96: - | J96: - | K96: 1
A97: Lipki | B97: 106 | C97: 5 | D97: 1 | E97: - | F97: - | G97: - | H97: tak | I97: - | J97: 1 | K97: 1
A98: Lipki | B98: 107 | C98: 7 | D98: 2 | E98: - | F98: - | G98: 2 | H98: tak | I98: - | J98: - | K98: 1
A99: Lipki | B99: 108 | C99: 2 | D99: 1 | E99: - | F99: - | G99: 1 | H99: nie | I99: - | J99: - | K99: 1
A100: Lipki | B100: 108A | C100: 8 | D100: 2 | E100: - | F100: - | G100: 1 | H100: tak | I100: 1 | J100: - | K100: 1
A101: Lipki | B101: 109 | C101: 3 | D101: 1 | E101: - | F101: - | G101: 1 | H101: tak | I101: - | J101: - | K101: 1
A102: Lipki | B102: 111 | C102: 6 | D102: 2 | E102: - | F102: - | G102: - | H102: tak | I102: 1 | J102: 1 | K102: 1
A103: Lipki | B103: 112 | C103: 4 | D103: 1 | E103: - | F103: - | G103: 1 | H103: nie | I103: - | J103: - | K103: 1
A104: Lipki | B104: 113 | C104: 4 | D104: 1 | E104: - | F104: - | G104: 1 | H104: nie | I104: - | J104: - | K104: 1
A105: Lipki | B105: 114 | C105: 6 | D105: 2 | E105: - | F105: - | G105: - | H105: tak | I105: 1 | J105: 1 | K105: 1
A106: Lipki | B106: 115A | C106: 1 | D106: 1 | E106: - | F106: - | G106: 1 | H106: tak | I106: - | J106: - | K106: 1
A107: Lipki | B107: 116 | C107: 4 | D107: 1 | E107: - | F107: - | G107: 1 | H107: tak | I107: - | J107: - | K107: 1
A108: Lipki | B108: 117 | C108: 8 | D108: 2 | E108: - | F108: - | G108: - | H108: nie | I108: 1 | J108: 1 | K108: 1
A109: Lipki | B109: 118 | C109: 5 | D109: 1 | E109: - | F109: - | G109: 1 | H109: tak | I109: - | J109: - | K109: 1
A110: Lipki | B110: 119 | C110: 2 | D110: 1 | E110: - | F110: - | G110: 1 | H110: nie | I110: - | J110: - | K110: 1
A111: Lipki | B111: 120 | C111: 5 | D111: 1 | E111: - | F111: - | G111: 1 | H111: nie | I111: - | J111: - | K111: 1
A112: Lipki | B112: 120A | C112: 2 | D112: 1 | E112: - | F112: - | G112: 1 | H112: nie | I112: - | J112: - | K112: 1
A113: Lipki | B113: 121 | C113: 2 | D113: 1 | E113: - | F113: - | G113: - | H113: nie | I113: 1 | J113: - | K113: 1
A114: Lipki | B114: 122 | C114: 4 | D114: 1 | E114: - | F114: - | G114: - | H114: tak | I114: - | J114: 1 | K114: 1
A115: Lipki | B115: 123 | C115: 1 | D115: 1 | E115: - | F115: - | G115: 1 | H115: tak | I115: - | J115: - | K115: 1
A116: Lipki | B116: 125C | C116: 4 | D116: 2 | E116: - | F116: 1 | G116: - | H116: nie | I116: 1 | J116: - | K116: 1
A117: Lipki | B117: 127 | C117: 3 | D117: 1 | E117: - | F117: - | G117: - | H117: nie | I117: - | J117: 1 | K117: 1
A118: Lipki | B118: 132 | C118: 4 | D118: 1 | E118: - | F118: - | G118: 1 | H118: nie | I118: - | J118: - | K118: 1
B119: suma | C119: =SUM(C4:C118) -> 443 | D119: =SUM(D4:D118) -> 151 | E119: =SUM(E4:E118) -> 1 | F119: =SUM(F4:F118) -> 21 | G119: =SUM(G4:G118) -> 69 | I119: =SUM(I4:I118) -> 36 | J119: =SUM(J4:J118) -> 24 | K119: =SUM(K4:K118) -> 115
A124: nieruchomości zamieszkałe: | C124: 115

Sheet Lipki ul.Spac,Spor,Szk,Ogr.
A1: Miejscowość | B1: Ulica | C1: Nr posesji | D1: Liczba Mieszkańców | E1: Pojemniki zadeklarowane (odpady zmieszane) | H1: kompostownik | I1: Zapotrzebowanie na pojemniki | L1: Uwagi
I2: odpady zmieszane | K2: szkło
E3: 110 l. | F3: 120 l. | G3: 240 l. | I3: 120 l. | J3: 240 l. | K3: 120 l.
A4: Lipki | B4: Spacerowa | C4: 1 | D4: 2 | E4: - | F4: - | G4: - | H4: nie | I4: 1 | J4: - | K4: 1
A5: Lipki | B5: Spacerowa | C5: 10 | D5: 4 | E5: - | F5: - | G5: - | H5: nie | I5: - | J5: 1 | K5: 1
A6: Lipki | B6: Spacerowa | C6: 14 | D6: 4 | E6: - | F6: - | G6: - | H6: tak | I6: - | J6: 1 | K6: 1
A7: Lipki | B7: Spacerowa | C7: 15 | D7: 13 | E7: - | F7: - | G7: 1 | H7: tak | I7: - | J7: 1 | K7: 1
A8: Lipki | B8: Spacerowa | C8: 30 | D8: 5 | E8: - | F8: 1 | G8: - | H8: tak | I8: 1 | J8: - | K8: 1
C9: suma | D9: =SUM(D4:D8) -> 28 | E9: =SUM(E4:E8) -> 0 | F9: =SUM(F4:F8) -> 1 | G9: =SUM(G4:G8) -> 1 | I9: =SUM(I4:I8) -> 2 | J9: =SUM(J4:J8) -> 3 | K9: =SUM(K4:K8) -> 5
A13: Miejscowość | B13: Ulica | C13: Nr posesji | D13: Liczba Mieszkańców | E13: Pojemniki zadeklarowane | H13: kompostownik | I13: Zapotrzebowanie na pojemniki | L13: Uwagi
I14: odpady zmieszane | K14: szkło
E15: 110 l | F15: 120 l | G15: 240 l | I15: 120 l. | J15: 240 l. | K15: 120 l.
A16: Lipki | B16: Spokojna | C16: 2 | D16: 2 | E16: - | F16: - | G16: - | H16: nie | I16: 1 | J16: - | K16: 1
A17: Lipki | B17: Spokojna | C17: 12 | D17: 8 | E17: - | F17: - | G17: - | H17: nie | I17: 1 | J17: 1 | K17: 1
A18: Lipki | B18: Spokojna | C18: 30 | D18: 4 | E18: - | F18: - | G18: 1 | H18: nie | I18: - | J18: - | K18: 1
A19: Lipki | B19: Spokojna | C19: 40 | D19: 4 | E19: - | F19: - | G19: - | H19: tak | I19: - | J19: 1 | K19: 1
C20: suma | D20: =SUM(D17:D19) -> 16 | E20: 0 | F20: 0 | G20: 1 | I20: 1 | J20: 2 | K20: =SUM(K16:K19) -> 4
A24: Miejscowość | B24: Ulica | C24: Nr posesji | D24: Liczba Mieszkańców | E24: Pojemniki zadeklarowane | H24: kompostownik | I24: Zapotrzebowanie na pojemniki | L24: Uwagi
I25: odpady zmieszane | K25: szkło
E26: 110 l. | F26: 120 l. | G26: 240 l. | I26: 120 l. | J26: 240 l. | K26: 120 l.
A27: Lipki | B27: Szkolna | C27: 3 | D27: 4 | E27: - | F27: 1 | G27: 1 | H27: nie | I27: - | J27: - | K27: 1
A28: Lipki | B28: Szkolna | C28: 5 | D28: 2 | E28: - | F28: - | G28: - | H28: nie | I28: 1 | J28: - | K28: 1
A29: Lipki | B29: Szkolna | C29: 32 | D29: 3 | E29: - | F29: - | G29: 1 | H29: tak | I29: - | J29: - | K29: 1
C30: suma | D30: =SUM(D27:D29) -> 9 | E30: =SUM(E27:E29) -> 0 | F30: =SUM(F27:F29) -> 1 | G30: =SUM(G27:G29) -> 2 | I30: =SUM(I27:I29) -> 1 | J30: =SUM(J27:J29) -> 0 | K30: =SUM(K27:K29) -> 3
A34: Miejscowość | B34: Ulica | C34: Nr posesji | D34: Liczba Mieszkańców | E34: Pojemniki zadeklarowane | H34: kompostownik | I34: Zapotrzebowanie na pojemniki | L34: Uwagi
I35: odpady zmieszane | K35: szkło
E36: 110 l | F36: 120 l | G36: 240 l | I36: 120 l | J36: 240 l | K36: 120 l.
A37: Lipki | B37: Sportowa | C37: 3 | D37: 8 | E37: - | F37: - | G37: - | H37: nie | I37: 1 | J37: 1 | K37: 1
A38: Lipki | B38: Sportowa | C38: 4 | D38: 5 | E38: - | F38: - | G38: 1 | H38: tak | I38: - | J38: - | K38: 1
A39: Lipki | B39: Sportowa | C39: 6 | D39: 5 | E39: - | F39: - | G39: 1 | H39: tak | I39: - | J39: - | K39: 1
C40: suma | D40: =SUM(D37:D39) -> 18 | E40: 0 | F40: 0 | G40: 2 | I40: 1 | J40: 1 | K40: =SUM(K37:K39) -> 3
A44: Miejscowość | B44: Ulica | C44: Nr posesji | D44: Liczba Mieszkańców | E44: Pojemniki zadeklarowane | H44: kompostownik | I44: Zapotrzebowanie na pojemniki | L44: Uwagi
I45: odpady zmieszane | K45: szkło
E46: 110 l. | F46: 120 l. | G46: 240 l. | I46: 120 l. | J46: 240 l. | K46: 120 l.
A47: Lipki | B47: Ogrodowa | C47: 5 | D47: 4 | E47: - | F47: - | G47: - | H47: nie | I47: - | J47: 1 | K47: 1
A48: Lipki | B48: Ogrodowa | C48: 6 | D48: 4 | E48: - | F48: - | G48: - | H48: tak | I48: - | J48: 1 | K48: 1
A49: Lipki | B49: Ogrodowa | C49: 13 | D49: 2 | E49: - | F49: - | G49: - | H49: nie | I49: 1 | J49: - | K49: 1
A50: Lipki | B50: Ogrodowa | C50: 14 | D50: 3 | E50: - | F50: - | G50: 1 | H50: tak | I50: - | J50: - | K50: 1
A51: Lipki | B51: Ogrodowa | C51: 16 | D51: 2 | E51: - | F51: 1 | G51: - | H51: tak | I51: - | J51: - | K51: 1
A52: Lipki | B52: Ogrodowa | C52: 17 | D52: 4 | E52: - | F52: - | G52: - | H52: tak | I52: - | J52: 1 | K52: 1
A53: Lipki | B53: Ogrodowa | C53: 18 | D53: 4 | E53: - | F53: - | G53: - | H53: nie | I53: - | J53: 1 | K53: 1
A54: Lipki | B54: Ogrodowa | C54: 19 | D54: 3 | E54: - | F54: - | G54: - | H54: tak | I54: - | J54: 1 | K54: 1
C55: suma | D55: =SUM(D49:D54) -> 18 | E55: =SUM(E54:E54) -> 0 | F55: =SUM(F51:F54) -> 1 | G55: =SUM(G50:G54) -> 1 | I55: =SUM(I49:I54) -> 1 | J55: 1 | K55: =SUM(K47:K54) -> 8
A58: nieruchomości zamieszkałe: | C58: 23

Sheet Lipki ul.Polna, Kolejowa
A1: Miejscowość | B1: Ulica | C1: Nr posesji | D1: Liczba Mieszkańców | E1: Pojemniki zadeklarowane | H1: kompostownik | I1: Zapotrzebowanie na pojemniki | L1: Uwagi
I2: odpady zmieszane | K2: szkło
E3: 110 l. | F3: 120 l. | G3: 240 l. | I3: 120 l. | J3: 240 l. | K3: 120 l.
A4: Lipki | B4: Polna | C4: 2 | D4: 5 | E4: - | F4: - | G4: 1 | H4: nie | I4: - | J4: - | K4: 1
A5: Lipki | B5: Polna | C5: 3 | D5: 4 | E5: - | F5: - | G5: - | H5: nie | I5: - | J5: 1 | K5: 1
C6: suma | D6: =SUM(D4:D5) -> 9 | E6: =SUM(E5) -> 0 | F6: =SUM(F5) -> 0 | G6: =SUM(G4:G5) -> 1 | I6: =SUM(I5) -> 0 | J6: =SUM(J5) -> 1 | K6: =SUM(K4:K5) -> 2
A10: Miejscowość | B10: Ulica | C10: Nr posesji | D10: Liczba Mieszkańców | E10: Pojemniki zadeklarowane | H10: kompostownik | I10: Zapotrzebowanie na pojemniki | L10: Uwagi
I11: odpady zmieszane | K11: szkło
E12: 110 l. | F12: 120 l. | G12: 240 l. | I12: 120 l. | J12: 240 l. | K12: 120 l.
A13: Lipki | B13: Kolejowa | C13: 3 | D13: 2 | E13: - | F13: - | G13: 1 | H13: tak | I13: - | J13: - | K13: 1
A14: Lipki | B14: Kolejowa | C14: 9 | D14: 4 | E14: - | F14: 1 | G14: - | H14: tak | I14: 1 | J14: - | K14: 1
A15: Lipki | B15: Kolejowa | C15: 10 | D15: 4 | E15: - | F15: - | G15: 1 | H15: tak | I15: - | J15: - | K15: 1
A16: Lipki | B16: Kolejowa | C16: 12 | D16: 6 | E16: - | F16: 1 | G16: - | H16: tak | I16: - | J16: 1 | K16: 1
A17: Lipki | B17: Kolejowa | C17: 13A | D17: 1 | E17: 1 | F17: - | G17: - | H17: nie | I17: - | J17: - | K17: 1
A18: Lipki | B18: Kolejowa | C18: 13B | D18: 2 | E18: - | F18: 1 | G18: - | H18: tak | I18: - | J18: - | K18: 1
A19: Lipki | B19: Kolejowa | C19: 13D | D19: 7 | E19: 1 | F19: - | G19: - | H19: nie | I19: - | J19: 1 | K19: 1
A20: Lipki | B20: Kolejowa | C20: 14 | D20: 1 | E20: - | F20: 1 | G20: - | H20: tak | I20: - | J20: - | K20: 1
A21: Lipki | B21: Kolejowa | C21: 15 | D21: 3 | E21: - | F21: - | G21: 1 | H21: nie | I21: - | J21: - | K21: 1
A22: Lipki | B22: Kolejowa | C22: 16 | D22: 6 | E22: - | F22: - | G22: 1 | H22: tak | I22: 1 | J22: - | K22: 1
A23: Lipki | B23: Kolejowa | C23: 17 | D23: 4 | E23: - | F23: - | G23: 1 | H23: tak | I23: - | J23: - | K23: 1
A24: Lipki | B24: Kolejowa | C24: 18 | D24: 3 | E24: - | F24: - | G24: 1 | H24: tak | I24: - | J24: - | K24: 1
A25: Lipki | B25: Kolejowa | C25: 19 | D25: 5 | E25: - | F25: 1 | G25: - | H25: nie | I25: 1 | J25: - | K25: 1
A26: Lipki | B26: Kolejowa | C26: 19 | D26: 3 | E26: - | F26: - | G26: - | H26: tak | I26: - | J26: 1 | K26: 1
A27: Lipki | B27: Kolejowa | C27: 20 | D27: 8 | E27: - | F27: - | G27: 1 | H27: nie | I27: 1 | J27: - | K27: 1
A28: Lipki | B28: Kolejowa | C28: 32 | D28: 5 | E28: - | F28: 1 | G28: - | H28: nie | I28: 1 | J28: - | K28: 1
A29: Lipki | B29: Kolejowa | C29: 36 | D29: 4 | E29: - | F29: - | G29: 1 | H29: tak | I29: - | J29: - | K29: 1
A30: Lipki | B30: Kolejowa | C30: 38 | D30: 3 | E30: - | F30: - | G30: 1 | H30: nie | I30: - | J30: - | K30: 1
A31: Lipki | B31: Kolejowa | C31: 40 | D31: 1 | E31: - | F31: - | G31: 1 | H31: nie | I31: - | J31: - | K31: 1
A32: Lipki | B32: Kolejowa | C32: 74 | D32: 1 | E32: - | F32: - | G32: 1 | H32: tak | I32: - | J32: - | K32: 1
C33: suma | D33: =SUM(D13:D32) -> 73 | E33: =SUM(E13:E32) -> 2 | F33: =SUM(F13:F32) -> 6 | G33: =SUM(G13:G32) -> 11 | I33: =SUM(I13:I32) -> 5 | J33: =SUM(J15:J32) -> 3 | K33: =SUM(K13:K32) -> 20
A36: nieruchomości zamieszkałe: | C36: 22

Sheet Łukowice Brzeskie
A1: Miejscowość | B1: Nr posesji | C1: Liczba Mieszkańców | D1: Pojemniki zadeklarowane | G1: kompostownik | H1: Zapotrzebowanie na pojemniki | K1: Uwagi
H2: odpady zmieszane | J2: szkło
D3: 110 l. | E3: 120 l. | F3: 240 l. | H3: 120 l. | I3: 240 l. | J3: 120 l.
A4: Łukowice Brzeskie | B4: 1 | C4: 3 | D4: - | E4: - | F4: 1 | G4: tak | H4: - | I4: - | J4: 1
A5: Łukowice Brzeskie | B5: 2 | C5: 4 | D5: - | E5: 1 | F5: - | G5: tak | H5: 1 | I5: - | J5: 1
A6: Łukowice Brzeskie | B6: 3 | C6: 5 | D6: - | E6: 1 | F6: - | G6: tak | H6: 1 | I6: - | J6: 1
A7: Łukowice Brzeskie | B7: 4 | C7: 2 | D7: - | E7: - | F7: 1 | G7: tak | H7: - | I7: - | J7: 1
A8: Łukowice Brzeskie | B8: 5 | C8: 7 | D8: - | E8: 1 | F8: - | G8: tak | H8: - | I8: 1 | J8: 1
A9: Łukowice Brzeskie | B9: 6 | C9: 4 | D9: - | E9: - | F9: 1 | G9: tak | H9: - | I9: - | J9: 1
A10: Łukowice Brzeskie | B10: 7 | C10: 4 | D10: - | E10: - | F10: 1 | G10: tak | H10: - | I10: - | J10: 1
A11: Łukowice Brzeskie | B11: 8 | C11: 8 | D11: - | E11: - | F11: 1 | G11: tak | H11: 1 | I11: - | J11: 1
A12: Łukowice Brzeskie | B12: 9 | C12: 5 | D12: - | E12: 1 | F12: - | G12: tak | H12: 1 | I12: - | J12: 1
A13: Łukowice Brzeskie | B13: 10 | C13: 6 | D13: - | E13: 1 | F13: - | G13: tak | H13: 1 | I13: - | J13: 1
A14: Łukowice Brzeskie | B14: 11 | C14: 3 | D14: - | E14: - | F14: 1 | G14: tak | H14: - | I14: - | J14: 1
A15: Łukowice Brzeskie | B15: 12 | C15: 5 | D15: - | E15: 1 | F15: 1 | G15: tak | H15: - | I15: - | J15: 1
A16: Łukowice Brzeskie | B16: 13 | C16: 1 | D16: - | E16: - | F16: - | G16: nie | H16: 1 | I16: - | J16: 1
A17: Łukowice Brzeskie | B17: 13 | C17: 3 | D17: - | E17: - | F17: - | G17: tak | H17: - | I17: 1 | J17: 1
A18: Łukowice Brzeskie | B18: 15 | C18: 2 | D18: - | E18: 1 | F18: - | G18: tak | H18: - | I18: - | J18: 1
A19: Łukowice Brzeskie | B19: 15 | C19: 1 | D19: - | E19: 1 | F19: - | G19: tak | H19: - | I19: - | J19: 1
A20: Łukowice Brzeskie | B20: 16 | C20: 1 | D20: - | E20: 1 | F20: - | G20: tak | H20: - | I20: - | J20: 1
A21: Łukowice Brzeskie | B21: 16B | C21: 3 | D21: - | E21: - | F21: - | G21: tak | H21: - | I21: 1 | J21: 1
A22: Łukowice Brzeskie | B22: 16C | C22: 1 | D22: 1 | E22: - | F22: - | G22: nie | H22: - | I22: - | J22: 1
A23: Łukowice Brzeskie | B23: 19 | C23: 4 | D23: 1 | E23: - | F23: - | G23: tak | H23: 1 | I23: - | J23: 1
A24: Łukowice Brzeskie | B24: 20 | C24: 4 | D24: - | E24: 1 | F24: - | G24: tak | H24: 1 | I24: - | J24: 1
A25: Łukowice Brzeskie | B25: 20 | C25: 4 | D25: - | E25: - | F25: - | G25: tak | H25: - | I25: 1 | J25: 1
A26: Łukowice Brzeskie | B26: 22 | C26: 2 | D26: - | E26: 1 | F26: 1 | G26: nie | H26: - | I26: - | J26: 1
A27: Łukowice Brzeskie | B27: 23 | C27: 4 | D27: - | E27: - | F27: - | G27: nie | H27: - | I27: - | J27: 1
A28: Łukowice Brzeskie | B28: 24 | C28: 2 | D28: 1 | E28: - | F28: - | G28: tak | H28: - | I28: - | J28: 1
A29: Łukowice Brzeskie | B29: 24A | C29: 5 | D29: - | E29: - | F29: 1 | G29: tak | H29: - | I29: - | J29: 1
A30: Łukowice Brzeskie | B30: 25 | C30: 4 | D30: - | E30: - | F30: 1 | G30: tak | H30: - | I30: - | J30: 1
A31: Łukowice Brzeskie | B31: 26 | C31: 1 | D31: - | E31: 1 | F31: - | G31: tak | H31: - | I31: - | J31: 1
A32: Łukowice Brzeskie | B32: 27 | C32: 6 | D32: - | E32: 1 | F32: - | G32: nie | H32: - | I32: 1 | J32: 1
A33: Łukowice Brzeskie | B33: 28 | C33: 3 | D33: - | E33: 1 | F33: - | G33: tak | H33: 1 | I33: - | J33: 1
A34: Łukowice Brzeskie | B34: 29 | C34: 2 | D34: - | E34: - | F34: - | G34: tak | H34: 1 | I34: - | J34: 1
A35: Łukowice Brzeskie | B35: 29a | C35: 2 | D35: 1 | E35: - | F35: - | G35: tak | H35: - | I35: - | J35: 1
A36: Łukowice Brzeskie | B36: 30 | C36: 5 | D36: - | E36: 1 | F36: - | G36: tak | H36: 1 | I36: - | J36: 1
A37: Łukowice Brzeskie | B37: 31 | C37: 4 | D37: - | E37: - | F37: - | G37: nie | H37: - | I37: 1 | J37: 1
A38: Łukowice Brzeskie | B38: 32 | C38: 2 | D38: - | E38: 1 | F38: - | G38: tak | H38: - | I38: - | J38: 1
A39: Łukowice Brzeskie | B39: 33 | C39: 2 | D39: - | E39: - | F39: 1 | G39: tak | H39: - | I39: - | J39: 1
A40: Łukowice Brzeskie | B40: 34 | C40: 5 | D40: - | E40: 1 | F40: - | G40: nie | H40: 1 | I40: - | J40: 1
A41: Łukowice Brzeskie | B41: 35 | C41: 2 | D41: 1 | E41: - | F41: - | G41: tak | H41: - | I41: - | J41: 1
A42: Łukowice Brzeskie | B42: 36 | C42: 2 | D42: - | E42: 1 | F42: - | G42: tak | H42: - | I42: - | J42: 1
A43: Łukowice Brzeskie | B43: 37 | C43: 3 | D43: - | E43: - | F43: 1 | G43: tak | H43: - | I43: - | J43: 1
A44: Łukowice Brzeskie | B44: 38 | C44: 2 | D44: - | E44: 1 | F44: - | G44: tak | H44: - | I44: - | J44: 1
A45: Łukowice Brzeskie | B45: 40 | C45: 2 | D45: - | E45: 2 | F45: - | G45: nie | H45: - | I45: - | J45: 1
A46: Łukowice Brzeskie | B46: 41 | C46: 3 | D46: - | E46: 1 | F46: - | G46: tak | H46: 1 | I46: - | J46: 1
A47: Łukowice Brzeskie | B47: 42 | C47: 2 | D47: - | E47: 1 | F47: 1 | G47: tak | H47: - | I47: - | J47: 1
A48: Łukowice Brzeskie | B48: 44 | C48: 1 | D48: - | E48: 1 | F48: - | G48: nie | H48: - | I48: - | J48: 1
A49: Łukowice Brzeskie | B49: 45 | C49: 2 | D49: - | E49: - | F49: 1 | G49: tak | H49: - | I49: - | J49: 1
A50: Łukowice Brzeskie | B50: 46 | C50: 2 | D50: - | E50: 2 | F50: - | G50: tak | H50: - | I50: - | J50: 1
A51: Łukowice Brzeskie | B51: 47 | C51: 2 | D51: - | E51: 1 | F51: - | G51: nie | H51: - | I51: - | J51: 1
A52: Łukowice Brzeskie | B52: 48 | C52: 4 | D52: - | E52: 1 | F52: - | G52: tak | H52: 1 | I52: - | J52: 1
A53: Łukowice Brzeskie | B53: 48 | C53: 5 | D53: - | E53: 1 | F53: - | G53: tak | H53: 1 | I53: - | J53: 1
A54: Łukowice Brzeskie | B54: 51A | C54: 4 | D54: - | E54: 1 | F54: - | G54: nie | H54: 1 | I54: - | J54: 1
A55: Łukowice Brzeskie | B55: 51/1 | C55: 1 | D55: - | E55: 1 | F55: - | G55: nie | H55: - | I55: - | J55: 1
A56: Łukowice Brzeskie | B56: 51/2 | C56: 7 | D56: - | E56: - | F56: - | G56: tak | H56: 1 | I56: 1 | J56: 1
A57: Łukowice Brzeskie | B57: 51/4 | C57: 1 | D57: - | E57: 1 | F57: - | G57: tak | H57: - | I57: - | J57: 1
A58: Łukowice Brzeskie | B58: 51/5 | C58: 1 | D58: - | E58: 1 | F58: - | G58: tak | H58: - | I58: - | J58: 1
A59: Łukowice Brzeskie | B59: 51/6 | C59: 1 | D59: 1 | E59: - | F59: - | G59: tak | H59: - | I59: - | J59: 1
A60: Łukowice Brzeskie | B60: 52 | C60: 4 | D60: - | E60: 1 | F60: - | G60: tak | H60: 1 | I60: - | J60: 1
A61: Łukowice Brzeskie | B61: 52A | C61: 4 | D61: - | E61: 1 | F61: - | G61: tak | H61: 1 | I61: - | J61: 1
A62: Łukowice Brzeskie | B62: 53/1 | C62: 2 | D62: - | E62: - | F62: - | G62: tak | H62: 1 | I62: - | J62: 1
A63: Łukowice Brzeskie | B63: 53/2 | C63: 5 | D63: - | E63: - | F63: 1 | G63: nie | H63: - | I63: - | J63: 1
A64: Łukowice Brzeskie | B64: 54 | C64: 2 | D64: - | E64: - | F64: 1 | G64: tak | H64: - | I64: - | J64: 1
A65: Łukowice Brzeskie | B65: 55/1 | C65: 4 | F65: 1 | M65: UWAGA: Budynki wielorodzinne 55, 56, 57, 58, 59 Wykonawca może wyposażyć w pojemniki zbiorcze, zamiast indywidualnych po uzgodnieniu z zarządcą
A66: Łukowice Brzeskie | B66: 55/2 | C66: 5 | F66: 1
A67: Łukowice Brzeskie | B67: 55/3 | C67: 2 | E67: 1
A68: Łukowice Brzeskie | B68: 55/4 | C68: 2 | E68: 1 | H68: 1
A69: Łukowice Brzeskie | B69: 55/5 | C69: 1 | F69: 1
A70: Łukowice Brzeskie | B70: 55/6 | C70: 3 | E70: 1 | H70: 1
A71: Łukowice Brzeskie | B71: 56/1 | C71: 2 | E71: 1
A72: Łukowice Brzeskie | B72: 56/2 | C72: 1 | E72: 1
A73: Łukowice Brzeskie | B73: 56/3 | C73: 0 | H73: 1
A74: Łukowice Brzeskie | B74: 56/4 | C74: 2 | F74: 1
A75: Łukowice Brzeskie | B75: 56/5 | C75: 4 | E75: 1 | H75: 1
A76: Łukowice Brzeskie | B76: 56/6 | C76: 3 | F76: 1
A77: Łukowice Brzeskie | B77: 57/1 | C77: 2 | E77: 1 | H77: 1
A78: Łukowice Brzeskie | B78: 57/2 | C78: 2 | D78: 0 | E78: 0 | F78: 0 | H78: 0 | I78: 0
A79: Łukowice Brzeskie | B79: 57/3 | C79: 3 | F79: 1
A80: Łukowice Brzeskie | B80: 57/4 | C80: 3 | E80: 1 | H80: 1
A81: Łukowice Brzeskie | B81: 57/5 | C81: 5 | E81: 1 | H81: 1
A82: Łukowice Brzeskie | B82: 57/6 | C82: 3 | I82: 1
A83: Łukowice Brzeskie | B83: 58/1 | C83: 3 | E83: 1 | H83: 1
A84: Łukowice Brzeskie | B84: 58/2 | C84: 2 | E84: 1
A85: Łukowice Brzeskie | B85: 58/3 | C85: 4 | F85: 1
A86: Łukowice Brzeskie | B86: 58/4 | C86: 2 | F86: 1
A87: Łukowice Brzeskie | B87: 58/5 | C87: 2 | E87: 1
A88: Łukowice Brzeskie | B88: 58/6 | C88: 2 | E88: 1
A89: Łukowice Brzeskie | B89: 59/1 | C89: 2 | D89: - | E89: 1 | F89: - | G89: tak | H89: - | I89: - | J89: 1
A90: Łukowice Brzeskie | B90: 59/2 | C90: 1 | D90: - | E90: 1 | F90: - | G90: tak | H90: - | I90: - | J90: 1
A91: Łukowice Brzeskie | B91: 59/4 | C91: 2 | D91: - | E91: - | F91: - | G91: nie | H91: 1 | I91: - | J91: 1
A92: Łukowice Brzeskie | B92: 60 | C92: 2 | D92: - | E92: 1 | F92: - | G92: tak | H92: - | I92: - | J92: 1
A93: Łukowice Brzeskie | B93: 61 | C93: 2 | D93: - | E93: 1 | F93: - | G93: tak | H93: - | I93: - | J93: 1
A94: Łukowice Brzeskie | B94: 62 | C94: 2 | D94: - | E94: 1 | F94: - | G94: nie | H94: - | I94: - | J94: 1
A95: Łukowice Brzeskie | B95: 63 | C95: 2 | D95: - | E95: 1 | F95: - | G95: tak | H95: - | I95: - | J95: 1
A96: Łukowice Brzeskie | B96: 64 | C96: 2 | D96: - | E96: 1 | F96: - | G96: nie | H96: - | I96: - | J96: 1
A97: Łukowice Brzeskie | B97: 65 | C97: 1 | D97: - | E97: - | F97: 1 | G97: tak | H97: - | I97: - | J97: 1
A98: Łukowice Brzeskie | B98: 66 | C98: 4 | D98: - | E98: - | F98: 1 | G98: nie | H98: - | I98: - | J98: 1
A99: Łukowice Brzeskie | B99: 67 | C99: 3 | D99: - | E99: - | F99: 1 | G99: nie | H99: - | I99: - | J99: 1
A100: Łukowice Brzeskie | B100: 68 | C100: 1 | D100: - | E100: 1 | F100: - | G100: tak | H100: - | I100: - | J100: 1
A101: Łukowice Brzeskie | B101: 69 | C101: 4 | D101: - | E101: - | F101: 1 | G101: tak | H101: - | I101: - | J101: 1
A102: Łukowice Brzeskie | B102: 70 | C102: 2 | D102: - | E102: - | F102: - | G102: tak | H102: 1 | I102: - | J102: 1
A103: Łukowice Brzeskie | B103: 71 | C103: 2 | D103: - | E103: - | F103: 1 | G103: tak | H103: - | I103: - | J103: 1
A104: Łukowice Brzeskie | B104: 72 | C104: 2 | D104: - | E104: - | F104: 1 | G104: tak | H104: - | I104: - | J104: 1
A105: Łukowice Brzeskie | B105: 73/1 | C105: 4 | D105: - | E105: - | F105: 1 | G105: tak | H105: - | I105: - | J105: 1
A106: Łukowice Brzeskie | B106: 73/2 | C106: 1 | D106: - | E106: 1 | F106: - | G106: nie | H106: - | I106: - | J106: 1
A107: Łukowice Brzeskie | B107: 73/6 | C107: 7 | D107: - | E107: 1 | F107: - | G107: nie | H107: - | I107: 1 | J107: 1
A108: Łukowice Brzeskie | B108: 74 | C108: 5 | D108: - | E108: 1 | F108: - | G108: tak | H108: 1 | I108: - | J108: 1
A109: Łukowice Brzeskie | B109: 75/1 | C109: 3 | D109: - | E109: 1 | F109: - | G109: nie | H109: 1 | I109: - | J109: 1
A110: Łukowice Brzeskie | B110: 75/2 | C110: 6 | D110: - | E110: 1 | F110: - | G110: tak | H110: - | I110: 1 | J110: 1
A111: Łukowice Brzeskie | B111: 75/3 | C111: 4 | D111: - | E111: 1 | F111: - | G111: tak | H111: 1 | I111: - | J111: 1
A112: Łukowice Brzeskie | B112: 75/4 | C112: 2 | D112: - | E112: 1 | F112: - | G112: tak | H112: - | I112: - | J112: 1
A113: Łukowice Brzeskie | B113: 76 | C113: 4 | D113: - | E113: - | F113: 1 | G113: tak | H113: - | I113: - | J113: 1
A114: Łukowice Brzeskie | B114: 77 | C114: 1 | D114: - | E114: 1 | F114: - | G114: tak | H114: - | I114: - | J114: 1
A115: Łukowice Brzeskie | B115: 78 | C115: 2 | D115: - | E115: - | F115: 1 | G115: tak | H115: - | I115: - | J115: 1
A116: Łukowice Brzeskie | B116: 78/1 | C116: 3 | D116: - | E116: - | F116: 1 | G116: tak | H116: - | I116: - | J116: 1
A117: Łukowice Brzeskie | B117: 79/1 | C117: 3 | D117: - | E117: - | F117: 1 | G117: tak | H117: - | I117: - | J117: 1
A118: Łukowice Brzeskie | B118: 80 | C118: 5 | D118: - | E118: - | F118: 1 | G118: tak | H118: - | I118: - | J118: 1
A119: Łukowice Brzeskie | B119: 81 | C119: 1 | D119: - | E119: 1 | F119: - | G119: tak | H119: - | I119: - | J119: 1
A120: Łukowice Brzeskie | B120: 82 | C120: 2 | D120: - | E120: 1 | F120: - | G120: tak | H120: - | I120: - | J120: 1
A121: Łukowice Brzeskie | B121: 83 | C121: 1 | D121: - | E121: - | F121: 1 | G121: tak | H121: - | I121: - | J121: 1
A122: Łukowice Brzeskie | B122: 84 | C122: 4 | D122: - | E122: 1 | F122: - | G122: tak | H122: 1 | I122: - | J122: 1
A123: Łukowice Brzeskie | B123: 85 | C123: 3 | D123: - | E123: - | F123: 1 | G123: tak | H123: - | I123: - | J123: 1
A124: Łukowice Brzeskie | B124: 86 | C124: 2 | D124: - | E124: - | F124: 1 | G124: tak | H124: - | I124: - | J124: 1
A125: Łukowice Brzeskie | B125: 87 | C125: 2 | D125: - | E125: 1 | F125: - | G125: nie | H125: - | I125: - | J125: 1
A126: Łukowice Brzeskie | B126: 87A | C126: 3 | D126: - | E126: - | F126: 1 | G126: nie | H126: - | I126: - | J126: 1
A127: Łukowice Brzeskie | B127: 88 | C127: 2 | D127: - | E127: 1 | F127: - | G127: tak | H127: - | I127: - | J127: 1
A128: Łukowice Brzeskie | B128: 89/1 | C128: 4 | D128: - | E128: 1 | F128: - | G128: tak | H128: 1 | I128: - | J128: 1
A129: Łukowice Brzeskie | B129: 89/2 | C129: 3 | D129: - | E129: - | F129: 1 | G129: nie | H129: - | I129: - | J129: 1
A130: Łukowice Brzeskie | B130: 89/3 | C130: 4 | D130: 1 | E130: - | F130: - | G130: nie | H130: 1 | I130: - | J130: 1
A131: Łukowice Brzeskie | B131: 89/4 | C131: 2 | D131: - | E131: 1 | F131: - | G131: nie | H131: - | I131: - | J131: 1
A132: Łukowice Brzeskie | B132: 89/5 i 6 | C132: 4 | D132: - | E132: 1 | F132: - | G132: nie | H132: 1 | I132: - | J132: 1
A133: Łukowice Brzeskie | B133: 91/1 | C133: 4 | D133: - | E133: 1 | F133: - | G133: tak | H133: 1 | I133: - | J133: 1
A134: Łukowice Brzeskie | B134: 91/2 | C134: 2 | D134: - | E134: 1 | F134: - | G134: tak | H134: - | I134: - | J134: 1
A135: Łukowice Brzeskie | B135: 91/3 | C135: 4 | D135: - | E135: 1 | F135: - | G135: tak | H135: 1 | I135: - | J135: 1
A136: Łukowice Brzeskie | B136: 91/4 | C136: 2 | D136: - | E136: - | F136: 1 | G136: tak | H136: - | I136: - | J136: 1
A137: Łukowice Brzeskie | B137: 92 | C137: 3 | D137: - | E137: 1 | F137: - | G137: tak | H137: 1 | I137: - | J137: 1
A138: Łukowice Brzeskie | B138: 93 | C138: 3 | D138: - | E138: - | F138: 1 | G138: tak | H138: - | I138: - | J138: 1
A139: Łukowice Brzeskie | B139: 94 | C139: 1 | D139: - | E139: 1 | F139: - | G139: tak | H139: - | I139: - | J139: 1
A140: Łukowice Brzeskie | B140: 95 | C140: 5 | D140: - | E140: - | F140: - | G140: tak | H140: - | I140: 1 | J140: 1
A141: Łukowice Brzeskie | B141: 96 | C141: 3 | D141: - | E141: - | F141: 1 | G141: tak | H141: - | I141: - | J141: 1
A142: Łukowice Brzeskie | B142: 96 | C142: 2 | D142: - | E142: - | F142: - | G142: tak | H142: 1 | I142: - | J142: 1
A143: Łukowice Brzeskie | B143: 97 | C143: 1 | D143: - | E143: 1 | F143: - | G143: tak | H143: - | I143: - | J143: 1
A144: Łukowice Brzeskie | B144: 98 | C144: 4 | D144: - | E144: 1 | F144: - | G144: tak | H144: 1 | I144: - | J144: 1
A145: Łukowice Brzeskie | B145: 99 | C145: 6 | D145: - | E145: - | F145: 2 | G145: tak | H145: - | I145: - | J145: 1
A146: Łukowice Brzeskie | B146: 100 | C146: 7 | D146: - | E146: - | F146: 1 | G146: tak | H146: 1 | I146: - | J146: 1
A147: Łukowice Brzeskie | B147: 102 | C147: 2 | D147: - | E147: - | F147: 1 | G147: tak | H147: - | I147: - | J147: 1
A148: Łukowice Brzeskie | B148: 103 | C148: 2 | D148: - | E148: 1 | F148: - | G148: tak | H148: - | I148: - | J148: 1
A149: Łukowice Brzeskie | B149: 105/1 | C149: 6 | D149: - | E149: - | F149: - | G149: tak | H149: 1 | I149: 1 | J149: 1
A150: Łukowice Brzeskie | B150: 106/2 | C150: 4 | D150: - | E150: - | F150: - | G150: nie | H150: - | I150: 1 | J150: 1
A151: Łukowice Brzeskie | B151: 109 | C151: 4 | D151: - | E151: 1 | F151: - | G151: tak | H151: 1 | I151: - | J151: 1
A152: Łukowice Brzeskie | B152: 110 | C152: 6 | D152: - | E152: 1 | F152: - | G152: tak | H152: - | I152: 1 | J152: 1
A153: Łukowice Brzeskie | B153: 111 | C153: 4 | D153: - | E153: - | F153: 1 | G153: nie | H153: - | I153: - | J153: 1
A154: Łukowice Brzeskie | B154: 112 | C154: 4 | D154: - | E154: - | F154: 1 | G154: tak | H154: - | I154: - | J154: 1
A155: Łukowice Brzeskie | B155: 113 | C155: 3 | D155: - | E155: - | F155: 1 | G155: nie | H155: - | I155: - | J155: 1
A156: Łukowice Brzeskie | B156: 114 | C156: 3 | D156: - | E156: - | F156: 1 | G156: tak | H156: - | I156: - | J156: 1
A157: Łukowice Brzeskie | B157: 119 | C157: 2 | D157: - | E157: - | F157: - | G157: tak | H157: 1 | I157: - | J157: 1
B158: suma | C158: =SUM(C4:C157) -> 463 | D158: =SUM(D4:D157) -> 7 | E158: =SUM(E4:E157) -> 82 | F158: =SUM(F4:F157) -> 52 | H158: =SUM(H4:H157) -> 46 | I158: =SUM(I4:I157) -> 14 | J158: =SUM(J4:J157) -> 130
A163: nieruchomości zamieszkałe: | C163: 154

Sheet Małujowice
A1: Miejscowość | B1: Nr posesji | C1: Liczba Mieszkańców | D1: Pojemniki zadeklarowane | G1: kompostownik | H1: Zapotrzebowanie na pojemniki | L1: Uwagi
H2: odpady zmieszane | J2: szkło | K2: szkło
D3: 110 l. | E3: 120 l. | F3: 240 l. | H3: 120 l. | I3: 240 l. | J3: 120 l. | K3: KP5
A4: Małujowice | B4: 1 | C4: 2 | D4: - | E4: - | F4: 1 | G4: tak | H4: - | I4: - | J4: 1 | K4: -
A5: Małujowice | B5: 2 | C5: 1 | D5: - | E5: 1 | F5: - | G5: nie | H5: - | I5: - | J5: 1 | K5: -
A6: Małujowice | B6: 3 | C6: 2 | D6: - | E6: - | F6: 1 | G6: nie | H6: - | I6: - | J6: 1 | K6: -
A7: Małujowice | B7: 4 | C7: 3 | D7: - | E7: - | F7: 1 | G7: tak | H7: - | I7: - | J7: 1 | K7: -
A8: Małujowice | B8: 4/1 | C8: 4 | D8: - | E8: - | F8: - | G8: nie | H8: - | I8: 1 | J8: 1 | K8: -
A9: Małujowice | B9: 5 | C9: 1 | D9: - | E9: - | F9: - | G9: nie | H9: 1 | I9: - | J9: 1 | K9: -
A10: Małujowice | B10: 6/2 | C10: 4 | D10: - | E10: - | F10: - | G10: tak | H10: - | I10: 1 | J10: 1 | K10: -
A11: Małujowice | B11: 6/3 | C11: 1 | D11: - | E11: - | F11: - | G11: nie | H11: 1 | I11: - | J11: 1 | K11: -
A12: Małujowice | B12: 7 | C12: 4 | D12: - | E12: - | F12: 1 | G12: nie | H12: - | I12: - | J12: 1 | K12: -
A13: Małujowice | B13: 8 | C13: 10 | D13: - | E13: - | F13: 1 | G13: tak | H13: - | I13: 1 | J13: 1 | K13: -
A14: Małujowice | B14: 9 | C14: 1 | D14: - | E14: 1 | F14: - | G14: nie | H14: - | I14: - | J14: 1 | K14: -
A15: Małujowice | B15: 10 | C15: 4 | D15: - | E15: 1 | F15: - | G15: nie | H15: 1 | I15: - | J15: 1 | K15: -
A16: Małujowice | B16: 11 | C16: 2 | D16: - | E16: - | F16: 1 | G16: tak | H16: - | I16: - | J16: 1 | K16: -
A17: Małujowice | B17: 13 | C17: 2 | D17: - | E17: - | F17: - | G17: tak | H17: 1 | I17: - | J17: 1 | K17: -
A18: Małujowice | B18: 14 | C18: 1 | D18: - | E18: - | F18: 1 | G18: tak | H18: - | I18: - | J18: 1 | K18: -
A19: Małujowice | B19: 14 | C19: 3 | D19: - | E19: - | F19: - | G19: tak | H19: - | I19: 1 | J19: 1 | K19: -
A20: Małujowice | B20: 15 | C20: 3 | D20: - | E20: - | F20: 1 | G20: tak | H20: - | I20: - | J20: 1 | K20: -
A21: Małujowice | B21: 15A | C21: 3 | D21: - | E21: 1 | F21: - | G21: nie | H21: 1 | I21: - | J21: 1 | K21: -
A22: Małujowice | B22: 16 | C22: 5 | D22: - | E22: - | F22: - | G22: nie | H22: - | I22: 1 | J22: 1 | K22: -
A23: Małujowice | B23: 17 | C23: 4 | D23: 1 | E23: - | F23: - | G23: tak | H23: 1 | I23: - | J23: 1 | K23: -
A24: Małujowice | B24: 19 | C24: 2 | D24: - | E24: 1 | F24: - | G24: tak | H24: - | I24: - | J24: 1 | K24: -
A25: Małujowice | B25: 20 | C25: 7 | D25: - | E25: - | F25: 1 | G25: tak | H25: 1 | I25: - | J25: 1 | K25: -
A26: Małujowice | B26: 20b | C26: 2 | D26: - | E26: - | F26: - | G26: nie | H26: 1 | I26: - | J26: 1 | K26: -
A27: Małujowice | B27: 21/1 | C27: 2 | K27: 1 | L27: zbiorczy pojemnik
A28: Małujowice | B28: 21/2 | C28: 2 | L28: zbiorczy pojemnik
A29: Małujowice | B29: 21/3 | C29: 4 | L29: zbiorczy pojemnik
A30: Małujowice | B30: 21/4 | C30: 3 | L30: zbiorczy pojemnik
A31: Małujowice | B31: 21/5 | C31: 4 | L31: zbiorczy pojemnik
A32: Małujowice | B32: 21/6 | C32: 1 | L32: zbiorczy pojemnik
A33: Małujowice | B33: 21/7 | C33: 4 | L33: zbiorczy pojemnik
A34: Małujowice | B34: 21/9 | C34: 4 | L34: zbiorczy pojemnik
A35: Małujowice | B35: 21/10 | C35: 5 | L35: zbiorczy pojemnik
A36: Małujowice | B36: 21/11 | C36: 2 | L36: zbiorczy pojemnik
A37: Małujowice | B37: 21B/1 | C37: 2 | D37: - | E37: - | F37: 1 | G37: nie | H37: - | I37: - | J37: 1 | K37: -
A38: Małujowice | B38: 21B/2 | C38: 2 | D38: - | E38: - | F38: - | G38: nie | H38: 1 | I38: - | J38: 1 | K38: -
A39: Małujowice | B39: 21B/4 | C39: 4 | D39: - | E39: - | F39: 1 | G39: nie | H39: - | I39: - | J39: 1 | K39: -
A40: Małujowice | B40: 21C/1 | C40: 1 | D40: - | E40: 1 | F40: - | G40: nie | H40: - | I40: - | J40: 1 | K40: -
A41: Małujowice | B41: 21C/2 | C41: 4 | D41: - | E41: 1 | F41: - | G41: tak | H41: 1 | I41: - | J41: 1 | K41: -
A42: Małujowice | B42: 21C/4 | C42: 1 | D42: - | E42: 1 | F42: - | G42: tak | H42: - | I42: - | J42: 1 | K42: -
A43: Małujowice | B43: 21d | C43: 1 | D43: - | E43: - | F43: 1 | G43: tak | H43: - | I43: - | J43: 1 | K43: -
A44: Małujowice | B44: 21e | C44: 2 | D44: - | E44: - | F44: 1 | G44: tak | H44: - | I44: - | J44: 1 | K44: -
A45: Małujowice | B45: 21f | C45: 2 | D45: - | E45: - | F45: 1 | G45: tak | H45: - | I45: - | J45: 1 | K45: -
A46: Małujowice | B46: 21g | C46: 4 | D46: - | E46: - | F46: 1 | G46: tak | H46: - | I46: - | J46: 1 | K46: -
A47: Małujowice | B47: 21H/1 | C47: 2 | D47: - | E47: 1 | F47: - | G47: tak | H47: - | I47: - | J47: 1 | K47: -
A48: Małujowice | B48: 21H/2 | C48: 2 | D48: - | E48: - | F48: 1 | G48: tak | H48: - | I48: - | J48: 1 | K48: -
A49: Małujowice | B49: 21H/3 | C49: 1 | D49: - | E49: - | F49: - | G49: nie | H49: 1 | I49: - | J49: 1 | K49: -
A50: Małujowice | B50: 21H/4 | C50: 1 | D50: - | E50: - | F50: 1 | G50: nie | H50: - | I50: - | J50: 1 | K50: -
A51: Małujowice | B51: 22 | C51: 3 | D51: - | E51: 1 | F51: - | G51: tak | H51: 1 | I51: - | J51: 1 | K51: -
A52: Małujowice | B52: 22a | C52: 4 | D52: - | E52: 1 | F52: - | G52: nie | H52: 1 | I52: - | J52: 1 | K52: -
A53: Małujowice | B53: 23 | C53: 4 | D53: - | E53: 1 | F53: - | G53: tak | H53: 1 | I53: - | J53: 1 | K53: -
A54: Małujowice | B54: 24a | C54: 1 | D54: - | E54: - | F54: 1 | G54: nie | H54: - | I54: - | J54: 1 | K54: -
A55: Małujowice | B55: 25 | C55: 2 | D55: - | E55: - | F55: - | G55: tak | H55: 1 | I55: - | J55: 1 | K55: -
A56: Małujowice | B56: 26 | C56: 4 | D56: - | E56: - | F56: - | G56: nie | H56: - | I56: 1 | J56: 1 | K56: -
A57: Małujowice | B57: 26A | C57: 2 | D57: - | E57: - | F57: 1 | G57: tak | H57: - | I57: - | J57: 1 | K57: -
A58: Małujowice | B58: 27 | C58: 3 | D58: - | E58: 1 | F58: - | G58: tak | H58: 1 | I58: - | J58: 1 | K58: -
A59: Małujowice | B59: 27A | C59: 2 | D59: - | E59: 1 | F59: - | G59: tak | H59: - | I59: - | J59: 1 | K59: -
A60: Małujowice | B60: 28 | C60: 5 | D60: - | E60: - | F60: 1 | G60: nie | H60: - | I60: - | J60: 1 | K60: -
A61: Małujowice | B61: 30 | C61: 4 | D61: 1 | E61: - | F61: - | G61: tak | H61: 1 | I61: - | J61: 1 | K61: -
A62: Małujowice | B62: 31 | C62: 1 | D62: - | E62: - | F62: 1 | G62: tak | H62: - | I62: - | J62: 1 | K62: -
A63: Małujowice | B63: 32 | C63: 3 | D63: - | E63: - | F63: 1 | G63: tak | H63: - | I63: - | J63: 1 | K63: -
A64: Małujowice | B64: 33 | C64: 9 | D64: - | E64: 1 | F64: - | G64: tak | H64: 1 | I64: 1 | J64: 1 | K64: -
A65: Małujowice | B65: 34 | C65: 5 | D65: - | E65: 1 | F65: - | G65: nie | H65: 1 | I65: - | J65: 1 | K65: -
A66: Małujowice | B66: 35 | C66: 4 | D66: - | E66: - | F66: - | G66: tak | H66: - | I66: 1 | J66: 1 | K66: -
A67: Małujowice | B67: 37 | C67: 3 | D67: - | E67: - | F67: - | G67: tak | H67: - | I67: 1 | J67: 1 | K67: -
A68: Małujowice | B68: 38 | C68: 7 | D68: - | E68: - | F68: 3 | G68: nie | H68: - | I68: - | J68: 1 | K68: -
A69: Małujowice | B69: 39 | C69: 1 | D69: - | E69: - | F69: 1 | G69: tak | H69: - | I69: - | J69: 1 | K69: -
A70: Małujowice | B70: 39A | C70: 5 | D70: - | E70: - | F70: 1 | G70: tak | H70: - | I70: - | J70: 1 | K70: -
A71: Małujowice | B71: 40 | C71: 2 | D71: - | E71: - | F71: 1 | G71: tak | H71: - | I71: - | J71: 1 | K71: -
A72: Małujowice | B72: 41 | C72: 16 | D72: - | E72: 1 | F72: - | G72: nie | H72: 1 | I72: 1 | J72: 1 | K72: -
A73: Małujowice | B73: 42 | C73: 7 | D73: - | E73: - | F73: 1 | G73: tak | H73: 1 | I73: - | J73: 1 | K73: -
A74: Małujowice | B74: 43 | C74: 4 | D74: - | E74: - | F74: 1 | G74: tak | H74: - | I74: - | J74: 1 | K74: -
A75: Małujowice | B75: 44 | C75: 1 | D75: - | E75: 1 | F75: - | G75: nie | H75: - | I75: - | J75: 1 | K75: -
A76: Małujowice | B76: 44 | C76: 1 | D76: - | E76: - | F76: - | G76: nie | H76: 1 | I76: - | J76: 1 | K76: -
A77: Małujowice | B77: 45 | C77: 1 | D77: - | E77: - | F77: 1 | G77: nie | H77: - | I77: - | J77: 1 | K77: -
A78: Małujowice | B78: 46 | C78: 6 | D78: - | E78: - | F78: 1 | G78: tak | H78: 1 | I78: - | J78: 1 | K78: -
A79: Małujowice | B79: 47 | C79: 2 | D79: - | E79: - | F79: 1 | G79: nie | H79: - | I79: - | J79: 1 | K79: -
A80: Małujowice | B80: 48 | C80: 4 | D80: - | E80: - | F80: 1 | G80: tak | H80: - | I80: - | J80: 1 | K80: -
A81: Małujowice | B81: 49 | C81: 5 | D81: - | E81: - | F81: 1 | G81: nie | H81: - | I81: - | J81: 1 | K81: -
A82: Małujowice | B82: 50 | C82: 3 | D82: - | E82: 1 | F82: - | G82: nie | H82: 1 | I82: - | J82: 1 | K82: -
A83: Małujowice | B83: 52A | C83: 2 | D83: - | E83: - | F83: 1 | G83: tak | H83: - | I83: - | J83: 1 | K83: -
A84: Małujowice | B84: 54 | C84: 5 | D84: - | E84: - | F84: 1 | G84: tak | H84: - | I84: - | J84: 1 | K84: -
A85: Małujowice | B85: 55 | C85: 3 | D85: - | E85: - | F85: 1 | G85: tak | H85: - | I85: - | J85: 1 | K85: -
A86: Małujowice | B86: 57 | C86: 1 | D86: - | E86: - | F86: 1 | G86: nie | H86: - | I86: - | J86: 1 | K86: -
A87: Małujowice | B87: 58 | C87: 1 | D87: - | E87: - | F87: - | G87: tak | H87: 1 | I87: - | J87: 1 | K87: -
A88: Małujowice | B88: 59 | C88: 6 | D88: - | E88: - | F88: 1 | G88: tak | H88: 1 | I88: - | J88: 1 | K88: -
A89: Małujowice | B89: 60 | C89: 2 | D89: - | E89: - | F89: 1 | G89: nie | H89: - | I89: - | J89: 1 | K89: -
A90: Małujowice | B90: 61 | C90: 3 | D90: - | E90: - | F90: 1 | G90: nie | H90: - | I90: - | J90: 1 | K90: -
A91: Małujowice | B91: 62 | C91: 2 | D91: - | E91: - | F91: 1 | G91: tak | H91: - | I91: - | J91: 1 | K91: -
A92: Małujowice | B92: 62C | C92: 4 | D92: - | E92: - | F92: - | G92: tak | H92: - | I92: 1 | J92: 1 | K92: -
A93: Małujowice | B93: 62D | C93: 4 | D93: - | E93: - | F93: - | G93: tak | H93: - | I93: 1 | J93: 1 | K93: -
A94: Małujowice | B94: 62F | C94: 4 | D94: - | E94: - | F94: - | G94: nie | H94: - | I94: 1 | J94: 1 | K94: -
A95: Małujowice | B95: 64 | C95: 2 | D95: - | E95: - | F95: 1 | G95: tak | H95: - | I95: - | J95: 1 | K95: -
A96: Małujowice | B96: 64a | C96: 2 | D96: 2 | E96: - | F96: - | G96: nie | H96: - | I96: - | J96: 1 | K96: -
A97: Małujowice | B97: 64a | C97: 3 | D97: - | E97: - | F97: - | G97: nie | H97: - | I97: 1 | J97: 1 | K97: -
A98: Małujowice | B98: 64b/2 | C98: 2 | D98: - | E98: - | F98: 1 | G98: tak | H98: - | I98: - | J98: 1 | K98: -
A99: Małujowice | B99: 64b/3 | C99: 1 | D99: - | E99: 1 | F99: - | G99: nie | H99: - | I99: - | J99: 1 | K99: -
A100: Małujowice | B100: 64C | C100: 4 | D100: - | E100: - | F100: - | G100: nie | H100: - | I100: 1 | J100: 1 | K100: -
A101: Małujowice | B101: 65 | C101: 1 | D101: - | E101: 1 | F101: - | G101: nie | H101: - | I101: - | J101: 1 | K101: -
A102: Małujowice | B102: 66a | C102: 9 | D102: - | E102: 1 | F102: - | G102: nie | H102: 1 | I102: 1 | J102: 1 | K102: -
A103: Małujowice | B103: 67 | C103: 1 | D103: - | E103: 1 | F103: - | G103: tak | H103: - | I103: - | J103: 1 | K103: -
A104: Małujowice | B104: 71 | C104: 6 | D104: - | E104: - | F104: - | G104: nie | H104: 1 | I104: 1 | J104: 1 | K104: -
A105: Małujowice | B105: 72 | C105: 5 | D105: - | E105: - | F105: 1 | G105: tak | H105: - | I105: - | J105: 1 | K105: -
A106: Małujowice | B106: 73 | C106: 9 | D106: - | E106: - | F106: 1 | G106: tak | H106: - | I106: 1 | J106: 1 | K106: -
A107: Małujowice | B107: 74 | C107: 5 | D107: - | E107: - | F107: - | G107: nie | H107: - | I107: 1 | J107: 1 | K107: -
A108: Małujowice | B108: 75 | C108: 2 | D108: 1 | E108: - | F108: - | G108: nie | H108: - | I108: - | J108: 1 | K108: -
A109: Małujowice | B109: 77 | C109: 5 | D109: - | E109: - | F109: 1 | G109: nie | H109: - | I109: - | J109: 1 | K109: -
A110: Małujowice | B110: 78 | C110: 5 | D110: - | E110: 1 | F110: - | G110: nie | H110: 1 | I110: - | J110: 1 | K110: -
A111: Małujowice | B111: 79 | C111: 3 | D111: - | E111: 1 | F111: - | G111: tak | H111: 1 | I111: - | J111: 1 | K111: -
A112: Małujowice | B112: 80 | C112: 3 | D112: - | E112: - | F112: - | G112: nie | H112: - | I112: 1 | J112: 1 | K112: -
A113: Małujowice | B113: 81 | C113: 2 | D113: - | E113: - | F113: - | G113: tak | H113: 1 | I113: - | J113: 1 | K113: -
A114: Małujowice | B114: 83 | C114: 3 | D114: - | E114: - | F114: 1 | G114: nie | H114: - | I114: - | J114: 1 | K114: -
A115: Małujowice | B115: 84 | C115: 1 | D115: - | E115: 1 | F115: - | G115: nie | H115: - | I115: - | J115: 1 | K115: -
A116: Małujowice | B116: 85 | C116: 3 | D116: - | E116: - | F116: 1 | G116: tak | H116: - | I116: - | J116: 1 | K116: -
A117: Małujowice | B117: 86 | C117: 4 | D117: - | E117: - | F117: 1 | G117: tak | H117: - | I117: - | J117: 1 | K117: -
A118: Małujowice | B118: 87 | C118: 4 | D118: - | E118: - | F118: 1 | G118: tak | H118: - | I118: - | J118: 1 | K118: -
A119: Małujowice | B119: 89 | C119: 6 | D119: - | E119: - | F119: 1 | G119: tak | H119: 1 | I119: - | J119: 1 | K119: -
A120: Małujowice | B120: 89 | C120: 6 | D120: - | E120: - | F120: 1 | G120: tak | H120: - | I120: - | J120: 1 | K120: -
A121: Małujowice | B121: 90 | C121: 5 | D121: - | E121: - | F121: 1 | G121: tak | H121: - | I121: - | J121: 1 | K121: -
A122: Małujowice | B122: 148 | C122: 3 | D122: - | E122: - | F122: - | G122: nie | H122: - | I122: 1 | J122: 1 | K122: -
A123: Małujowice | B123: 149 | C123: 3 | D123: - | E123: - | F123: - | G123: tak | H123: - | I123: 1 | J123: 1 | K123: -
A124: Małujowice | B124: 150 | C124: 4 | D124: - | E124: 1 | F124: - | G124: tak | H124: 1 | I124: - | J124: 1 | K124: -
B125: suma | C125: =SUM(C4:C124) -> 404 | D125: =SUM(D4:D124) -> 5 | E125: =SUM(E4:E124) -> 27 | F125: =SUM(F4:F124) -> 55 | H125: =SUM(H4:H124) -> 33 | I125: =SUM(I4:I124) -> 22 | J125: =SUM(J4:J124) -> 111 | K125: =SUM(K4:K124) -> 1
A130: nieruchomości zamieszkałe: | C130: 121

Sheet Pawłów ul.Czer, Krót, Ogrod
A1: Miejscowość | B1: Ulica | C1: Nr posesji | D1: Liczba Mieszkańców | E1: Ilość pojemników w gospodarstwie | F1: Pojemniki zadeklarowane | I1: kompostownik | J1: Zapotrzebowanie na pojemniki | M1: Uwagi
J2: odpady zmieszane | L2: szkło
F3: 110 l. | G3: 120 l. | H3: 240 l. | J3: 120 l. | K3: 240 l. | L3: 120 l.
A4: Pawłów | B4: Czereśniowa | C4: 2 | D4: 2 | E4: 1 | F4: - | G4: 1 | H4: - | I4: tak | J4: - | K4: - | L4: 1
A5: Pawłów | B5: Czereśniowa | C5: 46 | D5: 2 | E5: 1 | F5: - | G5: - | H5: - | I5: nie | J5: 1 | K5: - | L5: 1
C6: suma | D6: =SUM(D4:D5) -> 4 | E6: =SUM(E4:E5) -> 2 | F6: =SUM(F4:F5) -> 0 | G6: =SUM(G4:G5) -> 1 | H6: =SUM(H4:H5) -> 0 | J6: =SUM(J4:J5) -> 1 | K6: =SUM(K4:K5) -> 0 | L6: =SUM(L4:L5) -> 2
A10: Miejscowość | B10: Ulica | C10: Nr posesji | D10: Liczba Mieszkańców | E10: Ilość pojemników w gospodarstwie | F10: Pojemniki zadeklarowane | I10: kompostownik | J10: Zapotrzebowanie na pojemniki | M10: Uwagi
J11: odpady zmieszane | L11: szkło
F12: 110 l. | G12: 120 l. | H12: 240 l. | J12: 120 l. | K12: 240 l. | L12: 120 l.
A13: Pawłów | B13: Krótka | C13: 2 | D13: 3 | E13: 1 | F13: - | G13: - | H13: 1 | I13: nie | J13: - | K13: - | L13: 1
A14: Pawłów | B14: Krótka | C14: 2A | D14: 4 | E14: 2 | F14: - | G14: 1 | H14: - | I14: nie | J14: 1 | K14: - | L14: 1
C15: suma | D15: =SUM(D13:D14) -> 7 | E15: =SUM(E13:E14) -> 3 | F15: =SUM(F13:F14) -> 0 | G15: =SUM(G13:G14) -> 1 | H15: =SUM(H13:H14) -> 1 | J15: =SUM(J13:J14) -> 1 | K15: =SUM(K13:K14) -> 0 | L15: =SUM(L13:L14) -> 2
A19: Miejscowość | B19: Ulica | C19: Nr posesji | D19: Liczba Mieszkańców | E19: Ilość pojemników w gospodarstwie | F19: Pojemniki zadeklarowane | I19: kompostownik | J19: Zapotrzebowanie na pojemniki | M19: Uwagi
J20: odpady zmieszane | L20: szkło
F21: 110 l. | G21: 120 l. | H21: 240 l. | J21: 120 l. | K21: 240 l. | L21: 120 l.
A22: Pawłów | B22: Ogrodowa | C22: 1 | D22: 1 | E22: 1 | F22: - | G22: - | H22: 1 | I22: nie | J22: - | K22: - | L22: 1
A23: Pawłów | B23: Ogrodowa | C23: 2B | D23: 4 | E23: 1 | F23: - | G23: - | H23: 1 | I23: tak | J23: - | K23: - | L23: 1
A24: Pawłów | B24: Ogrodowa | C24: 3 | D24: 7 | E24: 2 | F24: - | G24: - | H24: 1 | I24: tak | J24: 1 | K24: - | L24: 1
A25: Pawłów | B25: Ogrodowa | C25: 5 | D25: 2 | E25: 1 | F25: - | G25: - | H25: 1 | I25: tak | J25: - | K25: - | L25: 1
A26: Pawłów | B26: Ogrodowa | C26: 9 | D26: 1 | E26: 1 | F26: - | G26: - | H26: - | I26: tak | J26: 1 | K26: - | L26: 1
A27: Pawłów | B27: Ogrodowa | C27: 11 | D27: 3 | E27: 1 | F27: - | G27: - | H27: - | I27: nie | J27: - | K27: 1 | L27: 1
A28: Pawłów | B28: Ogrodowa | C28: 11A | D28: 4 | E28: 1 | F28: - | G28: - | H28: - | I28: nie | J28: - | K28: 1 | L28: 1
C29: suma | D29: =SUM(D22:D28) -> 22 | E29: =SUM(E22:E28) -> 8 | F29: 0 | G29: 0 | H29: 4 | J29: 2 | K29: 2 | L29: =SUM(L22:L28) -> 7
A34: nieruchomości zamieszkałe: | C34: 11

Sheet Pawłów, ul.Poligonowa
B1: Miejscowość | C1: Ulica | D1: Nr posesji | E1: Liczba Mieszkańców | F1: Pojemniki zadeklarowane | I1: kompostownik | J1: Zapotrzebowanie na pojemniki | M1: Uwagi
A2: Miejscowość | J2: odpady zmieszane | L2: szkło
F3: 110 l. | G3: 120 l. | H3: 240 l. | J3: 120 l. | K3: 240 l. | L3: 120 l.
A4: Pawłów | B4: Pawłów | C4: Poligonowa | D4: 1 | E4: 2 | F4: - | G4: - | H4: 1 | I4: tak | J4: - | K4: - | L4: 1
A5: Pawłów | B5: Pawłów | C5: Poligonowa | D5: 2 | E5: 6 | F5: - | G5: - | H5: 2 | I5: tak | J5: - | K5: - | L5: 1
A6: Pawłów | B6: Pawłów | C6: Poligonowa | D6: 3 | E6: 2 | F6: - | G6: - | H6: 1 | I6: nie | J6: - | K6: - | L6: 1
B7: Pawłów | C7: Poligonowa | D7: 4 | E7: 2 | F7: - | G7: 1 | H7: - | I7: tak | J7: 1 | K7: - | L7: 1
A8: Pawłów | B8: Pawłów | C8: Poligonowa | D8: 4A | E8: 3 | F8: - | G8: 1 | H8: - | I8: tak | J8: 1 | K8: - | L8: 1
A9: Pawłów | B9: Pawłów | C9: Poligonowa | D9: 5 | E9: 5 | F9: - | G9: - | H9: 1 | I9: nie | J9: - | K9: - | L9: 1
A10: Pawłów | B10: Pawłów | C10: Poligonowa | D10: 6 | E10: 5 | F10: - | G10: - | H10: 1 | I10: nie | J10: - | K10: - | L10: 1
A11: Pawłów | B11: Pawłów | C11: Poligonowa | D11: 7 | E11: 5 | F11: - | G11: 1 | H11: - | I11: tak | J11: 1 | K11: - | L11: 1
A12: Pawłów | B12: Pawłów | C12: Poligonowa | D12: 8 | E12: 1 | F12: - | G12: - | H12: - | I12: tak | J12: 1 | K12: - | L12: 1
A13: Pawłów | B13: Pawłów | C13: Poligonowa | D13: 9 | E13: 3 | F13: - | G13: - | H13: 1 | I13: nie | J13: - | K13: - | L13: 1
A14: Pawłów | B14: Pawłów | C14: Poligonowa | D14: 10 | E14: 1 | F14: - | G14: - | H14: - | I14: nie | J14: 1 | K14: - | L14: 1
A15: Pawłów | B15: Pawłów | C15: Poligonowa | D15: 11 | E15: 6 | F15: - | G15: - | H15: 2 | I15: tak | J15: - | K15: - | L15: 1
A16: Pawłów | B16: Pawłów | C16: Poligonowa | D16: 12 | E16: 4 | F16: - | G16: 2 | H16: - | I16: nie | J16: - | K16: - | L16: 1
A17: Pawłów | B17: Pawłów | C17: Poligonowa | D17: 12A | E17: 3 | F17: - | G17: - | H17: 1 | I17: tak | J17: - | K17: - | L17: 1
A18: Pawłów | B18: Pawłów | C18: Poligonowa | D18: 13 | E18: 6 | F18: - | G18: 1 | H18: - | I18: tak | J18: - | K18: 1 | L18: 1
A19: Pawłów | B19: Pawłów | C19: Poligonowa | D19: 14 | E19: 1 | F19: - | G19: - | H19: - | I19: nie | J19: 1 | K19: - | L19: 1
A20: Pawłów | B20: Pawłów | C20: Poligonowa | D20: 15 | E20: 4 | F20: - | G20: - | H20: 1 | I20: tak | J20: - | K20: - | L20: 1
A21: Pawłów | B21: Pawłów | C21: Poligonowa | D21: 16 | E21: 4 | F21: - | G21: - | H21: 1 | I21: tak | J21: - | K21: - | L21: 1
A22: Pawłów | B22: Pawłów | C22: Poligonowa | D22: 18 | E22: 1 | F22: - | G22: - | H22: - | I22: tak | J22: 1 | K22: - | L22: 1
A23: Pawłów | B23: Pawłów | C23: Poligonowa | D23: 19 | E23: 1 | F23: - | G23: - | H23: 1 | I23: tak | J23: - | K23: - | L23: 1
A24: Pawłów | B24: Pawłów | C24: Poligonowa | D24: 20 | E24: 1 | F24: - | G24: 1 | H24: - | I24: nie | J24: - | K24: - | L24: 1
A25: Pawłów | B25: Pawłów | C25: Poligonowa | D25: 21 | E25: 6 | F25: - | G25: - | H25: 1 | I25: tak | J25: - | K25: - | L25: 1
A26: Pawłów | B26: Pawłów | C26: Poligonowa | D26: 21A | E26: 3 | F26: - | G26: 1 | H26: - | I26: tak | J26: 1 | K26: - | L26: 1
A27: Pawłów | B27: Pawłów | C27: Poligonowa | D27: 22 | E27: 2 | F27: - | G27: - | H27: - | I27: tak | J27: 1 | K27: - | L27: 1
A28: Pawłów | B28: Pawłów | C28: Poligonowa | D28: 23 | E28: 4 | F28: - | G28: - | H28: - | I28: tak | J28: - | K28: 1 | L28: 1
A29: Pawłów | B29: Pawłów | C29: Poligonowa | D29: 24 | E29: 4 | F29: - | G29: - | H29: 2 | I29: tak | J29: - | K29: - | L29: 1
A30: Pawłów | B30: Pawłów | C30: Poligonowa | D30: 25 | E30: 2 | F30: - | G30: - | H30: 1 | I30: nie | J30: - | K30: - | L30: 1
A31: Pawłów | B31: Pawłów | C31: Poligonowa | D31: 26A | E31: 3 | F31: - | G31: - | H31: 1 | I31: nie | J31: - | K31: - | L31: 1
A32: Pawłów | B32: Pawłów | C32: Poligonowa | D32: 27A | E32: 3 | F32: - | G32: - | H32: 1 | I32: nie | J32: - | K32: - | L32: 1
A33: Pawłów | B33: Pawłów | C33: Poligonowa | D33: 27B | E33: 3 | F33: - | G33: - | H33: 1 | I33: tak | J33: - | K33: - | L33: 1
A34: Pawłów | B34: Pawłów | C34: Poligonowa | D34: 28 | E34: 6 | F34: - | G34: 2 | H34: - | I34: nie | J34: 1 | K34: - | L34: 1
A35: Pawłów | B35: Pawłów | C35: Poligonowa | D35: 29A | E35: 4 | F35: - | G35: 1 | H35: - | I35: tak | J35: 1 | K35: - | L35: 1
A36: Pawłów | B36: Pawłów | C36: Poligonowa | D36: 29B | E36: 4 | F36: - | G36: - | H36: 2 | I36: nie | J36: - | K36: - | L36: 1
A37: Pawłów | B37: Pawłów | C37: Poligonowa | D37: 31 | E37: 2 | F37: - | G37: 1 | H37: - | I37: tak | J37: - | K37: - | L37: 1
A38: Pawłów | B38: Pawłów | C38: Poligonowa | D38: 33 | E38: 2 | F38: - | G38: - | H38: 1 | I38: tak | J38: - | K38: - | L38: 1
A39: Pawłów | B39: Pawłów | C39: Poligonowa | D39: 33 | E39: 5 | F39: - | G39: - | H39: 1 | I39: tak | J39: - | K39: - | L39: 1
D40: suma | E40: =SUM(E4:E39) -> 119 | F40: 0 | G40: 12 | H40: 24 | J40: 11 | K40: 2 | L40: =SUM(L4:L39) -> 36
C44: nieruchomości zamieszkałe: | E44: 36

Sheet Pawłów, ul.Wesoła
A1: Miejscowość | B1: Ulica | C1: Nr posesji | D1: Liczba Mieszkańców | E1: Pojemniki zadeklarowane | H1: kompostownik | I1: Zapotrzebowanie na pojemniki | L1: Uwagi
I2: odpady zmieszane | K2: szkło
E3: 110 l. | F3: 120 l. | G3: 240 l. | I3: 120 l. | J3: 240 l. | K3: 120 l.
A4: Pawłów | B4: Wesoła | C4: 1 | D4: 1 | E4: - | F4: 1 | G4: - | H4: nie | I4: - | J4: - | K4: 1
A5: Pawłów | B5: Wesoła | C5: 1B | D5: 3 | E5: - | F5: 1 | G5: - | H5: tak | I5: 1 | J5: - | K5: 1
A6: Pawłów | B6: Wesoła | C6: 1C | D6: 7 | E6: - | F6: 1 | G6: - | H6: tak | I6: - | J6: 1 | K6: 1
A7: Pawłów | B7: Wesoła | C7: 1D | D7: 5 | E7: - | F7: 1 | G7: - | H7: tak | I7: 1 | J7: - | K7: 1
A8: Pawłów | B8: Wesoła | C8: 1F | D8: 1 | E8: - | F8: 1 | G8: - | H8: nie | I8: - | J8: - | K8: 1
A9: Pawłów | B9: Wesoła | C9: 1J | D9: 4 | E9: - | F9: - | G9: 1 | H9: nie | I9: - | J9: - | K9: 1
A10: Pawłów | B10: Wesoła | C10: 1M | D10: 4 | E10: - | F10: 1 | G10: - | H10: tak | I10: 1 | J10: - | K10: 1
A11: Pawłów | B11: Wesoła | C11: 1N | D11: 4 | E11: - | F11: - | G11: 1 | H11: nie | I11: - | J11: - | K11: 1
A12: Pawłów | B12: Wesoła | C12: 1P | D12: 4 | E12: - | F12: - | G12: 1 | H12: nie | I12: - | J12: - | K12: 1
A13: Pawłów | B13: Wesoła | C13: 1R | D13: 4 | E13: - | F13: - | G13: - | H13: nie | I13: - | J13: 1 | K13: 1
A14: Pawłów | B14: Wesoła | C14: 1T | D14: 2 | E14: - | F14: - | G14: - | H14: tak | I14: 1 | J14: - | K14: 1
A15: Pawłów | B15: Wesoła | C15: 1U | D15: 4 | E15: - | F15: - | G15: - | H15: nie | I15: - | J15: 1 | K15: 1
A16: Pawłów | B16: Wesoła | C16: 2 | D16: 6 | E16: - | F16: - | G16: 1 | H16: nie | I16: 1 | J16: - | K16: 1
A17: Pawłów | B17: Wesoła | C17: 3 | D17: 1 | E17: - | F17: - | G17: 1 | H17: tak | I17: - | J17: - | K17: 1
A18: Pawłów | B18: Wesoła | C18: 3 | D18: 4 | E18: - | F18: - | G18: 1 | H18: nie | I18: - | J18: - | K18: 1
A19: Pawłów | B19: Wesoła | C19: 4 | D19: 6 | E19: - | F19: - | G19: 1 | H19: nie | I19: 1 | J19: - | K19: 1
A20: Pawłów | B20: Wesoła | C20: 5 | D20: 4 | E20: - | F20: - | G20: - | H20: tak | I20: - | J20: 1 | K20: 1
A21: Pawłów | B21: Wesoła | C21: 6 | D21: 7 | E21: - | F21: - | G21: 2 | H21: tak | I21: - | J21: - | K21: 1
A22: Pawłów | B22: Wesoła | C22: 7 | D22: 2 | E22: - | F22: - | G22: - | H22: nie | I22: 1 | J22: - | K22: 1
A23: Pawłów | B23: Wesoła | C23: 8 | D23: 3 | E23: - | F23: - | G23: 2 | H23: nie | I23: - | J23: - | K23: 1
A24: Pawłów | B24: Wesoła | C24: 9a | D24: 6 | E24: - | F24: - | G24: 1 | H24: tak | I24: 1 | J24: - | K24: 1
A25: Pawłów | B25: Wesoła | C25: 9B | D25: 4 | E25: - | F25: - | G25: - | H25: nie | I25: - | J25: 1 | K25: 1
A26: Pawłów | B26: Wesoła | C26: 10A | D26: 2 | E26: - | F26: 1 | G26: - | H26: nie | I26: - | J26: - | K26: 1
A27: Pawłów | B27: Wesoła | C27: 10B | D27: 2 | E27: - | F27: - | G27: 1 | H27: tak | I27: - | J27: - | K27: 1
A28: Pawłów | B28: Wesoła | C28: 10C | D28: 1 | E28: - | F28: - | G28: 1 | H28: nie | I28: - | J28: - | K28: 1
A29: Pawłów | B29: Wesoła | C29: 12 | D29: 9 | E29: - | F29: - | G29: 2 | H29: nie | I29: - | J29: - | K29: 1
A30: Pawłów | B30: Wesoła | C30: 12a | D30: 3 | E30: - | F30: 1 | G30: - | H30: nie | I30: 1 | J30: - | K30: 1
A31: Pawłów | B31: Wesoła | C31: 13/1 | D31: 4 | E31: - | F31: 1 | G31: - | H31: nie | I31: 1 | J31: - | K31: 1
A32: Pawłów | B32: Wesoła | C32: 13/2 | D32: 4 | E32: - | F32: - | G32: 1 | H32: tak | I32: - | J32: - | K32: 1
A33: Pawłów | B33: Wesoła | C33: 13A | D33: 2 | E33: - | F33: - | G33: 1 | H33: nie | I33: - | J33: - | K33: 1
A34: Pawłów | B34: Wesoła | C34: 14A | D34: 2 | E34: - | F34: 1 | G34: - | H34: tak | I34: - | J34: - | K34: 1
A35: Pawłów | B35: Wesoła | C35: 14B | D35: 3 | E35: - | F35: - | G35: 1 | H35: tak | I35: - | J35: - | K35: 1
A36: Pawłów | B36: Wesoła | C36: 15 | D36: 1 | E36: - | F36: 1 | G36: - | H36: nie | I36: - | J36: - | K36: 1
A37: Pawłów | B37: Wesoła | C37: 15 | D37: 1 | E37: - | F37: - | G37: 1 | H37: tak | I37: - | J37: - | K37: 1
A38: Pawłów | B38: Wesoła | C38: 16 | D38: 2 | E38: - | F38: 1 | G38: - | H38: tak | I38: - | J38: - | K38: 1
A39: Pawłów | B39: Wesoła | C39: 17 | D39: 6 | E39: - | F39: 2 | G39: - | H39: tak | I39: 1 | J39: - | K39: 1
A40: Pawłów | B40: Wesoła | C40: 18 | D40: 3 | E40: - | F40: - | G40: 1 | H40: nie | I40: - | J40: - | K40: 1
A41: Pawłów | B41: Wesoła | C41: 19 | D41: 4 | E41: - | F41: - | G41: 1 | H41: tak | I41: - | J41: - | K41: 1
A42: Pawłów | B42: Wesoła | C42: 20 | D42: 1 | E42: - | F42: 1 | G42: - | H42: tak | I42: - | J42: - | K42: 1
A43: Pawłów | B43: Wesoła | C43: 22A/1 | D43: 5 | E43: - | F43: - | G43: - | H43: nie | I43: - | J43: 1 | K43: 1
A44: Pawłów | B44: Wesoła | C44: 22A/3 | D44: 2 | E44: - | F44: - | G44: 1 | H44: nie | I44: - | J44: - | K44: 1
A45: Pawłów | B45: Wesoła | C45: 22A/4 | D45: 1 | E45: - | F45: - | G45: 1 | H45: nie | I45: - | J45: - | K45: 1
A46: Pawłów | B46: Wesoła | C46: 22B/1 | D46: 2 | E46: - | F46: 1 | G46: - | H46: tak | I46: - | J46: - | K46: 1
A47: Pawłów | B47: Wesoła | C47: 22B/2 | D47: 3 | E47: - | F47: - | G47: 1 | H47: nie | I47: - | J47: - | K47: 1
A48: Pawłów | B48: Wesoła | C48: 22B/3 | D48: 1 | E48: 1 | F48: - | G48: - | H48: nie | I48: - | J48: - | K48: 1
A49: Pawłów | B49: Wesoła | C49: 22B/4 | D49: 2 | E49: - | F49: - | G49: - | H49: nie | I49: 1 | J49: - | K49: 1
A50: Pawłów | B50: Wesoła | C50: 22B/5 | D50: 1 | E50: - | F50: 1 | G50: - | H50: tak | I50: - | J50: - | K50: 1
A51: Pawłów | B51: Wesoła | C51: 22B/6 | D51: 1 | E51: - | F51: 1 | G51: - | H51: nie | I51: - | J51: - | K51: 1
A52: Pawłów | B52: Wesoła | C52: 22B/8 | D52: 5 | E52: - | F52: - | G52: 1 | H52: nie | I52: - | J52: - | K52: 1
A53: Pawłów | B53: Wesoła | C53: 23B | D53: 4 | E53: - | F53: - | G53: - | H53: nie | I53: - | J53: 1 | K53: 1
A54: Pawłów | B54: Wesoła | C54: 24 | D54: 2 | E54: - | F54: 1 | G54: - | H54: nie | I54: - | J54: - | K54: 1
A55: Pawłów | B55: Wesoła | C55: 27 | D55: 1 | E55: - | F55: - | G55: 1 | H55: nie | I55: - | J55: - | K55: 1
A56: Pawłów | B56: Wesoła | C56: 28A | D56: 1 | E56: - | F56: 1 | G56: - | H56: tak | I56: - | J56: - | K56: 1
A57: Pawłów | B57: Wesoła | C57: 28B | D57: 2 | E57: - | F57: - | G57: 1 | H57: tak | I57: - | J57: - | K57: 1
A58: Pawłów | B58: Wesoła | C58: 29 | D58: 2 | E58: - | F58: - | G58: 1 | H58: nie | I58: - | J58: - | K58: 1
A59: Pawłów | B59: Wesoła | C59: 30/1 | D59: 1 | E59: - | F59: - | G59: - | H59: tak | I59: 1 | J59: - | K59: 1
A60: Pawłów | B60: Wesoła | C60: 30/2 | D60: 5 | E60: - | F60: - | G60: 1 | H60: tak | I60: - | J60: - | K60: 1
A61: Pawłów | B61: Wesoła | C61: 30/3 | D61: 1 | E61: - | F61: - | G61: - | H61: tak | I61: 1 | J61: - | K61: 1
A62: Pawłów | B62: Wesoła | C62: 32 | D62: 3 | E62: - | F62: - | G62: 1 | H62: tak | I62: - | J62: - | K62: 1
A63: Pawłów | B63: Wesoła | C63: 34 | D63: 4 | E63: - | F63: 1 | G63: - | H63: nie | I63: 1 | J63: - | K63: 1
A64: Pawłów | B64: Wesoła | C64: 36 | D64: 3 | E64: - | F64: 1 | G64: 1 | H64: tak | I64: - | J64: - | K64: 1
A65: Pawłów | B65: Wesoła | C65: 36a | D65: 4 | E65: - | F65: - | G65: 1 | H65: tak | I65: - | J65: - | K65: 1
A66: Pawłów | B66: Wesoła | C66: 38 | D66: 3 | E66: - | F66: - | G66: 1 | H66: tak | I66: - | J66: - | K66: 1
A67: Pawłów | B67: Wesoła | C67: 40 | D67: 5 | E67: - | F67: - | G67: 1 | H67: tak | I67: - | J67: - | K67: 1
A68: Pawłów | B68: Wesoła | C68: 42 | D68: 3 | E68: - | F68: - | G68: 1 | H68: nie | I68: - | J68: - | K68: 1
A69: Pawłów | B69: Wesoła | C69: 42 | D69: 2 | E69: - | F69: 1 | G69: - | H69: nie | I69: - | J69: - | K69: 1
A70: Pawłów | B70: Wesoła | C70: 42 | D70: 1 | E70: - | F70: 1 | G70: - | H70: nie | I70: - | J70: - | K70: 1
A71: Pawłów | B71: Wesoła | C71: 44a | D71: 4 | E71: - | F71: - | G71: 1 | H71: nie | I71: - | J71: - | K71: 1
A72: Pawłów | B72: Wesoła | C72: 44B | D72: 4 | E72: - | F72: 1 | G72: - | H72: nie | I72: 1 | J72: - | K72: 1
A73: Pawłów | B73: Wesoła | C73: 46 | D73: 5 | E73: - | F73: - | G73: 2 | H73: nie | I73: - | J73: - | K73: 1
A74: Pawłów | B74: Wesoła | C74: 48 | D74: 5 | E74: - | F74: 1 | G74: - | H74: tak | I74: 1 | J74: - | K74: 1
A75: Pawłów | B75: Wesoła | C75: 48A | D75: 4 | E75: - | F75: - | G75: 1 | H75: tak | I75: - | J75: - | K75: 1
A76: Pawłów | B76: Wesoła | C76: 50a | D76: 3 | E76: - | F76: 1 | G76: - | H76: nie | I76: 1 | J76: - | K76: 1
A77: Pawłów | B77: Wesoła | C77: dz. nr 317/2 | D77: 1 | E77: - | F77: - | G77: 1 | H77: nie | I77: - | J77: - | K77: 1
C78: suma | D78: =SUM(D4:D77) -> 232 | E78: =SUM(E4:E77) -> 1 | F78: =SUM(F4:F77) -> 27 | G78: =SUM(G4:G77) -> 41 | I78: =SUM(I4:I77) -> 18 | J78: =SUM(J4:J77) -> 7 | K78: =SUM(K4:K77) -> 74
A82: nieruchomości zamieszkałe: | C82: 74

Sheet Pawłów, ul.Wiśniowa
A1: Miejscowość | B1: Ulica | C1: Nr posesji | D1: Liczba Mieszkańców | E1: Pojemniki zadeklarowane | H1: kompostownik | I1: Zapotrzebowanie na pojemniki | L1: Uwagi
I2: odpady zmieszane | K2: szkło
E3: 110 l. | F3: 120 l. | G3: 240 l. | I3: 120 l. | J3: 240 l. | K3: 120 l.
A4: Pawłów | B4: Wiśniowa | C4: 1 | D4: 2 | E4: - | F4: 1 | G4: - | H4: tak | I4: - | J4: - | K4: 1
A5: Pawłów | B5: Wiśniowa | C5: 2 | D5: 2 | E5: - | F5: 1 | G5: - | H5: tak | I5: - | J5: - | K5: 1
A6: Pawłów | B6: Wiśniowa | C6: 3 | D6: 2 | E6: - | F6: - | G6: 1 | H6: tak | I6: - | J6: - | K6: 1
A7: Pawłów | B7: Wiśniowa | C7: 3A | D7: 1 | E7: 1 | F7: - | G7: - | H7: nie | I7: - | J7: - | K7: 1
A8: Pawłów | B8: Wiśniowa | C8: 4 | D8: 1 | E8: - | F8: 1 | G8: - | H8: tak | I8: - | J8: - | K8: 1
A9: Pawłów | B9: Wiśniowa | C9: 7 | D9: 4 | E9: - | F9: 1 | G9: - | H9: tak | I9: 1 | J9: - | K9: 1
A10: Pawłów | B10: Wiśniowa | C10: 8 | D10: 3 | E10: - | F10: - | G10: 1 | H10: tak | I10: - | J10: - | K10: 1
A11: Pawłów | B11: Wiśniowa | C11: 9 | D11: 4 | E11: - | F11: - | G11: 1 | H11: nie | I11: - | J11: - | K11: 1
C12: suma | D12: =SUM(D4:D11) -> 19 | E12: 1 | F12: 4 | G12: 3 | I12: 1 | J12: 0 | K12: =SUM(K4:K11) -> 8
A16: nieruchomości zamieszkałe: | C16: 8

Sheet Pępice
A1: Miejscowość | B1: Nr posesji | C1: Liczba Mieszkańców | D1: Pojemniki zadeklarowane | G1: kompostownik | H1: Zapotrzebowanie na pojemniki | K1: Uwagi
H2: odpady zmieszane | J2: szkło
D3: 110 l. | E3: 120 l. | F3: 240 l. | H3: 120 l. | I3: 240 l. | J3: 120 l.
A4: Pępice | B4: 2 | C4: 1 | D4: - | E4: 1 | F4: - | G4: tak | H4: - | I4: - | J4: 1
A5: Pępice | B5: 2 | C5: 4 | D5: - | E5: - | F5: - | G5: tak | H5: - | I5: 1 | J5: 1
A6: Pępice | B6: 2A | C6: 4 | D6: - | E6: 1 | F6: - | G6: tak | H6: 1 | I6: - | J6: 1
A7: Pępice | B7: 3 | C7: 2 | D7: - | E7: 1 | F7: - | G7: nie | H7: - | I7: - | J7: 1
A8: Pępice | B8: 4 | C8: 4 | D8: - | E8: - | F8: - | G8: tak | H8: - | I8: 1 | J8: 1
A9: Pępice | B9: 6 | C9: 4 | D9: - | E9: 1 | F9: - | G9: tak | H9: 1 | I9: - | J9: 1
A10: Pępice | B10: 8 | C10: 4 | D10: 1 | E10: - | F10: - | G10: tak | H10: 1 | I10: - | J10: 1
A11: Pępice | B11: 9 | C11: 7 | D11: - | E11: 1 | F11: - | G11: tak | H11: - | I11: 1 | J11: 1
A12: Pępice | B12: 9 | C12: 1 | D12: 1 | E12: - | F12: - | G12: tak | H12: - | I12: - | J12: 1
A13: Pępice | B13: 10 | C13: 2 | D13: - | E13: 1 | F13: - | G13: tak | H13: - | I13: - | J13: 1
A14: Pępice | B14: 10A | C14: 2 | D14: - | E14: 1 | F14: - | G14: tak | H14: - | I14: - | J14: 1
A15: Pępice | B15: 11 | C15: 3 | D15: - | E15: 1 | F15: - | G15: tak | H15: 1 | I15: - | J15: 1
A16: Pępice | B16: 12 | C16: 5 | D16: - | E16: - | F16: 1 | G16: tak | H16: - | I16: - | J16: 1
A17: Pępice | B17: 12A | C17: 2 | D17: 1 | E17: - | F17: - | G17: tak | H17: - | I17: - | J17: 1
A18: Pępice | B18: 15 | C18: 5 | D18: - | E18: - | F18: - | G18: tak | H18: - | I18: 1 | J18: 1
A19: Pępice | B19: 16 | C19: 6 | D19: - | E19: 1 | F19: - | G19: nie | H19: - | I19: 1 | J19: 1
A20: Pępice | B20: 17 | C20: 6 | D20: - | E20: 1 | F20: - | G20: tak | H20: - | I20: 1 | J20: 1
A21: Pępice | B21: 18 | C21: 3 | D21: - | E21: - | F21: - | G21: tak | H21: - | I21: 1 | J21: 1
A22: Pępice | B22: 21 | C22: 2 | D22: - | E22: 1 | F22: - | G22: tak | H22: - | I22: - | J22: 1
A23: Pępice | B23: 22 | C23: 1 | D23: - | E23: 1 | F23: - | G23: tak | H23: - | I23: - | J23: 1
A24: Pępice | B24: 23 | C24: 3 | D24: - | E24: 1 | F24: - | G24: tak | H24: 1 | I24: - | J24: 1
A25: Pępice | B25: 27 | C25: 8 | D25: - | E25: - | F25: 1 | G25: nie | H25: 1 | I25: - | J25: 1
A26: Pępice | B26: 28 | C26: 4 | D26: 1 | E26: - | F26: - | G26: tak | H26: 1 | I26: - | J26: 1
A27: Pępice | B27: 29 | C27: 4 | D27: - | E27: 1 | F27: - | G27: tak | H27: 1 | I27: - | J27: 1
A28: Pępice | B28: 30 | C28: 2 | D28: 1 | E28: - | F28: - | G28: tak | H28: - | I28: - | J28: 1
A29: Pępice | B29: 33 | C29: 3 | D29: - | E29: 1 | F29: - | G29: tak | H29: 1 | I29: - | J29: 1
A30: Pępice | B30: 34 | C30: 3 | D30: - | E30: 1 | F30: - | G30: tak | H30: 1 | I30: - | J30: 1
A31: Pępice | B31: 37/1 | C31: 3 | D31: - | E31: 1 | F31: - | G31: tak | H31: 1 | I31: - | J31: 1
A32: Pępice | B32: 37/2 | C32: 1 | D32: - | E32: - | F32: - | G32: tak | H32: 1 | I32: - | J32: 1
A33: Pępice | B33: 38 | C33: 1 | D33: - | E33: 1 | F33: - | G33: tak | H33: - | I33: - | J33: 1
A34: Pępice | B34: 39 | C34: 3 | D34: - | E34: 1 | F34: - | G34: nie | H34: 1 | I34: - | J34: 1
A35: Pępice | B35: 40/1 | C35: 3 | D35: - | E35: 1 | F35: - | G35: tak | H35: 1 | I35: - | J35: 1
A36: Pępice | B36: 42 | C36: 5 | D36: 1 | E36: - | F36: - | G36: tak | H36: 1 | I36: - | J36: 1
A37: Pępice | B37: 43 | C37: 4 | D37: - | E37: 1 | F37: - | G37: nie | H37: 1 | I37: - | J37: 1
A38: Pępice | B38: 44 | C38: 2 | D38: - | E38: 1 | F38: - | G38: tak | H38: - | I38: - | J38: 1
A39: Pępice | B39: 44A | C39: 5 | D39: - | E39: 1 | F39: - | G39: nie | H39: 1 | I39: - | J39: 1
A40: Pępice | B40: 44B | C40: 4 | D40: - | E40: 1 | F40: - | G40: nie | H40: 1 | I40: - | J40: 1
A41: Pępice | B41: 44C | C41: 2 | D41: - | E41: - | F41: 1 | G41: nie | H41: - | I41: - | J41: 1
A42: Pępice | B42: 44H | C42: 1 | D42: - | E42: 1 | F42: - | G42: nie | H42: - | I42: - | J42: 1
A43: Pępice | B43: 45 | C43: 5 | D43: - | E43: - | F43: - | G43: nie | H43: - | I43: 1 | J43: 1
A44: Pępice | B44: 46 | C44: 2 | D44: - | E44: 1 | F44: - | G44: tak | H44: - | I44: - | J44: 1
A45: Pępice | B45: 46A | C45: 3 | D45: - | E45: 1 | F45: - | G45: nie | H45: 1 | I45: - | J45: 1
A46: Pępice | B46: 46B | C46: 4 | D46: - | E46: - | F46: - | G46: nie | H46: - | I46: 1 | J46: 1
A47: Pępice | B47: 46D | C47: 1 | D47: - | E47: - | F47: - | G47: tak | H47: 1 | I47: - | J47: 1
A48: Pępice | B48: 46T | C48: 3 | D48: - | E48: - | F48: - | G48: tak | H48: - | I48: 1 | J48: 1
A49: Pępice | B49: 47 | C49: 2 | D49: - | E49: 1 | F49: - | G49: tak | H49: - | I49: - | J49: 1
A50: Pępice | B50: 48 | C50: 9 | D50: - | E50: 2 | F50: - | G50: nie | H50: - | I50: 1 | J50: 1
A51: Pępice | B51: 49 | C51: 5 | D51: - | E51: - | F51: 1 | G51: tak | H51: - | I51: - | J51: 1
A52: Pępice | B52: 50 | C52: 1 | D52: - | E52: 1 | F52: - | G52: nie | H52: - | I52: - | J52: 1
A53: Pępice | B53: 51 | C53: 1 | D53: - | E53: - | F53: 1 | G53: nie | H53: - | I53: - | J53: 1
A54: Pępice | B54: 52 | C54: 2 | D54: 1 | E54: - | F54: - | G54: nie | H54: - | I54: - | J54: 1
A55: Pępice | B55: 53 | C55: 1 | D55: - | E55: 1 | F55: - | G55: nie | H55: - | I55: - | J55: 1
A56: Pępice | B56: 54 | C56: 10 | D56: - | E56: 1 | F56: - | G56: tak | H56: 1 | I56: 1 | J56: 1
A57: Pępice | B57: 56 | C57: 4 | D57: - | E57: - | F57: 1 | G57: nie | H57: - | I57: - | J57: 1
A58: Pępice | B58: 57 | C58: 3 | D58: - | E58: 1 | F58: - | G58: tak | H58: 1 | I58: - | J58: 1
A59: Pępice | B59: 58 | C59: 1 | D59: 1 | E59: - | F59: - | G59: tak | H59: - | I59: - | J59: 1
A60: Pępice | B60: 61 | C60: 3 | D60: - | E60: - | F60: 1 | G60: nie | H60: - | I60: - | J60: 1
A61: Pępice | B61: 61 | C61: 2 | D61: - | E61: - | F61: - | G61: tak | H61: 1 | I61: - | J61: 1
A62: Pępice | B62: 62 | C62: 1 | D62: - | E62: - | F62: - | G62: nie | H62: 1 | I62: - | J62: 1
A63: Pępice | B63: 65 | C63: 2 | D63: - | E63: 1 | F63: - | G63: tak | H63: - | I63: - | J63: 1
A64: Pępice | B64: 66 | C64: 2 | D64: 1 | E64: - | F64: - | G64: tak | H64: - | I64: - | J64: 1
A65: Pępice | B65: 68 | C65: 2 | D65: - | E65: - | F65: - | G65: tak | H65: 1 | I65: - | J65: 1
A66: Pępice | B66: 70 | C66: 4 | D66: 1 | E66: - | F66: - | G66: tak | H66: 1 | I66: - | J66: 1
A67: Pępice | B67: 71 | C67: 2 | D67: - | E67: - | F67: - | G67: tak | H67: 1 | I67: - | J67: 1
A68: Pępice | B68: 72 | C68: 2 | D68: - | E68: - | F68: - | G68: tak | H68: 1 | I68: - | J68: 1
A69: Pępice | B69: 74 | C69: 2 | D69: - | E69: - | F69: - | G69: tak | H69: 1 | I69: - | J69: 1
A70: Pępice | B70: 75 | C70: 3 | D70: - | E70: - | F70: - | G70: tak | H70: - | I70: 1 | J70: 1
A71: Pępice | B71: 76 | C71: 1 | D71: 1 | E71: - | F71: - | G71: nie | H71: - | I71: - | J71: 1
A72: Pępice | B72: 77 | C72: 5 | D72: - | E72: 2 | F72: - | G72: nie | H72: - | I72: - | J72: 1
A73: Pępice | B73: 77A | C73: 9 | D73: - | E73: 1 | F73: - | G73: tak | H73: 1 | I73: 1 | J73: 1
A74: Pępice | B74: 78 | C74: 1 | D74: - | E74: 1 | F74: - | G74: tak | H74: - | I74: - | J74: 1
A75: Pępice | B75: 78A | C75: 1 | D75: - | E75: - | F75: - | G75: tak | H75: 1 | I75: - | J75: 1
A76: Pępice | B76: 78A | C76: 4 | D76: - | E76: 1 | F76: - | G76: tak | H76: 1 | I76: - | J76: 1
A77: Pępice | B77: 79 | C77: 6 | D77: 1 | E77: - | F77: - | G77: tak | H77: - | I77: 1 | J77: 1
A78: Pępice | B78: 80 | C78: 10 | D78: 1 | E78: - | F78: - | G78: tak | H78: 1 | I78: 1 | J78: 1
A79: Pępice | B79: 82 | C79: 5 | D79: - | E79: 1 | F79: - | G79: tak | H79: 1 | I79: - | J79: 1
A80: Pępice | B80: 83 | C80: 9 | D80: - | E80: 1 | F80: - | G80: nie | H80: 1 | I80: 1 | J80: 1
A81: Pępice | B81: 84 | C81: 2 | D81: - | E81: - | F81: - | G81: tak | H81: 1 | I81: - | J81: 1
A82: Pępice | B82: 84A | C82: 5 | D82: - | E82: - | F82: - | G82: tak | H82: - | I82: 1 | J82: 1
A83: Pępice | B83: 84B | C83: 5 | D83: - | E83: - | F83: 1 | G83: tak | H83: - | I83: - | J83: 1
A84: Pępice | B84: 85 | C84: 1 | D84: - | E84: - | F84: - | G84: tak | H84: 1 | I84: - | J84: 1
A85: Pępice | B85: 87 | C85: 2 | D85: - | E85: 1 | F85: - | G85: tak | H85: - | I85: - | J85: 1
B86: suma | C86: =SUM(C4:C85) -> 277 | D86: =SUM(D4:D85) -> 13 | E86: =SUM(E4:E85) -> 43 | F86: =SUM(F4:F85) -> 8 | H86: =SUM(H4:H85) -> 37 | I86: =SUM(I4:I85) -> 18 | J86: =SUM(J4:J85) -> 82
A90: nieruchomości zamieszkałe: | C90: 82

Sheet Prędocin
A1: Miejscowość | B1: Nr posesji | C1: Liczba Mieszkańców | D1: Pojemniki zadeklarowane | G1: kompostownik | H1: Zapotrzebowanie na pojemniki | K1: Uwagi
H2: odpady zmieszane | J2: szkło
D3: 110 l. | E3: 120 l. | F3: 240 l. | H3: 120 l. | I3: 240 l. | J3: 120 l.
A4: Prędocin | B4: 1 | C4: 2 | D4: - | E4: 2 | F4: - | G4: nie | H4: - | I4: - | J4: 1
A5: Prędocin | B5: 2 | C5: 3 | D5: - | E5: 1 | F5: - | G5: nie | H5: 1 | I5: - | J5: 1
A6: Prędocin | B6: 3 | C6: 3 | D6: - | E6: - | F6: 1 | G6: nie | H6: - | I6: - | J6: 1
A7: Prędocin | B7: 4 | C7: 3 | D7: - | E7: 1 | F7: - | G7: nie | H7: 1 | I7: - | J7: 1
A8: Prędocin | B8: 5 | C8: 5 | D8: - | E8: 1 | F8: - | G8: tak | H8: 1 | I8: - | J8: 1
A9: Prędocin | B9: 6 | C9: 2 | D9: - | E9: 1 | F9: - | G9: nie | H9: - | I9: - | J9: 1
A10: Prędocin | B10: 7 | C10: 1 | D10: - | E10: 1 | F10: - | G10: nie | H10: - | I10: - | J10: 1
A11: Prędocin | B11: 8 | C11: 3 | D11: - | E11: 1 | F11: - | G11: nie | H11: 1 | I11: - | J11: 1
A12: Prędocin | B12: 10 | C12: 2 | D12: - | E12: - | F12: 1 | G12: nie | H12: - | I12: - | J12: 1
A13: Prędocin | B13: 11 | C13: 2 | D13: - | E13: 1 | F13: - | G13: tak | H13: - | I13: - | J13: 1
A14: Prędocin | B14: 13 | C14: 4 | D14: - | E14: - | F14: 1 | G14: nie | H14: - | I14: - | J14: 1
A15: Prędocin | B15: 14 | C15: 1 | D15: 1 | E15: - | F15: - | G15: nie | H15: - | I15: - | J15: 1
A16: Prędocin | B16: 19 | C16: 2 | D16: - | E16: 2 | F16: - | G16: tak | H16: - | I16: - | J16: 1
A17: Prędocin | B17: 20 | C17: 2 | D17: 1 | E17: - | F17: - | G17: nie | H17: - | I17: - | J17: 1
A18: Prędocin | B18: 21 | C18: 5 | D18: - | E18: 1 | F18: - | G18: tak | H18: 1 | I18: - | J18: 1
A19: Prędocin | B19: 22 | C19: 6 | D19: - | E19: 1 | F19: - | G19: tak | H19: - | I19: 1 | J19: 1
A20: Prędocin | B20: 24 | C20: 3 | D20: - | E20: 1 | F20: - | G20: nie | H20: 1 | I20: - | J20: 1
A21: Prędocin | B21: 25 | C21: 1 | D21: - | E21: - | F21: - | G21: tak | H21: 1 | I21: - | J21: 1
A22: Prędocin | B22: 27 | C22: 2 | D22: - | E22: 1 | F22: - | G22: tak | H22: - | I22: - | J22: 1
A23: Prędocin | B23: 27a | C23: 3 | D23: - | E23: 2 | F23: - | G23: nie | H23: - | I23: - | J23: 1
A24: Prędocin | B24: 30 | C24: 7 | D24: - | E24: - | F24: - | G24: nie | H24: 1 | I24: 1 | J24: 1
A25: Prędocin | B25: 31 | C25: 3 | D25: - | E25: 1 | F25: - | G25: nie | H25: 1 | I25: - | J25: 1
A26: Prędocin | B26: 32 | C26: 4 | D26: 1 | E26: - | F26: - | G26: tak | H26: 1 | I26: - | J26: 1
A27: Prędocin | B27: 33 | C27: 7 | D27: - | E27: 1 | F27: - | G27: tak | H27: - | I27: 1 | J27: 1
A28: Prędocin | B28: 33A | C28: 2 | D28: - | E28: 1 | F28: - | G28: nie | H28: - | I28: - | J28: 1
A29: Prędocin | B29: 34 | C29: 4 | D29: - | E29: 1 | F29: - | G29: tak | H29: 1 | I29: - | J29: 1
A30: Prędocin | B30: 35 | C30: 5 | D30: - | E30: - | F30: 1 | G30: tak | H30: - | I30: - | J30: 1
A31: Prędocin | B31: 36 | C31: 5 | D31: - | E31: 1 | F31: - | G31: tak | H31: 1 | I31: - | J31: 1
A32: Prędocin | B32: 37 | C32: 7 | D32: - | E32: 1 | F32: - | G32: tak | H32: - | I32: 1 | J32: 1
A33: Prędocin | B33: 38 | C33: 2 | D33: - | E33: - | F33: 1 | G33: nie | H33: - | I33: - | J33: 1
A34: Prędocin | B34: 39 | C34: 6 | D34: - | E34: 1 | F34: - | G34: tak | H34: - | I34: 1 | J34: 1
A35: Prędocin | B35: 40 | C35: 4 | D35: 1 | E35: - | F35: - | G35: tak | H35: 1 | I35: - | J35: 1
A36: Prędocin | B36: 41 | C36: 9 | D36: - | E36: 1 | F36: - | G36: tak | H36: 1 | I36: 1 | J36: 1
A37: Prędocin | B37: 42 | C37: 3 | D37: - | E37: 1 | F37: - | G37: tak | H37: 1 | I37: - | J37: 1
A38: Prędocin | B38: 43 | C38: 1 | D38: - | E38: 1 | F38: - | G38: nie | H38: - | I38: - | J38: 1
A39: Prędocin | B39: 44 | C39: 2 | D39: - | E39: 1 | F39: - | G39: nie | H39: - | I39: - | J39: 1
A40: Prędocin | B40: 45 | C40: 2 | D40: - | E40: 1 | F40: - | G40: tak | H40: - | I40: - | J40: 1
A41: Prędocin | B41: 46 | C41: 3 | D41: - | E41: 1 | F41: - | G41: tak | H41: 1 | I41: - | J41: 1
A42: Prędocin | B42: 47 | C42: 1 | D42: - | E42: 1 | F42: - | G42: nie | H42: - | I42: - | J42: 1
A43: Prędocin | B43: 48 | C43: 7 | D43: - | E43: 1 | F43: - | G43: nie | H43: - | I43: 1 | J43: 1
A44: Prędocin | B44: 49 | C44: 1 | D44: 1 | E44: - | F44: - | G44: tak | H44: - | I44: - | J44: 1
A45: Prędocin | B45: 50 | C45: 1 | D45: - | E45: - | F45: - | G45: nie | H45: - | I45: - | J45: 1
A46: Prędocin | B46: 50A/1 | C46: 1 | D46: - | E46: 1 | F46: - | G46: tak | H46: - | I46: - | J46: 1
A47: Prędocin | B47: 50A/2 | C47: 2 | D47: - | E47: 1 | F47: - | G47: nie | H47: - | I47: - | J47: 1
A48: Prędocin | B48: 51 | C48: 6 | D48: - | E48: 1 | F48: - | G48: nie | H48: - | I48: 1 | J48: 1
A49: Prędocin | B49: 52 | C49: 2 | D49: - | E49: 1 | F49: - | G49: nie | H49: - | I49: - | J49: 1
A50: Prędocin | B50: 53 | C50: 8 | D50: - | E50: 1 | F50: - | G50: tak | H50: - | I50: 1 | J50: 1
B51: suma | C51: =SUM(C4:C50) -> 160 | D51: 5 | E51: 37 | F51: 5 | H51: 16 | I51: 9 | J51: =SUM(J4:J50) -> 47
A55: nieruchomości zamieszkałe: | C55: 47

Sheet Skarbimierz
A1: Miejscowość | B1: Nr posesji | C1: Liczba Mieszkańców | D1: Pojemniki zadeklarowane | G1: kompostownik | H1: Zapotrzebowanie na pojemniki | K1: Uwagi
H2: odpady zmieszane | J2: szkło
D3: 110 l. | E3: 120 l. | F3: 240 l. | H3: 120 l. | I3: 240 l. | J3: 120 l.
A4: Skarbimierz | B4: 1 | C4: 4 | D4: 1 | E4: - | F4: - | G4: tak | H4: 1 | I4: - | J4: 1
A5: Skarbimierz | B5: 2A | C5: 4 | D5: - | E5: - | F5: - | G5: nie | H5: - | I5: 1 | J5: 1
A6: Skarbimierz | B6: 2 | C6: 3 | D6: - | E6: - | F6: 1 | G6: tak | H6: - | I6: - | J6: 1
A7: Skarbimierz | B7: 3 | C7: 2 | D7: - | E7: - | F7: - | G7: nie | H7: 1 | I7: - | J7: 1
A8: Skarbimierz | B8: 4 | C8: 4 | D8: - | E8: 1 | F8: - | G8: nie | H8: 1 | I8: - | J8: 1
A9: Skarbimierz | B9: 4A | C9: 1 | D9: - | E9: 1 | F9: - | G9: nie | H9: - | I9: - | J9: 1
A10: Skarbimierz | B10: 6 | C10: 1 | D10: - | E10: 1 | F10: - | G10: nie | H10: - | I10: - | J10: 1
A11: Skarbimierz | B11: 6A | C11: 2 | D11: - | E11: 1 | F11: - | G11: nie | H11: - | I11: - | J11: 1
A12: Skarbimierz | B12: 6B | C12: 4 | D12: - | E12: 1 | F12: - | G12: tak | H12: 1 | I12: - | J12: 1
A13: Skarbimierz | B13: 8 | C13: 3 | D13: - | E13: 1 | F13: - | G13: nie | H13: 1 | I13: - | J13: 1
A14: Skarbimierz | B14: 9 | C14: 6 | D14: 1 | E14: - | F14: - | G14: nie | H14: - | I14: 1 | J14: 1
A15: Skarbimierz | B15: 10 | C15: 6 | D15: 1 | E15: - | F15: - | G15: nie | H15: - | I15: 1 | J15: 1
A16: Skarbimierz | B16: 11 | C16: 1 | D16: - | E16: - | F16: - | G16: nie | H16: 1 | I16: - | J16: 1
A17: Skarbimierz | B17: 12 | C17: 1 | D17: - | E17: - | F17: - | G17: tak | H17: 1 | I17: - | J17: 1
A18: Skarbimierz | B18: 12 | C18: 2 | D18: 1 | E18: - | F18: - | G18: tak | H18: - | I18: - | J18: 1
A19: Skarbimierz | B19: 12A | C19: 7 | D19: - | E19: - | F19: 1 | G19: tak | H19: 1 | I19: - | J19: 1
A20: Skarbimierz | B20: 12B | C20: 3 | D20: - | E20: 1 | F20: - | G20: tak | H20: 1 | I20: - | J20: 1
A21: Skarbimierz | B21: 14 | C21: 3 | D21: 1 | E21: - | F21: - | G21: nie | H21: 1 | I21: - | J21: 1
A22: Skarbimierz | B22: 15 | C22: 5 | D22: - | E22: - | F22: - | G22: nie | H22: - | I22: 1 | J22: 1
A23: Skarbimierz | B23: 16 | C23: 6 | D23: - | E23: 1 | F23: - | G23: tak | H23: - | I23: 1 | J23: 1
A24: Skarbimierz | B24: 16a | C24: 2 | D24: - | E24: - | F24: 1 | G24: nie | H24: - | I24: - | J24: 1
A25: Skarbimierz | B25: 17 | C25: 5 | D25: - | E25: 1 | F25: - | G25: nie | H25: 1 | I25: - | J25: 1
A26: Skarbimierz | B26: 18 | C26: 4 | D26: - | E26: 1 | F26: - | G26: nie | H26: 1 | I26: - | J26: 1
A27: Skarbimierz | B27: 19 | C27: 11 | D27: - | E27: - | F27: 1 | G27: nie | H27: - | I27: 1 | J27: 1
A28: Skarbimierz | B28: 20 | C28: 5 | D28: - | E28: 1 | F28: - | G28: tak | H28: 1 | I28: - | J28: 1
A29: Skarbimierz | B29: 20A | C29: 4 | D29: - | E29: - | F29: - | G29: nie | H29: - | I29: 1 | J29: 1
A30: Skarbimierz | B30: 21 | C30: 6 | D30: - | E30: 1 | F30: - | G30: nie | H30: - | I30: 1 | J30: 1
A31: Skarbimierz | B31: 22 | C31: 7 | D31: - | E31: - | F31: 1 | G31: tak | H31: 1 | I31: - | J31: 1
A32: Skarbimierz | B32: 23 | C32: 1 | D32: 1 | E32: - | F32: - | G32: tak | H32: - | I32: - | J32: 1
A33: Skarbimierz | B33: 26 | C33: 8 | D33: - | E33: - | F33: 1 | G33: nie | H33: - | I33: 1 | J33: 1
A34: Skarbimierz | B34: 27 | C34: 2 | D34: - | E34: 1 | F34: - | G34: tak | H34: - | I34: - | J34: 1
A35: Skarbimierz | B35: 28 | C35: 3 | D35: - | E35: 1 | F35: - | G35: nie | H35: 1 | I35: - | J35: 1
A36: Skarbimierz | B36: 29 | C36: 7 | D36: - | E36: 1 | F36: - | G36: tak | H36: - | I36: 1 | J36: 1
A37: Skarbimierz | B37: 29A | C37: 5 | D37: - | E37: - | F37: - | G37: tak | H37: - | I37: 1 | J37: 1
A38: Skarbimierz | B38: 30 | C38: 9 | D38: 1 | E38: - | F38: - | G38: tak | H38: 1 | I38: 1 | J38: 1
A39: Skarbimierz | B39: 31 | C39: 4 | D39: 1 | E39: - | F39: - | G39: tak | H39: 1 | I39: - | J39: 1
A40: Skarbimierz | B40: 31a | C40: 3 | D40: - | E40: - | F40: - | G40: nie | H40: - | I40: 1 | J40: 1
A41: Skarbimierz | B41: 31B | C41: 3 | D41: - | E41: 1 | F41: - | G41: nie | H41: 1 | I41: - | J41: 1
A42: Skarbimierz | B42: 32 | C42: 4 | D42: 1 | E42: - | F42: - | G42: tak | H42: 1 | I42: - | J42: 1
A43: Skarbimierz | B43: 32a | C43: 4 | D43: - | E43: - | F43: 1 | G43: nie | H43: - | I43: - | J43: 1
A44: Skarbimierz | B44: 33 | C44: 3 | D44: - | E44: 1 | F44: - | G44: tak | H44: 1 | I44: - | J44: 1
A45: Skarbimierz | B45: 34 | C45: 7 | D45: - | E45: 1 | F45: - | G45: tak | H45: - | I45: 1 | J45: 1
A46: Skarbimierz | B46: 35 | C46: 5 | D46: - | E46: 2 | F46: - | G46: tak | H46: - | I46: - | J46: 1
A47: Skarbimierz | B47: 36 | C47: 5 | D47: - | E47: 1 | F47: - | G47: nie | H47: 1 | I47: - | J47: 1
A48: Skarbimierz | B48: 37 | C48: 2 | D48: - | E48: - | F48: - | G48: nie | H48: 1 | I48: - | J48: 1
A49: Skarbimierz | B49: 38 | C49: 4 | D49: - | E49: 1 | F49: - | G49: nie | H49: 1 | I49: - | J49: 1
A50: Skarbimierz | B50: 50 | C50: 4 | D50: - | E50: 1 | F50: - | G50: tak | H50: 1 | I50: - | J50: 1
B51: suma | C51: =SUM(C4:C50) -> 195 | D51: =SUM(D4:D50) -> 9 | E51: =SUM(E4:E50) -> 23 | F51: =SUM(F4:F50) -> 7 | H51: =SUM(H4:H50) -> 24 | I51: =SUM(I4:I50) -> 14 | J51: =SUM(J4:J50) -> 47
A55: nieruchomości zamieszkałe: | C55: 47

Sheet Żłobizna, ul.Brzeska
A1: Miejscowość | B1: Ulica | C1: Nr posesji | D1: Liczba Mieszkańców | E1: Pojemniki zadeklarowane | H1: kompostownik | I1: Zapotrzebowanie na pojemniki | L1: Uwagi
I2: odpady zmieszane | K2: szkło
E3: 110 l. | F3: 120 l. | G3: 240 l. | I3: 120 l. | J3: 240 l. | K3: 120 l.
A4: Żłobizna | B4: Brzeska | C4: 2 | D4: 2 | E4: 1 | F4: - | G4: - | H4: tak | I4: - | J4: - | K4: 1
A5: Żłobizna | B5: Brzeska | C5: 3 | D5: 2 | E5: - | F5: 1 | G5: - | H5: tak | I5: - | J5: - | K5: 1
A6: Żłobizna | B6: Brzeska | C6: 4 | D6: 6 | E6: - | F6: 3 | G6: - | H6: tak | I6: - | J6: - | K6: 1
A7: Żłobizna | B7: Brzeska | C7: 5 | D7: 2 | E7: 1 | F7: - | G7: - | H7: tak | I7: - | J7: - | K7: 1
A8: Żłobizna | B8: Brzeska | C8: 8 | D8: 6 | E8: - | F8: - | G8: 1 | H8: tak | I8: 1 | J8: - | K8: 1
A9: Żłobizna | B9: Brzeska | C9: 10 | D9: 2 | E9: - | F9: - | G9: - | H9: tak | I9: 1 | J9: - | K9: 1
A10: Żłobizna | B10: Brzeska | C10: 11 | D10: 2 | E10: - | F10: 1 | G10: - | H10: tak | I10: - | J10: - | K10: 1
A11: Żłobizna | B11: Brzeska | C11: 11 | D11: 3 | E11: - | F11: 1 | G11: - | H11: tak | I11: 1 | J11: - | K11: 1
A12: Żłobizna | B12: Brzeska | C12: 12/1 | D12: 1 | E12: - | F12: 1 | G12: - | H12: nie | I12: - | J12: - | K12: 1
A13: Żłobizna | B13: Brzeska | C13: 12/2 | D13: 4 | E13: - | F13: - | G13: 1 | H13: nie | I13: - | J13: - | K13: 1
A14: Żłobizna | B14: Brzeska | C14: 13 | D14: 3 | E14: 1 | F14: - | G14: - | H14: tak | I14: 1 | J14: - | K14: 1
A15: Żłobizna | B15: Brzeska | C15: 14 | D15: 3 | E15: - | F15: 2 | G15: - | H15: tak | I15: - | J15: - | K15: 1
A16: Żłobizna | B16: Brzeska | C16: 15 | D16: 3 | E16: 1 | F16: - | G16: - | H16: tak | I16: 1 | J16: - | K16: 1
A17: Żłobizna | B17: Brzeska | C17: 15A | D17: 2 | E17: 1 | F17: - | G17: - | H17: tak | I17: - | J17: - | K17: 1
A18: Żłobizna | B18: Brzeska | C18: 16 | D18: 5 | E18: - | F18: 1 | G18: - | H18: nie | I18: 1 | J18: - | K18: 1
A19: Żłobizna | B19: Brzeska | C19: 17 | D19: 4 | E19: - | F19: 1 | G19: - | H19: tak | I19: 1 | J19: - | K19: 1
A20: Żłobizna | B20: Brzeska | C20: 18 | D20: 1 | E20: - | F20: 1 | G20: - | H20: nie | I20: - | J20: - | K20: 1
A21: Żłobizna | B21: Brzeska | C21: 19 | D21: 4 | E21: - | F21: 2 | G21: - | H21: tak | I21: - | J21: - | K21: 1
A22: Żłobizna | B22: Brzeska | C22: 20 | D22: 1 | E22: - | F22: 1 | G22: - | H22: tak | I22: - | J22: - | K22: 1
A23: Żłobizna | B23: Brzeska | C23: 21 | D23: 4 | E23: - | F23: - | G23: - | H23: tak | I23: - | J23: 1 | K23: 1
A24: Żłobizna | B24: Brzeska | C24: 21 | D24: 2 | E24: - | F24: 1 | G24: - | H24: tak | I24: - | J24: - | K24: 1
A25: Żłobizna | B25: Brzeska | C25: 22 | D25: 6 | E25: - | F25: 1 | G25: - | H25: tak | I25: - | J25: 1 | K25: 1
A26: Żłobizna | B26: Brzeska | C26: 23 | D26: 5 | E26: 1 | F26: - | G26: - | H26: nie | I26: 1 | J26: - | K26: 1
A27: Żłobizna | B27: Brzeska | C27: 24 | D27: 2 | E27: 1 | F27: - | G27: - | H27: tak | I27: - | J27: - | K27: 1
A28: Żłobizna | B28: Brzeska | C28: 25 | D28: 5 | E28: - | F28: - | G28: - | H28: tak | I28: - | J28: 1 | K28: 1
A29: Żłobizna | B29: Brzeska | C29: 26 | D29: 4 | E29: - | F29: - | G29: - | H29: nie | I29: - | J29: 1 | K29: 1 | N29: B R Z E S K A
A30: Żłobizna | B30: Brzeska | C30: 27 | D30: 2 | E30: - | F30: 1 | G30: - | H30: tak | I30: - | J30: - | K30: 1
A31: Żłobizna | B31: Brzeska | C31: 28 | D31: 4 | E31: 1 | F31: - | G31: - | H31: tak | I31: 1 | J31: - | K31: 1
A32: Żłobizna | B32: Brzeska | C32: 29 | D32: 6 | E32: - | F32: - | G32: - | H32: nie | I32: 1 | J32: 1 | K32: 1
A33: Żłobizna | B33: Brzeska | C33: 30 | D33: 3 | E33: - | F33: 1 | G33: - | H33: tak | I33: 1 | J33: - | K33: 1
A34: Żłobizna | B34: Brzeska | C34: 30 | D34: 3 | E34: - | F34: 1 | G34: - | H34: tak | I34: 1 | J34: - | K34: 1
A35: Żłobizna | B35: Brzeska | C35: 31 | D35: 2 | E35: 1 | F35: - | G35: - | H35: tak | I35: - | J35: - | K35: 1
A36: Żłobizna | B36: Brzeska | C36: 32 | D36: 12 | E36: - | F36: - | G36: - | H36: tak | I36: - | J36: 2 | K36: 1
A37: Żłobizna | B37: Brzeska | C37: 34 | D37: 1 | E37: 1 | F37: - | G37: - | H37: tak | I37: - | J37: - | K37: 1
A38: Żłobizna | B38: Brzeska | C38: 35 | D38: 4 | E38: - | F38: 1 | G38: - | H38: tak | I38: 1 | J38: - | K38: 1
A39: Żłobizna | B39: Brzeska | C39: 36 | D39: 4 | E39: - | F39: 1 | G39: - | H39: tak | I39: 1 | J39: - | K39: 1
A40: Żłobizna | B40: Brzeska | C40: 38 | D40: 2 | E40: 1 | F40: - | G40: - | H40: tak | I40: - | J40: - | K40: 1
A41: Żłobizna | B41: Brzeska | C41: 40 | D41: 4 | E41: - | F41: 1 | G41: - | H41: tak | I41: 1 | J41: - | K41: 1
A42: Żłobizna | B42: Brzeska | C42: 41/1 | D42: 1 | E42: - | F42: - | G42: - | H42: - | I42: - | J42: - | K42: - | L42: pojemnik zbiorczy
A43: Żłobizna | B43: Brzeska | C43: 41/2 | D43: 2 | E43: - | F43: - | G43: - | H43: - | I43: - | J43: - | K43: - | L43: pojemnik zbiorczy
A44: Żłobizna | B44: Brzeska | C44: 41/3 | D44: 0 | E44: - | F44: - | G44: - | H44: - | I44: - | J44: - | K44: - | L44: pojemnik zbiorczy
A45: Żłobizna | B45: Brzeska | C45: 41/4 | D45: 0 | E45: - | F45: - | G45: - | H45: - | I45: - | J45: - | K45: - | L45: pojemnik zbiorczy
A46: Żłobizna | B46: Brzeska | C46: 41/5 | D46: 0 | E46: - | F46: - | G46: - | H46: - | I46: - | J46: - | K46: - | L46: pojemnik zbiorczy
A47: Żłobizna | B47: Brzeska | C47: 41/6 | D47: 1 | E47: - | F47: - | G47: - | H47: - | I47: - | J47: - | K47: - | L47: pojemnik zbiorczy
A48: Żłobizna | B48: Brzeska | C48: 41/7 | D48: 3 | E48: - | F48: - | G48: - | H48: - | I48: - | J48: - | K48: - | L48: pojemnik zbiorczy
A49: Żłobizna | B49: Brzeska | C49: 49 | D49: 3 | E49: - | F49: - | G49: - | H49: tak | I49: - | J49: 1 | K49: 1
A50: Żłobizna | B50: Brzeska | C50: 50 | D50: 1 | E50: - | F50: - | G50: - | H50: nie | I50: 1 | J50: - | K50: 1
A51: Żłobizna | B51: Brzeska | C51: 51 | D51: 1 | E51: - | F51: - | G51: - | H51: tak | I51: 1 | J51: - | K51: 1
A52: Żłobizna | B52: Brzeska | C52: 52 | D52: 6 | E52: - | F52: - | G52: 1 | H52: tak | I52: 1 | J52: - | K52: 1
A53: Żłobizna | B53: Brzeska | C53: 54 | D53: 5 | E53: 1 | F53: - | G53: - | H53: nie | I53: 1 | J53: - | K53: 1
A54: Żłobizna | B54: Brzeska | C54: 55 | D54: 4 | E54: - | F54: - | G54: - | H54: nie | I54: - | J54: 1 | K54: 1
A55: Żłobizna | B55: Brzeska | C55: 56 | D55: 2 | E55: - | F55: - | G55: - | H55: tak | I55: 1 | J55: - | K55: 1
A56: Żłobizna | B56: Brzeska | C56: 57 | D56: 3 | E56: - | F56: 1 | G56: - | H56: nie | I56: 1 | J56: - | K56: 1
A57: Żłobizna | B57: Brzeska | C57: 58 | D57: 3 | E57: - | F57: 1 | G57: - | H57: tak | I57: 1 | J57: - | K57: 1
A58: Żłobizna | B58: Brzeska | C58: 59 | D58: 3 | E58: 1 | F58: - | G58: - | H58: tak | I58: 1 | J58: - | K58: 1
A59: Żłobizna | B59: Brzeska | C59: 60 | D59: 4 | E59: 1 | F59: - | G59: - | H59: tak | I59: 1 | J59: - | K59: 1
A60: Żłobizna | B60: Brzeska | C60: 61 | D60: 1 | E60: - | F60: - | G60: - | H60: tak | I60: 1 | J60: - | K60: 1
A61: Żłobizna | B61: Brzeska | C61: 63 | D61: 6 | E61: 1 | F61: - | G61: - | H61: tak | I61: - | J61: 1 | K61: 1
A62: Żłobizna | B62: Brzeska | C62: 64 | D62: 5 | E62: - | F62: - | G62: 1 | H62: tak | I62: - | J62: - | K62: 1
A63: Żłobizna | B63: Brzeska | C63: 66 | D63: 4 | E63: - | F63: 1 | G63: - | H63: tak | I63: 1 | J63: - | K63: 1
A64: Żłobizna | B64: Brzeska | C64: 67 | D64: 5 | E64: 1 | F64: - | G64: - | H64: tak | I64: 1 | J64: - | K64: 1
A65: Żłobizna | B65: Brzeska | C65: 68 | D65: 1 | E65: - | F65: 1 | G65: - | H65: nie | I65: - | J65: - | K65: 1
A66: Żłobizna | B66: Brzeska | C66: 70 | D66: 1 | E66: - | F66: - | G66: - | H66: tak | I66: 1 | J66: - | K66: 1
A67: Żłobizna | B67: Brzeska | C67: 73 | D67: 3 | E67: - | F67: 1 | G67: - | H67: tak | I67: 1 | J67: - | K67: 1
A68: Żłobizna | B68: Brzeska | C68: 74 | D68: 2 | E68: 1 | F68: - | G68: - | H68: tak | I68: - | J68: - | K68: 1
A69: Żłobizna | B69: Brzeska | C69: 76 | D69: 3 | E69: - | F69: 1 | G69: - | H69: tak | I69: 1 | J69: - | K69: 1
A70: Żłobizna | B70: Brzeska | C70: 77 | D70: 2 | E70: - | F70: - | G70: - | H70: nie | I70: 1 | J70: - | K70: 1
A71: Żłobizna | B71: Brzeska | C71: 80 | D71: 4 | E71: - | F71: - | G71: 1 | H71: nie | I71: - | J71: - | K71: 1
A72: Żłobizna | B72: Brzeska | C72: 82 | D72: 5 | E72: 2 | F72: - | G72: - | H72: tak | I72: - | J72: - | K72: 1
A73: Żłobizna | B73: Brzeska | C73: 88 | D73: 4 | E73: - | F73: - | G73: - | H73: tak | I73: - | J73: 1 | K73: 1
A74: Żłobizna | B74: Brzeska | C74: 90 | D74: 2 | E74: - | F74: - | G74: 1 | H74: tak | I74: - | J74: - | K74: 1
A75: Żłobizna | B75: Brzeska | C75: 93 | D75: 3 | E75: - | F75: - | G75: - | H75: nie | I75: - | J75: 1 | K75: 1
A76: Żłobizna | B76: Brzeska | C76: 94 | D76: 1 | E76: - | F76: - | G76: - | H76: nie | I76: 1 | J76: - | K76: 1
A77: Żłobizna | B77: Brzeska | C77: 100 | D77: 2 | E77: 1 | F77: - | G77: - | H77: tak | I77: - | J77: - | K77: 1
A78: Żłobizna | B78: Brzeska | C78: 102 | D78: 3 | E78: - | F78: - | G78: - | H78: tak | I78: - | J78: 1 | K78: 1
C79: suma | D79: =SUM(D4:D78) -> 230 | E79: =SUM(E4:E78) -> 20 | F79: =SUM(F4:F78) -> 29 | G79: =SUM(G4:G78) -> 6 | I79: =SUM(I4:I78) -> 32 | J79: =SUM(J4:J78) -> 13 | K79: =SUM(K4:K78) -> 68
A84: nieruchomości zamieszkałe: | C84: 75

Sheet Żłobizna, ul.Ak, For, Fioł, Br
A1: Miejscowość | B1: Ulica | C1: Nr posesji | D1: Liczba Mieszkańców | E1: Pojemniki zadeklarowane | H1: kompostownik | I1: Zapotrzebowanie na pojemniki | L1: Uwagi | N1: A K A C J O W A
I2: odpady zmieszane | K2: szkło
E3: 110 l. | F3: 120 l. | G3: 240 l. | I3: 120 l. | J3: 240 l. | K3: 120 l.
A4: Żłobizna | B4: Akacjowa | C4: 1 | D4: 4 | E4: - | F4: 1 | G4: - | H4: nie | I4: 1 | J4: - | K4: 1
C5: suma | D5: =SUM(D4) -> 4 | E5: 0 | F5: 1 | G5: 0 | I5: 1 | J5: 0 | K5: =SUM(K4) -> 1
A9: Miejscowość | B9: Ulica | C9: Nr posesji | D9: Liczba Mieszkańców | E9: Pojemniki zadeklarowane | H9: kompostownik | I9: Zapotrzebowanie na pojemniki | L9: Uwagi
I10: odpady zmieszane | K10: szkło
E11: 110 l. | F11: 120 l. | G11: 240 l. | I11: 120 l. | J11: 240 l. | K11: 120 l.
A12: Żłobizna | B12: Forsycji | C12: 1 | D12: 1 | E12: - | F12: - | G12: - | H12: tak | I12: 1 | J12: - | K12: 1
A13: Żłobizna | B13: Forsycji | C13: 2 | D13: 5 | E13: - | F13: 1 | G13: - | H13: tak | I13: 1 | J13: - | K13: 1 | N13: F O R S Y C J I
A14: Żłobizna | B14: Forsycji | C14: 3A/7 | D14: 1 | E14: - | F14: - | G14: - | H14: - | I14: - | J14: - | K14: - | L14: pojemnik zbiorczy
A15: Żłobizna | B15: Forsycji | C15: 3A/8 | D15: 2 | E15: - | F15: - | G15: - | H15: - | I15: - | J15: - | K15: - | L15: pojemnik zbiorczy
A16: Żłobizna | B16: Forsycji | C16: 3A/9 | D16: 1 | E16: - | F16: - | G16: - | H16: - | I16: - | J16: - | K16: - | L16: pojemnik zbiorczy
A17: Żłobizna | B17: Forsycji | C17: 3A/10 | D17: 4 | E17: - | F17: - | G17: - | H17: - | I17: - | J17: - | K17: - | L17: pojemnik zbiorczy
A18: Żłobizna | B18: Forsycji | C18: 3A/11 | D18: 2 | E18: - | F18: - | G18: - | H18: - | I18: - | J18: - | K18: - | L18: pojemnik zbiorczy
A19: Żłobizna | B19: Forsycji | C19: 3B/1 | D19: 1 | E19: - | F19: - | G19: - | H19: - | I19: - | J19: - | K19: - | L19: pojemnik zbiorczy
A20: Żłobizna | B20: Forsycji | C20: 3B/2 | D20: 3 | E20: - | F20: - | G20: - | H20: - | I20: - | J20: - | K20: - | L20: pojemnik zbiorczy
A21: Żłobizna | B21: Forsycji | C21: 3B/3 | D21: 1 | E21: - | F21: - | G21: - | H21: - | I21: - | J21: - | K21: - | L21: pojemnik zbiorczy
A22: Żłobizna | B22: Forsycji | C22: 3B/4 | D22: 1 | E22: - | F22: - | G22: - | H22: - | I22: - | J22: - | K22: - | L22: pojemnik zbiorczy
A23: Żłobizna | B23: Forsycji | C23: 3B/5 | D23: 2 | E23: - | F23: - | G23: - | H23: - | I23: - | J23: - | K23: - | L23: pojemnik zbiorczy
A24: Żłobizna | B24: Forsycji | C24: 3B/6 | D24: 3 | E24: - | F24: - | G24: - | H24: - | I24: - | J24: - | K24: - | L24: pojemnik zbiorczy
C25: suma | D25: =SUM(D12:D13) -> 6 | E25: =SUM(E12:E13) -> 0 | F25: =SUM(F12:F13) -> 1 | G25: =SUM(G12:G13) -> 0 | I25: =SUM(I12:I13) -> 2 | J25: =SUM(J12:J13) -> 0 | K25: =SUM(K12:K13) -> 2
A29: Miejscowość | B29: Ulica | C29: Nr posesji | D29: Liczba Mieszkańców | E29: Pojemniki zadeklarowane | H29: kompostownik | I29: Zapotrzebowanie na pojemniki | L29: Uwagi
I30: odpady zmieszane | K30: szkło
E31: 110 l. | F31: 120 l. | G31: 240 l. | I31: 120 l. | J31: 240 l. | K31: 120 l.
A32: Żłobizna | B32: Fiołkowa | C32: 1 | D32: 6 | E32: - | F32: 1 | G32: - | H32: tak | I32: - | J32: 1 | K32: 1
A33: Żłobizna | B33: Fiołkowa | C33: 4 | D33: 5 | E33: 1 | F33: - | G33: - | H33: tak | I33: 1 | J33: - | K33: 1 | N33: F I O Ł K O W A
A34: Żłobizna | B34: Fiołkowa | C34: 7 | D34: 3 | E34: - | F34: 1 | G34: - | H34: tak | I34: 1 | J34: - | K34: 1
A35: Żłobizna | B35: Fiołkowa | C35: 11 | D35: 2 | E35: - | F35: - | G35: - | H35: tak | I35: 1 | J35: - | K35: 1
A36: Żłobizna | B36: Fiołkowa | C36: 12 | D36: 3 | E36: - | F36: 1 | G36: - | H36: tak | I36: 1 | J36: - | K36: 1
A37: Żłobizna | B37: Fiołkowa | C37: 13 | D37: 4 | E37: - | F37: 1 | G37: - | H37: tak | I37: 1 | J37: - | K37: 1
A38: Żłobizna | B38: Fiołkowa | C38: 15 | D38: 4 | E38: - | F38: 1 | G38: - | H38: nie | I38: 1 | J38: - | K38: 1
A39: Żłobizna | B39: Fiołkowa | C39: 17 | D39: 2 | E39: - | F39: 1 | G39: - | H39: nie | I39: - | J39: - | K39: 1
A40: Żłobizna | B40: Fiołkowa | C40: 27 | D40: 4 | E40: - | F40: - | G40: - | H40: tak | I40: - | J40: 1 | K40: 1
A41: Żłobizna | B41: Fiołkowa | C41: 29 | D41: 4 | E41: - | F41: - | G41: - | H41: tak | I41: - | J41: 1 | K41: 1
A42: Żłobizna | B42: Fiołkowa | C42: 31 | D42: 2 | E42: - | F42: - | G42: - | H42: tak | I42: 1 | J42: - | K42: 1
A43: Żłobizna | B43: Fiołkowa | C43: 35 | D43: 3 | E43: - | F43: - | G43: - | H43: nie | I43: - | J43: 1 | K43: 1
A44: Żłobizna | B44: Fiołkowa | C44: dz. nr 315/2 | D44: 4 | E44: - | F44: - | G44: - | H44: nie | I44: - | J44: 1 | K44: 1
C45: suma | D45: =SUM(D32:D44) -> 46 | E45: =SUM(E32:E44) -> 1 | F45: =SUM(F32:F44) -> 6 | G45: =SUM(G32:G44) -> 0 | I45: =SUM(I32:I44) -> 7 | J45: =SUM(J32:J44) -> 5 | K45: =SUM(K32:K44) -> 13
A49: Miejscowość | B49: Ulica | C49: Nr posesji | D49: Liczba Mieszkańców | E49: Pojemniki zadeklarowane | H49: kompostownik | I49: Zapotrzebowanie na pojemniki | L49: Uwagi | N49: B R A T K O W A
I50: odpady zmieszane | K50: szkło
E51: 110 l. | F51: 120 l. | G51: 240 l. | I51: 120 l. | J51: 240 l. | K51: 120 l.
A52: Żłobizna | B52: Bratkowa | C52: 1 | D52: 1 | E52: - | F52: - | G52: - | H52: tak | I52: 1 | J52: - | K52: 1
A53: Żłobizna | B53: Bratkowa | C53: 3 | D53: 2 | E53: - | F53: 1 | G53: - | H53: nie | I53: - | J53: - | K53: 1
A54: Żłobizna | B54: Bratkowa | C54: 5 | D54: 3 | E54: - | F54: 2 | G54: - | H54: nie | I54: - | J54: - | K54: 1
A55: Żłobizna | B55: Bratkowa | C55: 5 | D55: 4 | E55: - | F55: - | G55: - | H55: nie | I55: - | J55: 1 | K55: 1
A56: Żłobizna | B56: Bratkowa | C56: 6 | D56: 4 | E56: - | F56: - | G56: 1 | H56: tak | I56: - | J56: - | K56: 1
C57: suma | D57: =SUM(D53:D56) -> 13 | E57: 0 | F57: 3 | G57: 1 | I57: =SUM(I52:I56) -> 1 | J57: 1 | K57: =SUM(K52:K56) -> 5
A61: nieruchomości zamieszkałe: | C61: 32

Sheet Żłobizna, ul.Tulip, Wrz., Kwi.
A1: Miejscowość | B1: Ulica | C1: Nr posesji | D1: Liczba Mieszkańców | E1: Pojemniki zadeklarowane | H1: kompostownik | I1: Zapotrzebowanie na pojemniki | L1: Uwagi
I2: odpady zmieszane | K2: szkło | N2: T U L I P A N O W A
E3: 110l. | F3: 120 l. | G3: 240 l. | I3: 120 l. | J3: 240 l. | K3: 120 l.
A4: Żłobizna | B4: Tulipanowa | C4: 3 | D4: 4 | E4: - | F4: - | G4: - | H4: tak | I4: - | J4: 1 | K4: 1
A5: Żłobizna | B5: Tulipanowa | C5: 5 | D5: 3 | E5: - | F5: 1 | G5: - | H5: tak | I5: 1 | J5: - | K5: 1
A6: Żłobizna | B6: Tulipanowa | C6: 7 | D6: 4 | E6: - | F6: 1 | G6: - | H6: tak | I6: 1 | J6: - | K6: 1
A7: Żłobizna | B7: Tulipanowa | C7: 10 | D7: 2 | E7: - | F7: 1 | G7: - | H7: tak | I7: - | J7: - | K7: 1
A8: Żłobizna | B8: Tulipanowa | C8: 13 | D8: 4 | E8: - | F8: - | G8: 1 | H8: nie | I8: - | J8: - | K8: 1
A9: Żłobizna | B9: Tulipanowa | C9: 14 | D9: 4 | E9: - | F9: - | G9: 1 | H9: tak | I9: - | J9: - | K9: 1
A10: Żłobizna | B10: Tulipanowa | C10: 18 | D10: 4 | E10: - | F10: - | G10: - | H10: tak | I10: - | J10: 1 | K10: 1
C11: suma | D11: =SUM(D4:D10) -> 25 | E11: =SUM(E4:E8) -> 0 | F11: =SUM(F4:F8) -> 3 | G11: =SUM(G8:G10) -> 2 | I11: =SUM(I5:I10) -> 2 | J11: =SUM(J4:J10) -> 2 | K11: =SUM(K4:K10) -> 7
A15: Miejscowość | B15: Ulica | C15: Nr posesji | D15: Liczba Mieszkańców | E15: Pojemniki zadeklarowane | H15: kompostownik | I15: Zapotrzebowanie na pojemniki | L15: Uwagi
I16: odpady zmieszane | K16: szkło
E17: 110 l. | F17: 120 l. | G17: 240 l. | I17: 120 l. | J17: 240 l. | K17: 120 l. | N17: W R Z O S O W A
A18: Żłobizna | B18: Wrzosowa | C18: 2 | D18: 4 | E18: - | F18: 1 | G18: - | H18: tak | I18: 1 | J18: - | K18: 1
A19: Żłobizna | B19: Wrzosowa | C19: 3 | D19: 4 | E19: - | F19: 1 | G19: - | H19: tak | I19: 1 | J19: - | K19: 1
A20: Żłobizna | B20: Wrzosowa | C20: 4 | D20: 1 | E20: - | F20: 1 | G20: - | H20: nie | I20: - | J20: - | K20: 1
A21: Żłobizna | B21: Wrzosowa | C21: 6 | D21: 3 | E21: - | F21: - | G21: - | H21: nie | I21: - | J21: 1 | K21: 1
A22: Żłobizna | B22: Wrzosowa | C22: 9 | D22: 4 | E22: - | F22: - | G22: - | H22: nie | I22: - | J22: 1 | K22: 1
A23: Żłobizna | B23: Wrzosowa | C23: 11 | D23: 2 | E23: - | F23: - | G23: - | H23: tak | I23: 1 | J23: - | K23: 1
A24: Żłobizna | B24: Wrzosowa | C24: 12 | D24: 3 | E24: - | F24: - | G24: - | H24: nie | I24: - | J24: 1 | K24: 1
C25: suma | D25: =SUM(D18:D24) -> 21 | E25: =SUM(E18:E24) -> 0 | F25: =SUM(F18:F24) -> 3 | G25: =SUM(G18:G24) -> 0 | I25: =SUM(I18:I24) -> 3 | J25: =SUM(J18:J24) -> 3 | K25: =SUM(K18:K24) -> 7
A29: Miejscowość | B29: Ulica | C29: Nr posesji | D29: Liczba Mieszkańców | E29: Pojemniki zadeklarowane | H29: kompostownik | I29: Zapotrzebowanie na pojemniki | L29: Uwagi | N29: K W I A T O W A
I30: odpady zmieszane | K30: szkło
E31: 110 l. | F31: 120 l. | G31: 240 l. | I31: 120 l. | J31: 240 l. | K31: 120 l.
A32: Żłobizna | B32: Kwiatowa | C32: 1 | D32: 2 | E32: - | F32: - | G32: - | H32: nie | I32: 1 | J32: - | K32: 1
A33: Żłobizna | B33: Kwiatowa | C33: 2 | D33: 3 | E33: - | F33: 1 | G33: - | H33: tak | I33: 1 | J33: - | K33: 1
C34: suma | D34: =SUM(D32:D33) -> 5 | E34: 0 | F34: 1 | G34: 0 | I34: 2 | J34: 0 | K34: =SUM(K32:K33) -> 2
A38: nieruchomości zamieszkałe: | C38: 16

Sheet Żłobizna, ul.Jaśminowa
A1: Miejscowość | B1: Ulica | C1: Nr posesji | D1: Liczba Mieszkańców | E1: Pojemniki zadeklarowane | H1: Zapotrzebowanie na pojemniki | K1: Uwagi
H2: odpady zmieszane | J2: szkło
E3: 110 l. | F3: 120 l. | G3: 240 l. | H3: 120 l. | I3: 240 l. | J3: 120 l.
A4: Żłobizna | B4: Jaśminowa | C4: 1 | D4: 3 | E4: - | F4: - | G4: - | H4: - | I4: - | J4: - | K4: pojemnik zbiorczy
A5: Żłobizna | B5: Jaśminowa | C5: 1/3 | D5: 1 | E5: - | F5: - | G5: - | H5: - | I5: - | J5: - | K5: pojemnik zbiorczy
A6: Żłobizna | B6: Jaśminowa | C6: 1/4 | D6: 4 | E6: - | F6: - | G6: - | H6: - | I6: - | J6: - | K6: pojemnik zbiorczy
A7: Żłobizna | B7: Jaśminowa | C7: 0.2 | D7: 2 | E7: - | F7: - | G7: - | H7: - | I7: - | J7: - | K7: pojemnik zbiorczy
A8: Żłobizna | B8: Jaśminowa | C8: 0.1666666667 | D8: 2 | E8: - | F8: - | G8: - | H8: - | I8: - | J8: - | K8: pojemnik zbiorczy
A9: Żłobizna | B9: Jaśminowa | C9: 0.1428571429 | D9: 1 | E9: - | F9: - | G9: - | H9: - | I9: - | J9: - | K9: pojemnik zbiorczy
A10: Żłobizna | B10: Jaśminowa | C10: 1/8 | D10: 1 | E10: - | F10: - | G10: - | H10: - | I10: - | J10: - | K10: pojemnik zbiorczy
A11: Żłobizna | B11: Jaśminowa | C11: 1/9 | D11: 4 | E11: - | F11: - | G11: - | H11: - | I11: - | J11: - | K11: pojemnik zbiorczy
A12: Żłobizna | B12: Jaśminowa | C12: 1/10 | D12: 3 | E12: - | F12: - | G12: - | H12: - | I12: - | J12: - | K12: pojemnik zbiorczy
A13: Żłobizna | B13: Jaśminowa | C13: 1/11 | D13: 1 | E13: - | F13: - | G13: - | H13: - | I13: - | J13: - | K13: pojemnik zbiorczy
A14: Żłobizna | B14: Jaśminowa | C14: 1/12 | D14: 3 | E14: - | F14: - | G14: - | H14: - | I14: - | J14: - | K14: pojemnik zbiorczy
A15: Żłobizna | B15: Jaśminowa | C15: 1/15 | D15: 1 | E15: - | F15: - | G15: - | H15: - | I15: - | J15: - | K15: pojemnik zbiorczy
A16: Żłobizna | B16: Jaśminowa | C16: 1/16 | D16: 3 | E16: - | F16: - | G16: - | H16: - | I16: - | J16: - | K16: pojemnik zbiorczy | M16: J A Ś M I N O W A
A17: Żłobizna | B17: Jaśminowa | C17: 1/18 | D17: 7 | E17: - | F17: - | G17: - | H17: - | I17: - | J17: - | K17: pojemnik zbiorczy
A18: Żłobizna | B18: Jaśminowa | C18: 2A/1 | D18: 2 | E18: - | F18: - | G18: - | H18: - | I18: - | J18: - | K18: pojemnik zbiorczy
A19: Żłobizna | B19: Jaśminowa | C19: 2A/2 | D19: 1 | E19: - | F19: - | G19: - | H19: - | I19: - | J19: - | K19: pojemnik zbiorczy
A20: Żłobizna | B20: Jaśminowa | C20: 2A/3 | D20: 3 | E20: - | F20: - | G20: - | H20: - | I20: - | J20: - | K20: pojemnik zbiorczy
A21: Żłobizna | B21: Jaśminowa | C21: 2A/4 | D21: 2 | E21: - | F21: - | G21: - | H21: - | I21: - | J21: - | K21: pojemnik zbiorczy
A22: Żłobizna | B22: Jaśminowa | C22: 2A/5 | D22: 3 | E22: - | F22: - | G22: - | H22: - | I22: - | J22: - | K22: pojemnik zbiorczy
A23: Żłobizna | B23: Jaśminowa | C23: 2A/6 | D23: 2 | E23: - | F23: - | G23: - | H23: - | I23: - | J23: - | K23: pojemnik zbiorczy
A24: Żłobizna | B24: Jaśminowa | C24: 2B/1 | D24: 1 | E24: - | F24: - | G24: - | H24: - | I24: - | J24: - | K24: pojemnik zbiorczy
A25: Żłobizna | B25: Jaśminowa | C25: 2B/2 | D25: 3 | E25: - | F25: - | G25: - | H25: - | I25: - | J25: - | K25: pojemnik zbiorczy
A26: Żłobizna | B26: Jaśminowa | C26: 2B/3 | D26: 1 | E26: - | F26: - | G26: - | H26: - | I26: - | J26: - | K26: pojemnik zbiorczy
A27: Żłobizna | B27: Jaśminowa | C27: 2B/4 | D27: 2 | E27: - | F27: - | G27: - | H27: - | I27: - | J27: - | K27: pojemnik zbiorczy
A28: Żłobizna | B28: Jaśminowa | C28: 2B/5 | D28: 1 | E28: - | F28: - | G28: - | H28: - | I28: - | J28: - | K28: pojemnik zbiorczy
A29: Żłobizna | B29: Jaśminowa | C29: 2B/6 | D29: 1 | E29: - | F29: - | G29: - | H29: - | I29: - | J29: - | K29: pojemnik zbiorczy
A30: Żłobizna | B30: Jaśminowa | C30: 3/1 | D30: 2 | E30: - | F30: - | G30: - | H30: - | I30: - | J30: - | K30: pojemnik zbiorczy
A31: Żłobizna | B31: Jaśminowa | C31: 3/2 | D31: 2 | E31: - | F31: - | G31: - | H31: - | I31: - | J31: - | K31: pojemnik zbiorczy
A32: Żłobizna | B32: Jaśminowa | C32: 3/3 | D32: 1 | E32: - | F32: - | G32: - | H32: - | I32: - | J32: - | K32: pojemnik zbiorczy
A33: Żłobizna | B33: Jaśminowa | C33: 3/4 | D33: 1 | E33: - | F33: - | G33: - | H33: - | I33: - | J33: - | K33: pojemnik zbiorczy
A34: Żłobizna | B34: Jaśminowa | C34: 4A/1 | D34: 1 | E34: - | F34: - | G34: - | H34: - | I34: - | J34: - | K34: pojemnik zbiorczy
A35: Żłobizna | B35: Jaśminowa | C35: 4A/2 | D35: 3 | E35: - | F35: - | G35: - | H35: - | I35: - | J35: - | K35: pojemnik zbiorczy
A36: Żłobizna | B36: Jaśminowa | C36: 4A/3 | D36: 1 | E36: - | F36: - | G36: - | H36: - | I36: - | J36: - | K36: pojemnik zbiorczy
A37: Żłobizna | B37: Jaśminowa | C37: 4A/4 | D37: 1 | E37: - | F37: - | G37: - | H37: - | I37: - | J37: - | K37: pojemnik zbiorczy
A38: Żłobizna | B38: Jaśminowa | C38: 4A/5 | D38: 2 | E38: - | F38: - | G38: - | H38: - | I38: - | J38: - | K38: pojemnik zbiorczy
A39: Żłobizna | B39: Jaśminowa | C39: 4A/6 | D39: 2 | E39: - | F39: - | G39: - | H39: - | I39: - | J39: - | K39: pojemnik zbiorczy
A40: Żłobizna | B40: Jaśminowa | C40: 4B/1 | D40: 0 | E40: - | F40: - | G40: - | H40: - | I40: - | J40: - | K40: pojemnik zbiorczy
A41: Żłobizna | B41: Jaśminowa | C41: 4B/2 | D41: 2 | E41: - | F41: - | G41: - | H41: - | I41: - | J41: - | K41: pojemnik zbiorczy
A42: Żłobizna | B42: Jaśminowa | C42: 4B/3 | D42: 2 | E42: - | F42: - | G42: - | H42: - | I42: - | J42: - | K42: pojemnik zbiorczy
A43: Żłobizna | B43: Jaśminowa | C43: 4B/4 | D43: 1 | E43: - | F43: - | G43: - | H43: - | I43: - | J43: - | K43: pojemnik zbiorczy
A44: Żłobizna | B44: Jaśminowa | C44: 4B/5 | D44: 2 | E44: - | F44: - | G44: - | H44: - | I44: - | J44: - | K44: pojemnik zbiorczy
A45: Żłobizna | B45: Jaśminowa | C45: 4B/6 | D45: 2 | E45: - | F45: - | G45: - | H45: - | I45: - | J45: - | K45: pojemnik zbiorczy
A46: Żłobizna | B46: Jaśminowa | C46: 6 | D46: 2 | E46: - | F46: 1 | G46: - | H46: - | I46: - | J46: 1
A47: Żłobizna | B47: Jaśminowa | C47: 8 | D47: 2 | E47: - | F47: - | G47: 1 | H47: - | I47: - | J47: 1
A48: Żłobizna | B48: Jaśminowa | C48: 9 | D48: 3 | E48: - | F48: - | G48: 1 | H48: - | I48: - | J48: 1
A49: Żłobizna | B49: Jaśminowa | C49: 10 | D49: 2 | E49: - | F49: 1 | G49: - | H49: - | I49: - | J49: 1
A50: Żłobizna | B50: Jaśminowa | C50: 13/1 | D50: 1 | E50: - | F50: - | G50: - | H50: 1 | I50: - | J50: 1
C51: suma | D51: =SUM(D4:D50) -> 93 | E51: 0 | F51: 2 | G51: 2 | H51: 1 | I51: 0 | J51: 5
A55: nieruchomości zamieszkałe: | C55: 47

Sheet Żłobizna, ul. Ir,Jag,Kon,Kal.
A1: Miejscowość | B1: Ulica | C1: Nr posesji | D1: Liczba Mieszkańców | E1: Pojemniki zadeklarowane | H1: kompostownik | I1: Zapotrzebowanie na pojemniki | L1: Uwagi | N1: I R Y S O W A
I2: odpady zmieszane | K2: szkło
E3: 110 l. | F3: 120 l. | G3: 240 l. | I3: 120 l. | J3: 240 l. | K3: 120 l.
A4: Żłobizna | B4: Irysowa | C4: 1 | D4: 3 | E4: - | F4: - | G4: - | H4: nie | I4: - | J4: 1 | K4: 1
A5: Żłobizna | B5: Irysowa | C5: 3 | D5: 4 | E5: - | F5: - | G5: 1 | H5: nie | I5: - | J5: - | K5: 1
C6: suma | D6: =SUM(D4:D5) -> 7 | E6: =SUM(E5) -> 0 | F6: =SUM(F5) -> 0 | G6: =SUM(G5) -> 1 | I6: =SUM(I5) -> 0 | J6: =SUM(J4:J5) -> 1 | K6: =SUM(K4:K5) -> 2
A10: Miejscowość | B10: Ulica | C10: Nr posesji | D10: Liczba Mieszkańców | E10: Pojemniki zadeklarowane | H10: kompostownik | I10: Zapotrzebowanie na pojemniki | L10: Uwagi | N10: J A G O D O W A
I11: odpady zmieszane | K11: szkło
E12: 110 l. | F12: 120 l. | G12: 240 l. | I12: 120 l. | J12: 240 l. | K12: 120 l.
A13: Żłobizna | B13: Jagodowa | C13: 9 | D13: 4 | E13: - | F13: 1 | G13: - | H13: tak | I13: 1 | J13: - | K13: 1
A14: Żłobizna | B14: Jagodowa | C14: 20 | D14: 2 | E14: - | F14: - | G14: - | H14: tak | I14: 1 | J14: - | K14: 1
C15: suma | D15: =SUM(D13:D14) -> 6 | E15: =SUM(E14) -> 0 | F15: =SUM(F13:F14) -> 1 | G15: 0 | I15: =SUM(I13:I14) -> 2 | J15: 0 | K15: =SUM(K13:K14) -> 2
A19: Miejscowość | B19: Ulica | C19: Nr posesji | D19: Liczba Mieszkańców | E19: Pojemniki zadeklarowane | H19: kompostownik | I19: Zapotrzebowanie na pojemniki | L19: Uwagi
I20: odpady zmieszane | K20: szkło
E21: 110 l. | F21: 120 l. | G21: 240 l. | I21: 120 l. | J21: 240 l. | K21: 120 l. | N21: K O N W A L I O W A
A22: Żłobizna | B22: Konwaliowa | C22: 1 | D22: 2 | E22: - | F22: 1 | G22: - | H22: nie | I22: - | J22: - | K22: 1
A23: Żłobizna | B23: Konwaliowa | C23: 2 | D23: 2 | E23: 1 | F23: - | G23: - | H23: tak | I23: - | J23: - | K23: 1
A24: Żłobizna | B24: Konwaliowa | C24: 3 | D24: 3 | E24: - | F24: - | G24: 1 | H24: tak | I24: - | J24: - | K24: 1
A25: Żłobizna | B25: Konwaliowa | C25: 4 | D25: 5 | E25: - | F25: 2 | G25: - | H25: tak | I25: - | J25: - | K25: 1
A26: Żłobizna | B26: Konwaliowa | C26: 5 | D26: 4 | E26: - | F26: - | G26: 1 | H26: nie | I26: - | J26: - | K26: 1
A27: Żłobizna | B27: Konwaliowa | C27: 7 | D27: 4 | E27: - | F27: - | G27: 1 | H27: nie | I27: - | J27: - | K27: 1
A28: Żłobizna | B28: Konwaliowa | C28: 8 | D28: 4 | E28: - | F28: - | G28: 1 | H28: tak | I28: - | J28: - | K28: 1
A29: Żłobizna | B29: Konwaliowa | C29: 9 | D29: 3 | E29: - | F29: 1 | G29: - | H29: tak | I29: 1 | J29: - | K29: 1
A30: Żłobizna | B30: Konwaliowa | C30: 10 | D30: 3 | E30: - | F30: - | G30: 1 | H30: tak | I30: - | J30: - | K30: 1
A31: Żłobizna | B31: Konwaliowa | C31: 12 | D31: 3 | E31: - | F31: - | G31: - | H31: tak | I31: - | J31: 1 | K31: 1
A32: Żłobizna | B32: Konwaliowa | C32: 14 | D32: 3 | E32: - | F32: 1 | G32: - | H32: nie | I32: 1 | J32: - | K32: 1
A33: Żłobizna | B33: Konwaliowa | C33: 18 | D33: 4 | E33: - | F33: 1 | G33: - | H33: tak | I33: 1 | J33: - | K33: 1
C34: suma | D34: =SUM(D22:D33) -> 40 | E34: 1 | F34: 6 | G34: 5 | I34: 3 | J34: 1 | K34: =SUM(K22:K33) -> 12
A38: Miejscowość | B38: Ulica | C38: Nr posesji | D38: Liczba Mieszkańców | E38: Pojemniki zadeklarowane | H38: kompostownik | I38: Zapotrzebowanie na pojemniki | L38: Uwagi | N38: K A L I N O W A
I39: odpady zmieszane | K39: szkło
E40: 110 l. | F40: 120 l. | G40: 240 l. | I40: 120 l. | J40: 240 l. | K40: 120 l.
A41: Żłobizna | B41: Kalinowa | C41: 1 | D41: 4 | E41: 1 | F41: - | G41: - | H41: nie | I41: 1 | J41: - | K41: 1
C42: suma | D42: =SUM(D41:D41) -> 4 | E42: =SUM(E41:E41) -> 1 | F42: =SUM(F41:F41) -> 0 | G42: =SUM(G41:G41) -> 0 | I42: =SUM(I41:I41) -> 1 | J42: =SUM(J41:J41) -> 0 | K42: =SUM(K41) -> 1
A46: nieruchomości zamieszkałe: | C46: 17

Sheet Żłobizna, ul. Lil, Mag, Mal, St
A3: Miejscowość | B3: Ulica | C3: Nr posesji | D3: Liczba Mieszkańców | E3: Pojemniki zadeklarowane | H3: kompostownik | I3: Zapotrzebowanie na pojemniki | L3: Uwagi | N3: L I L I O W A
I4: odpady zmieszane | K4: szkło
E5: 110 l. | F5: 120 l. | G5: 240 l. | I5: 120 l. | J5: 240 l. | K5: 120 l.
A6: Żłobizna | B6: Liliowa | C6: 1 | D6: 3 | E6: - | F6: - | G6: - | H6: nie | I6: - | J6: 1 | K6: 1
A7: Żłobizna | B7: Liliowa | C7: 3 | D7: 3 | E7: - | F7: - | G7: - | H7: nie | I7: - | J7: 1 | K7: 1
A8: Żłobizna | B8: Liliowa | C8: 5 | D8: 3 | E8: - | F8: - | G8: - | H8: nie | I8: - | J8: 1 | K8: 1
C9: suma | D9: =SUM(D6:D8) -> 9 | E9: 0 | F9: 0 | G9: 0 | I9: 0 | J9: 3 | K9: =SUM(K6:K8) -> 3
A13: Miejscowość | B13: Ulica | C13: Nr posesji | D13: Liczba Mieszkańców | E13: Pojemniki zadeklarowane | H13: kompostownik | I13: Zapotrzebowanie na pojemniki | L13: Uwagi | N13: M A G N O L I I
I14: odpady zmieszane | K14: szkło
E15: 110 l. | F15: 120 l. | G15: 240 l. | I15: 120 l. | J15: 240 l. | K15: 120 l.
A16: Żłobizna | B16: Magnolii | C16: 4 | D16: 4 | E16: - | F16: - | G16: 1 | H16: tak | I16: - | J16: - | K16: 1
A17: Żłobizna | B17: Magnolii | C17: 7 | D17: 5 | E17: - | F17: - | G17: 1 | H17: tak | I17: - | J17: - | K17: 1
C18: suma | D18: =SUM(D16:D17) -> 9 | E18: =SUM(E16:E17) -> 0 | F18: =SUM(F16:F17) -> 0 | G18: =SUM(G16:G17) -> 2 | I18: =SUM(I16:I17) -> 0 | J18: =SUM(J16:J17) -> 0 | K18: =SUM(K16:K17) -> 2
A22: Miejscowość | B22: Ulica | C22: Nr posesji | D22: Liczba Mieszkańców | E22: Pojemniki zadeklarowane | H22: kompostownik | I22: Zapotrzebowanie na pojemniki | L22: Uwagi
I23: odpady zmieszane | K23: szkło
E24: 110 l. | F24: 120 l. | G24: 240 l. | I24: 120 l. | J24: 240 l. | K24: 120 l.
A25: Żłobizna | B25: Malinowa | C25: 2 | D25: 2 | E25: - | F25: 1 | G25: - | H25: nie | I25: - | J25: - | K25: 1
A26: Żłobizna | B26: Malinowa | C26: 3 | D26: 2 | E26: 1 | F26: - | G26: - | H26: tak | I26: - | J26: - | K26: 1
A27: Żłobizna | B27: Malinowa | C27: 5 | D27: 2 | E27: 1 | F27: - | G27: - | H27: tak | I27: - | J27: - | K27: 1
A28: Żłobizna | B28: Malinowa | C28: 6 | D28: 5 | E28: - | F28: 1 | G28: - | H28: nie | I28: 1 | J28: - | K28: 1 | N28: M A L I N O W A
A29: Żłobizna | B29: Malinowa | C29: 7 | D29: 2 | E29: 1 | F29: - | G29: - | H29: nie | I29: - | J29: - | K29: 1
A30: Żłobizna | B30: Malinowa | C30: 11 | D30: 4 | E30: - | F30: - | G30: - | H30: nie | I30: - | J30: 1 | K30: 1
A31: Żłobizna | B31: Malinowa | C31: 12 | D31: 3 | E31: 1 | F31: - | G31: - | H31: nie | I31: 1 | J31: - | K31: 1
A32: Żłobizna | B32: Malinowa | C32: 13 | D32: 2 | E32: 1 | F32: - | G32: - | H32: tak | I32: - | J32: - | K32: 1
A33: Żłobizna | B33: Malinowa | C33: 15 | D33: 2 | E33: - | F33: 1 | G33: - | H33: tak | I33: - | J33: - | K33: 1
A34: Żłobizna | B34: Malinowa | C34: 17 | D34: 3 | E34: - | F34: - | G34: - | H34: tak | I34: - | J34: 1 | K34: 1
A35: Żłobizna | B35: Malinowa | C35: 19 | D35: 3 | E35: 1 | F35: - | G35: - | H35: tak | I35: 1 | J35: - | K35: 1
A36: Żłobizna | B36: Malinowa | C36: 20 | D36: 1 | E36: - | F36: - | G36: - | H36: nie | I36: 1 | J36: - | K36: 1
A37: Żłobizna | B37: Malinowa | C37: 21 | D37: 5 | E37: - | F37: - | G37: 1 | H37: tak | I37: - | J37: - | K37: 1
A38: Żłobizna | B38: Malinowa | C38: 25 | D38: 3 | E38: - | F38: - | G38: - | H38: tak | I38: - | J38: 1 | K38: 1
C39: suma | D39: =SUM(D25:D38) -> 39 | E39: =SUM(E25:E38) -> 6 | F39: =SUM(F25:F38) -> 3 | G39: =SUM(G25:G38) -> 1 | I39: =SUM(I25:I38) -> 4 | J39: =SUM(J25:J38) -> 3 | K39: =SUM(K25:K38) -> 14
A43: Miejscowość | B43: Ulica | C43: Nr posesji | D43: Liczba Mieszkańców | E43: Pojemniki zadeklarowane | H43: kompostownik | I43: Zapotrzebowanie na pojemniki | L43: Uwagi
I44: odpady zmieszane | K44: szkło
E45: 110 l. | F45: 120 l. | G45: 240 l. | I45: 120 l. | J45: 240 l. | K45: 120 l. | N45: S T O K R O T K I
A46: Żłobizna | B46: Stokrotki | C46: 2 | D46: 4 | E46: - | F46: - | G46: - | H46: nie | I46: - | J46: 1 | K46: 1
A47: Żłobizna | B47: Stokrotki | C47: 4 | D47: 3 | E47: - | F47: - | G47: - | H47: tak | I47: - | J47: 1 | K47: 1
A48: Żłobizna | B48: Stokrotki | C48: 6 | D48: 3 | E48: - | F48: - | G48: - | H48: tak | I48: - | J48: 1 | K48: 1
A49: Żłobizna | B49: Stokrotki | C49: 11 | D49: 5 | E49: - | F49: - | G49: - | H49: nie | I49: - | J49: 1 | K49: 1
A50: Żłobizna | B50: Stokrotki | C50: 16 | D50: 2 | E50: - | F50: 1 | G50: - | H50: nie | I50: - | J50: - | K50: 1
A51: Żłobizna | B51: Stokrotki | C51: 18 | D51: 4 | E51: - | F51: - | G51: - | H51: nie | I51: - | J51: 1 | K51: 1
A52: Żłobizna | B52: Stokrotki | C52: 22 | D52: 2 | E52: - | F52: 1 | G52: - | H52: tak | I52: - | J52: 1 | K52: 1
A53: Żłobizna | B53: Stokrotki | C53: 29 | D53: 2 | E53: - | F53: - | G53: - | H53: nie | I53: 1 | J53: - | K53: 1
A54: Żłobizna | B54: Stokrotki | C54: 32 | D54: 4 | E54: - | F54: - | G54: 1 | H54: nie | I54: - | J54: - | K54: 1
A55: Żłobizna | B55: Stokrotki | C55: 33 | D55: 2 | E55: - | F55: - | G55: - | H55: tak | I55: 1 | J55: - | K55: 1
A56: Żłobizna | B56: Stokrotki | C56: 39 | D56: 2 | E56: - | F56: - | G56: - | H56: nie | I56: 1 | J56: - | K56: 1
A57: Żłobizna | B57: Stokrotki | C57: 40 | D57: 3 | E57: - | F57: - | G57: - | H57: nie | I57: - | J57: 1 | K57: 1
A58: Żłobizna | B58: Stokrotki | C58: 41 | D58: 4 | E58: - | F58: - | G58: - | H58: nie | I58: - | J58: 1 | K58: 1
A59: Żłobizna | B59: Stokrotki | C59: 42 | D59: 2 | E59: - | F59: - | G59: - | H59: tak | I59: 1 | J59: - | K59: 1
C60: suma | D60: =SUM(D46:D59) -> 42 | E60: 0 | F60: 2 | G60: 1 | I60: 4 | J60: 8 | K60: =SUM(K46:K59) -> 14
A63: nieruchomości zamieszkałe: | C63: 33

Sheet Żobizna, ul. Róż., Law. i dz.
A1: Miejscowość | B1: Ulica | C1: Nr posesji | D1: Liczba Mieszkańców | E1: Pojemniki zadeklarowane | H1: kompostownik | I1: Zapotrzebowanie na pojemniki | L1: Uwagi
I2: odpady zmieszane | K2: szkło
E3: 110 l. | F3: 120 l. | G3: 240 l. | I3: 120 l. | J3: 240 l. | K3: 120 l.
A4: Żłobizna | B4: Różana | C4: 2 | D4: 3 | E4: - | F4: - | G4: 1 | H4: nie | I4: - | J4: - | K4: 1
A5: Żłobizna | B5: Różana | C5: 3 | D5: 3 | E5: - | F5: - | G5: - | H5: tak | I5: - | J5: 1 | K5: 1 | N5: R Ó Ż A N A
A6: Żłobizna | B6: Różana | C6: 4 | D6: 2 | E6: - | F6: - | G6: - | H6: tak | I6: 1 | J6: - | K6: 1
A7: Żłobizna | B7: Różana | C7: 9 | D7: 4 | E7: - | F7: - | G7: - | H7: tak | I7: - | J7: 1 | K7: 1
A8: Żłobizna | B8: Różana | C8: 12 | D8: 5 | E8: - | F8: - | G8: - | H8: tak | I8: - | J8: 1 | K8: 1
A9: Żłobizna | B9: Różana | C9: 37 | D9: 5 | E9: - | F9: - | G9: - | H9: nie | I9: - | J9: 1 | K9: 1
A10: Żłobizna | B10: Różana | C10: 38 | D10: 4 | E10: - | F10: - | G10: - | H10: tak | I10: - | J10: 1 | K10: 1
A11: Żłobizna | B11: Różana | C11: 38A | D11: 2 | E11: - | F11: - | G11: - | H11: nie | I11: 1 | J11: - | K11: 1
C12: razem | D12: =SUM(D4:D11) -> 28 | E12: =SUM(E4:E11) -> 0 | F12: =SUM(F4:F11) -> 0 | G12: =SUM(G4:G11) -> 1 | I12: =SUM(I4:I11) -> 2 | J12: =SUM(J4:J11) -> 5 | K12: =SUM(K4:K11) -> 8
A16: Miejscowość | B16: Ulica | C16: Nr posesji | D16: Liczba Mieszkańców | E16: Pojemniki zadeklarowane | H16: kompostownik | I16: Zapotrzebowanie na pojemniki | L16: Uwagi
I17: odpady zmieszane | K17: szkło
E18: 110 l. | F18: 120 l. | G18: 240 l. | I18: 120 l. | J18: 240 l. | K18: 120 l.
A19: Żłobizna | B19: - | C19: 96 | D19: 1 | E19: - | F19: - | G19: - | H19: nie | I19: 1 | J19: - | K19: 1
A20: Żłobizna | B20: - | C20: 200 | D20: 1 | E20: - | F20: - | G20: - | H20: nie | I20: 1 | J20: - | K20: 1
C21: razem | D21: =SUM(D19:D20) -> 2 | E21: 0 | F21: 0 | G21: 0 | I21: 2 | J21: 0 | K21: =SUM(K19:K20) -> 2
A25: Miejscowość | B25: Ulica | C25: Nr posesji | D25: Liczba Mieszkańców | E25: Pojemniki zadeklarowane | H25: kompostownik | I25: Zapotrzebowanie na pojemniki | L25: Uwagi | N25: L A W E N D O W A
I26: odpady zmieszane | K26: szkło
E27: 110 l. | F27: 120 l. | G27: 240 l. | I27: 120 l. | J27: 240 l. | K27: 120 l.
A28: Żłobizna | B28: Lawendowa | C28: 5 | D28: 4 | E28: - | F28: - | G28: - | H28: tak | I28: - | J28: 1 | K28: 1
C29: razem | D29: =SUM(D28:D28) -> 4 | E29: =SUM(E28:E28) -> 0 | F29: =SUM(F28:F28) -> 0 | G29: =SUM(G28:G28) -> 0 | I29: =SUM(I28:I28) -> 0 | J29: =SUM(J28:J28) -> 1 | K29: =SUM(K28) -> 1
A32: nieruchomości zamieszkałe: | C32: 11

Sheet Zielęcice, ul.Ak, Brz, Cis, Dęb
A1: Miejscowość | B1: Ulica | C1: Nr posesji | D1: Liczba Mieszkańców | E1: Pojemniki zadeklarowane | H1: kompostownik | I1: Zapotrzebowanie na pojemniki | L1: Uwagi | N1: A K A C J O W A
I2: odpady zmieszane | K2: szkło
E3: 110 l. | F3: 120 l. | G3: 240 l. | I3: 120 l. | J3: 240 l. | K3: 120 l.
A4: Zielęcice | B4: Akacjowa | C4: 1 | D4: 3 | E4: - | F4: - | G4: - | H4: nie | I4: - | J4: 1 | K4: 1
A5: Zielęcice | B5: Akacjowa | C5: 2 | D5: 3 | E5: - | F5: 3 | G5: - | H5: nie | I5: - | J5: - | K5: 1
A6: Zielęcice | B6: Akacjowa | C6: 4 | D6: 2 | E6: - | F6: - | G6: - | H6: nie | I6: 1 | J6: - | K6: 1
C7: suma | D7: =SUM(D4:D6) -> 8 | E7: 0 | F7: 3 | G7: 0 | H7: - | I7: 1 | J7: 1 | K7: =SUM(K4:K6) -> 3
A11: Miejscowość | B11: Ulica | C11: Nr posesji | D11: Liczba Mieszkańców | E11: Pojemniki zadeklarowane | H11: kompostownik | I11: Zapotrzebowanie na pojemniki | L11: Uwagi | N11: B R Z O Z O W A
I12: odpady zmieszane | K12: szkło
E13: 110 l | F13: 120 l | G13: 240 l | I13: 120 l | J13: 240 l | K13: 120 l.
A14: Zielęcice | B14: Brzozowa | C14: 4 | D14: 4 | E14: - | F14: - | G14: 1 | H14: nie | I14: - | J14: - | K14: 1
C15: suma | D15: =SUM(D14) -> 4 | E15: 0 | F15: 0 | G15: 1 | H15: - | I15: 0 | J15: 0 | K15: =SUM(K14) -> 1
A19: Miejscowość | B19: Ulica | C19: Nr posesji | D19: Liczba Mieszkańców | E19: Pojemniki zadeklarowane | H19: kompostownik | I19: Zapotrzebowanie na pojemniki | L19: Uwagi | N19: C I S O W A
I20: odpady zmieszane | K20: szkło
E21: 110 l. | F21: 120 l. | G21: 240 l. | I21: 120 l. | J21: 240 l. | K21: 120 l.
A22: Zielęcice | B22: Cisowa | C22: 6 | D22: 5 | E22: - | F22: - | G22: 1 | H22: tak | I22: - | J22: - | K22: 1
A23: Zielęcice | B23: Cisowa | C23: 9 | D23: 2 | E23: - | F23: 1 | G23: - | H23: tak | I23: - | J23: - | K23: 1
C24: suma | D24: =SUM(D22:D23) -> 7 | E24: =SUM(E22:E23) -> 0 | F24: =SUM(F22:F23) -> 1 | G24: =SUM(G22:G23) -> 1 | H24: - | I24: =SUM(I22:I23) -> 0 | J24: =SUM(J22:J23) -> 0 | K24: =SUM(K22:K23) -> 2
A28: Miejscowość | B28: Ulica | C28: Nr posesji | D28: Liczba Mieszkańców | E28: Pojemniki zadeklarowane | H28: kompostownik | I28: Zapotrzebowanie na pojemniki | L28: Uwagi | N28: D Ę B O W A
I29: odpady zmieszane | K29: szkło
E30: 110 l. | F30: 120 l. | G30: 240 l. | I30: 120 l. | J30: 240 l. | K30: 120 l.
A31: Zielęcice | B31: Dębowa | C31: 3 | D31: 6 | E31: - | F31: - | G31: 1 | H31: nie | I31: 1 | J31: - | K31: 1
C32: suma | D32: =SUM(D31) -> 6 | E32: - | F32: - | G32: 1 | H32: - | I32: 1 | J32: - | K32: =SUM(K31) -> 1
A36: nieruchomości zamieszkałe: | C36: 7

Sheet Zielęcice,ul. Dział, Jabł, Kasz
A1: Miejscowość | B1: Ulica | C1: Nr posesji | D1: Liczba Mieszkańców | E1: Pojemniki zadeklarowane | H1: kompostownik | I1: Zapotrzebowanie na pojemniki | L1: Uwagi | N1: D Z I A Ł K O W A
I2: odpady zmieszane | K2: szkło
E3: 110 l. | F3: 120 l. | G3: 240 l. | I3: 120 l. | J3: 240 l. | K3: 120 l.
A4: Zielęcice | B4: Działkowa | C4: 2 | D4: 4 | E4: - | F4: - | G4: 1 | H4: tak | I4: - | J4: - | K4: 1
A5: Zielęcice | B5: Działkowa | C5: 4 | D5: 2 | E5: - | F5: 1 | G5: - | H5: tak | I5: - | J5: - | K5: 1
C6: suma | D6: =SUM(D4:D5) -> 6 | E6: - | F6: 1 | G6: 1 | H6: - | I6: - | J6: - | K6: =SUM(K4:K5) -> 2
A10: Miejscowość | B10: Ulica | C10: Nr posesji | D10: Liczba Mieszkańców | E10: Pojemniki zadeklarowane | H10: kompostownik | I10: Zapotrzebowanie na pojemniki | L10: Uwagi
I11: odpady zmieszane | K11: szkło | N11: JABŁKOWA
E12: 110 l. | F12: 120 l. | G12: 240 l. | I12: 120 l. | J12: 240 l. | K12: 120 l.
A13: Zielęcice | B13: Jabłkowa | C13: 2 | D13: 4 | E13: - | F13: - | G13: 1 | H13: tak | I13: - | J13: - | K13: 1
A14: Zielęcice | B14: Jabłkowa | C14: 3 | D14: 4 | E14: - | F14: 1 | G14: - | H14: tak | I14: 1 | J14: - | K14: 1
A15: Zielęcice | B15: Jabłkowa | C15: 5 | D15: 4 | E15: - | F15: - | G15: 1 | H15: tak | I15: - | J15: - | K15: 1
A16: Zielęcice | B16: Jabłkowa | C16: 6 | D16: 2 | E16: - | F16: - | G16: 1 | H16: nie | I16: - | J16: - | K16: 1
C17: suma | D17: =SUM(D13:D16) -> 14 | E17: 0 | F17: 1 | G17: 3 | I17: 1 | J17: 0 | K17: =SUM(K13:K16) -> 4
A21: Miejscowość | B21: Ulica | C21: Nr posesji | D21: Liczba Mieszkańców | E21: Pojemniki zadeklarowane | H21: kompostownik | I21: Zapotrzebowanie na pojemniki | L21: Uwagi | N21: KASZTANOWA
I22: odpady zmieszane | K22: szkło
E23: 110 l. | F23: 120 l. | G23: 240 l. | I23: 120 l. | J23: 240 l. | K23: 120 l.
A24: Zielęcice | B24: Kasztanowa | C24: 1 | D24: 4 | E24: 1 | F24: - | G24: 1 | H24: tak | I24: - | J24: - | K24: 1
A25: Zielęcice | B25: Kasztanowa | C25: 3 | D25: 2 | E25: 1 | F25: - | G25: - | H25: nie | I25: - | J25: - | K25: 1
A26: Zielęcice | B26: Kasztanowa | C26: 4 | D26: 2 | E26: - | F26: - | G26: - | H26: nie | I26: 1 | J26: - | K26: 1
C27: suma | D27: =SUM(D24:D26) -> 8 | E27: 2 | F27: 0 | G27: 1 | I27: 1 | J27: 0 | K27: =SUM(K24:K26) -> 3
A31: nieruchomości zamieszkałe: | C31: 9

Sheet Zielęcice, ul. Klonowa
A1: Miejscowość | B1: Ulica | C1: Nr posesji | D1: Liczba Mieszkańców | E1: Pojemniki zadeklarowane | H1: kompostownik | I1: Zapotrzebowanie na pojemniki | L1: Uwagi
I2: odpady zmieszane | K2: szkło
E3: 110 l. | F3: 120 l. | G3: 240 l. | I3: 120 l. | J3: 240 l. | K3: 120 l.
A4: Zielęcice | B4: Klonowa | C4: 1 | D4: 7 | E4: - | F4: - | G4: 1 | H4: tak | I4: 1 | J4: - | K4: 1
A5: Zielęcice | B5: Klonowa | C5: 2 | D5: 2 | E5: - | F5: 1 | G5: - | H5: tak | I5: - | J5: - | K5: 1
A6: Zielęcice | B6: Klonowa | C6: 3 | D6: 4 | E6: 1 | F6: - | G6: - | H6: tak | I6: 1 | J6: - | K6: 1
A7: Zielęcice | B7: Klonowa | C7: 4 | D7: 2 | E7: - | F7: 1 | G7: - | H7: tak | I7: - | J7: - | K7: 1
A8: Zielęcice | B8: Klonowa | C8: 5 | D8: 1 | E8: - | F8: 1 | G8: - | H8: tak | I8: - | K8: 1
A9: Zielęcice | B9: Klonowa | C9: 6 | D9: 3 | E9: - | F9: - | G9: - | H9: nie | I9: - | J9: 1 | K9: 1
A10: Zielęcice | B10: Klonowa | C10: 8 | D10: 2 | E10: - | F10: - | G10: 1 | H10: tak | I10: - | J10: - | K10: 1 | N10: K L O N O W A
A11: Zielęcice | B11: Klonowa | C11: 9 | D11: 3 | E11: - | F11: - | G11: 1 | H11: nie | I11: - | J11: - | K11: 1
A12: Zielęcice | B12: Klonowa | C12: 10 | D12: 2 | E12: 1 | F12: - | G12: - | H12: nie | I12: - | J12: - | K12: 1
A13: Zielęcice | B13: Klonowa | C13: 13 | D13: 4 | E13: - | F13: - | G13: 1 | H13: tak | I13: - | J13: - | K13: 1
A14: Zielęcice | B14: Klonowa | C14: 14 | D14: 1 | E14: - | F14: - | G14: 1 | H14: tak | I14: - | J14: - | K14: 1
A15: Zielęcice | B15: Klonowa | C15: 15 | D15: 2 | E15: - | F15: - | G15: - | H15: tak | I15: 1 | J15: - | K15: 1
A16: Zielęcice | B16: Klonowa | C16: 16 | D16: 4 | E16: - | F16: - | G16: 1 | H16: nie | I16: - | J16: - | K16: 1
A17: Zielęcice | B17: Klonowa | C17: 18 | D17: 4 | E17: - | F17: - | G17: 1 | H17: tak | I17: - | J17: - | K17: 1
A18: Zielęcice | B18: Klonowa | C18: 20 | D18: 1 | E18: - | F18: 1 | G18: - | H18: nie | I18: - | J18: - | K18: 1
A19: Zielęcice | B19: Klonowa | C19: 20A | D19: 3 | E19: - | F19: - | G19: - | H19: nie | I19: - | J19: 1 | K19: 1
A20: Zielęcice | B20: Klonowa | C20: 21 | D20: 4 | E20: - | F20: 1 | G20: - | H20: tak | I20: 1 | J20: - | K20: 1
A21: Zielęcice | B21: Klonowa | C21: 23 | D21: 2 | E21: - | F21: 1 | G21: - | H21: nie | I21: - | J21: - | K21: 1
A22: Zielęcice | B22: Klonowa | C22: 25/1 | D22: 3 | E22: - | F22: - | G22: 1 | H22: nie | I22: - | J22: - | K22: 1
A23: Zielęcice | B23: Klonowa | C23: 25/2 | D23: 1 | E23: - | F23: 1 | G23: - | H23: nie | I23: - | J23: - | K23: 1
A24: Zielęcice | B24: Klonowa | C24: 25/3 | D24: 4 | E24: - | F24: - | G24: - | H24: nie | I24: - | J24: 1 | K24: 1
A25: Zielęcice | B25: Klonowa | C25: 26 | D25: 3 | E25: - | F25: - | G25: 1 | H25: nie | I25: - | J25: - | K25: 1
A26: Zielęcice | B26: Klonowa | C26: 28 | D26: 3 | E26: - | F26: - | G26: 1 | H26: tak | I26: - | J26: - | K26: 1
A27: Zielęcice | B27: Klonowa | C27: 30 | D27: 1 | E27: - | F27: - | G27: 1 | H27: nie | I27: - | J27: - | K27: 1
A28: Zielęcice | B28: Klonowa | C28: 32 | D28: 3 | E28: - | F28: - | G28: 1 | H28: tak | I28: - | J28: - | K28: 1
A29: Zielęcice | B29: Klonowa | C29: 32 | D29: 2 | E29: - | F29: - | G29: 1 | H29: nie | I29: - | J29: - | K29: 1
A30: Zielęcice | B30: Klonowa | C30: 34 | D30: 5 | E30: - | F30: - | G30: 1 | H30: nie | I30: 1 | J30: - | K30: 1
A31: Zielęcice | B31: Klonowa | C31: 36 | D31: 3 | E31: 1 | F31: - | G31: - | H31: tak | I31: 1 | J31: - | K31: 1
A32: Zielęcice | B32: Klonowa | C32: 38 | D32: 3 | E32: - | F32: - | G32: - | H32: tak | I32: - | J32: 1 | K32: 1
C33: suma | D33: =SUM(D4:D32) -> 82 | E33: 3 | F33: 7 | G33: 14 | I33: 6 | J33: 4 | K33: =SUM(K4:K32) -> 29
A37: nieruchomości zamieszkałe: | C37: 29

Sheet Zielęcice, ul. Dłu, Zielo, Gaj
A1: Miejscowość | B1: Ulica | C1: Nr posesji | D1: Liczba Mieszkańców | E1: Pojemniki zadeklarowane | H1: kompostownik | I1: Zapotrzebowanie na pojemniki | L1: Uwagi
I2: odpady zmieszane | K2: szkło
E3: 110 l. | F3: 120 l. | G3: 240 l. | I3: 120 l. | J3: 240 l. | K3: 120 l.
A4: Zielęcice | B4: Zielona | C4: 1 | D4: 2 | E4: - | F4: 1 | G4: - | H4: tak | I4: - | J4: - | K4: 1
A5: Zielęcice | B5: Zielona | C5: 6 | D5: 1 | E5: - | F5: - | G5: - | H5: nie | I5: 1 | J5: - | K5: 1 | N5: Z I E L O N A
A6: Zielęcice | B6: Zielona | C6: 7A | D6: 4 | E6: - | F6: - | G6: - | H6: nie | I6: - | J6: 1 | K6: 1
A7: Zielęcice | B7: Zielona | C7: 8 | D7: 4 | E7: - | F7: 1 | G7: - | H7: nie | I7: 1 | J7: - | K7: 1
A8: Zielęcice | B8: Zielona | C8: 13A | D8: 3 | E8: - | F8: - | G8: - | H8: nie | I8: - | J8: 1 | K8: 1
A9: Zielęcice | B9: Zielona | C9: 14 | D9: 4 | E9: - | F9: - | G9: 1 | H9: tak | I9: - | J9: - | K9: 1
A10: Zielęcice | B10: Zielona | C10: 15 | D10: 3 | E10: - | F10: - | G10: 1 | H10: tak | I10: - | J10: - | K10: 1
A11: Zielęcice | B11: Zielona | C11: 17 | D11: 4 | E11: - | F11: - | G11: - | H11: tak | I11: - | J11: 1 | K11: 1
A12: Zielęcice | B12: Zielona | C12: 18 | D12: 3 | E12: - | F12: 1 | G12: - | H12: nie | I12: 1 | J12: - | K12: 1
A13: Zielęcice | B13: Zielona | C13: 23 | D13: 6 | E13: - | F13: - | G13: 2 | H13: tak | I13: - | J13: - | K13: 1
C14: suma | D14: =SUM(D4:D13) -> 34 | E14: =SUM(E4:E13) -> 0 | F14: =SUM(F4:F13) -> 3 | G14: =SUM(G4:G13) -> 4 | I14: =SUM(I4:I13) -> 3 | J14: =SUM(J4:J13) -> 3 | K14: =SUM(K4:K13) -> 10
A18: Miejscowość | B18: Ulica | C18: Nr posesji | D18: Liczba Mieszkańców | E18: Pojemniki zadeklarowane | H18: kompostownik | I18: Zapotrzebowanie na pojemniki | L18: Uwagi | N18: D Ł U G A
I19: odpady zmiszane | K19: szkło
E20: 110 l. | F20: 120 l. | G20: 240 l. | I20: 120 l. | J20: 240 l. | K20: 120 l.
A21: Zielęcice | B21: Długa | C21: 36 | D21: 4 | E21: - | F21: - | G21: - | H21: nie | I21: - | J21: 1 | K21: 1
A22: Zielęcice | B22: Długa | C22: 42 | D22: 2 | E22: - | F22: 1 | G22: - | H22: tak | I22: - | J22: - | K22: 1
A23: Zielęcice | B23: Długa | C23: dz. nr 247/2 | D23: 4 | E23: - | F23: - | G23: - | H23: nie | I23: - | J23: 1 | K23: 1
C24: suma | D24: =SUM(D21:D23) -> 10 | E24: =SUM(E21:E23) -> 0 | F24: =SUM(F21:F23) -> 1 | G24: =SUM(G21:G23) -> 0 | I24: =SUM(I21:I23) -> 0 | J24: =SUM(J21:J23) -> 2 | K24: =SUM(K21:K23) -> 3
A28: Miejscowość | B28: Ulica | C28: Nr posesji | D28: Liczba Mieszkańców | E28: Pojemniki zadeklarowane | H28: kompostownik | I28: Zapotrzebowanie na pojemniki | L28: Uwagi | N28: G A J O W A
I29: odpady zmieszane | K29: szkło
E30: 110 l. | F30: 120 l. | G30: 240 l. | I30: 120 l. | J30: 240 l. | K30: 120 l.
A31: Zielęcice | B31: Gajowa | C31: 6 | D31: 5 | E31: - | F31: - | G31: - | H31: tak | I31: - | J31: 1 | K31: 1
C32: suma | D32: =SUM(D28:D31) -> 5 | E32: =SUM(E28:E31) -> 0 | F32: =SUM(F28:F31) -> 0 | G32: 0 | I32: =SUM(I28:I31) -> 0 | J32: 1 | K32: =SUM(K31) -> 1
A36: nieruchomości zamieszkałe: | C36: 14

Sheet Zielęcice,ul. Top, Wiej
A1: Miejscowość | B1: Ulica | C1: Nr posesji | D1: Liczba Mieszkańców | E1: Pojemniki zadeklarowane | H1: kompostownik | I1: Zapotrzebowanie na pojemniki | L1: Uwagi | N1: T O P O L O W A
I2: odpady zmieszane | K2: szkło
E3: 110 l. | F3: 120 l. | G3: 240 l. | I3: 120 l. | J3: 240 l. | K3: 120 l.
A4: Zielęcice | B4: Topolowa | C4: 1 | D4: 4 | E4: - | F4: - | G4: - | H4: tak | I4: - | J4: 1 | K4: 1
A5: Zielęcice | B5: Topolowa | C5: 5 | D5: 2 | E5: - | F5: 1 | G5: - | H5: tak | I5: - | J5: - | K5: 1
A6: Zielęcice | B6: Topolowa | C6: 6 | D6: 3 | E6: - | F6: 1 | G6: - | H6: tak | I6: 1 | J6: - | K6: 1
A7: Zielęcice | B7: Topolowa | C7: 8 | D7: 3 | E7: - | F7: - | G7: 1 | H7: tak | I7: - | J7: - | K7: 1
C8: suma | D8: =SUM(D4:D7) -> 12 | E8: 0 | F8: 2 | G8: 1 | I8: 1 | J8: 1 | K8: =SUM(K4:K7) -> 4
A12: Miejscowość | B12: Ulica | C12: Nr posesji | D12: Liczba Mieszkańców | E12: Pojemniki zadeklarowane | H12: kompostownik | I12: Zapotrzebowanie na pojemniki | L12: Uwagi
I13: odpady zmieszane | K13: szkło
E14: 110 l. | F14: 120 l. | G14: 240 l. | I14: 120 l. | J14: 240 l. | K14: 120 l.
A15: Zielęcice | B15: Wiejska | C15: 2 | D15: 4 | E15: - | F15: 1 | G15: 1 | H15: nie | I15: - | J15: - | K15: 1
A16: Zielęcice | B16: Wiejska | C16: 3 | D16: 4 | E16: - | F16: - | G16: 1 | H16: nie | I16: - | J16: - | K16: 1
A17: Zielęcice | B17: Wiejska | C17: 3A | D17: 1 | E17: - | F17: 1 | G17: - | H17: tak | I17: - | J17: - | K17: 1
A18: Zielęcice | B18: Wiejska | C18: 4 | D18: 4 | E18: - | F18: 1 | G18: - | H18: nie | I18: 1 | J18: - | K18: 1
A19: Zielęcice | B19: Wiejska | C19: 4 | D19: 3 | E19: - | F19: 1 | G19: - | H19: nie | I19: 1 | J19: - | K19: 1
A20: Zielęcice | B20: Wiejska | C20: 5 | D20: 7 | E20: - | F20: - | G20: - | H20: nie | I20: 1 | J20: 1 | K20: 1
A21: Zielęcice | B21: Wiejska | C21: 6 | D21: 1 | E21: - | F21: 1 | G21: - | H21: nie | I21: - | J21: - | K21: 1
A22: Zielęcice | B22: Wiejska | C22: 7/1 | D22: 4 | E22: - | F22: - | G22: - | H22: nie | I22: - | J22: 1 | K22: 1 | N22: W I E J S K A
A23: Zielęcice | B23: Wiejska | C23: 7/2 | D23: 2 | E23: - | F23: 1 | G23: - | H23: nie | I23: - | J23: - | K23: 1
A24: Zielęcice | B24: Wiejska | C24: 7/4 | D24: 6 | E24: - | F24: - | G24: 1 | H24: tak | I24: 1 | J24: - | K24: 1
A25: Zielęcice | B25: Wiejska | C25: 9 | D25: 3 | E25: - | F25: - | G25: 1 | H25: nie | I25: - | J25: - | K25: 1
A26: Zielęcice | B26: Wiejska | C26: 10 | D26: 3 | E26: - | F26: - | G26: 1 | H26: tak | I26: - | J26: - | K26: 1
A27: Zielęcice | B27: Wiejska | C27: 11 | D27: 1 | E27: - | F27: - | G27: - | H27: tak | I27: 1 | J27: - | K27: 1
A28: Zielęcice | B28: Wiejska | C28: 11A | D28: 2 | E28: - | F28: - | G28: 1 | H28: tak | I28: - | J28: - | K28: 1
A29: Zielęcice | B29: Wiejska | C29: 12A | D29: 7 | E29: - | F29: 2 | G29: - | H29: tak | I29: 1 | J29: - | K29: 1
A30: Zielęcice | B30: Wiejska | C30: 13 | D30: 4 | E30: - | F30: - | G30: 1 | H30: tak | I30: - | J30: - | K30: 1
A31: Zielęcice | B31: Wiejska | C31: 15 | D31: 2 | E31: - | F31: - | G31: - | H31: tak | I31: 1 | J31: - | K31: 1
A32: Zielęcice | B32: Wiejska | C32: 15B | D32: 4 | E32: - | F32: 1 | G32: - | H32: nie | I32: 1 | J32: - | K32: 1
A33: Zielęcice | B33: Wiejska | C33: 16 | D33: 1 | E33: - | F33: 1 | G33: - | H33: nie | I33: - | J33: - | K33: 1
A34: Zielęcice | B34: Wiejska | C34: 16A | D34: 2 | E34: - | F34: 1 | G34: - | H34: nie | I34: - | J34: - | K34: 1
A35: Zielęcice | B35: Wiejska | C35: 18 | D35: 2 | E35: - | F35: - | G35: 1 | H35: tak | I35: - | J35: - | K35: 1
A36: Zielęcice | B36: Wiejska | C36: 19 | D36: 4 | E36: - | F36: 1 | G36: - | H36: tak | I36: 1 | J36: - | K36: 1
A37: Zielęcice | B37: Wiejska | C37: 20 | D37: 5 | E37: - | F37: 1 | G37: - | H37: tak | I37: 1 | J37: - | K37: 1
A38: Zielęcice | B38: Wiejska | C38: 22 | D38: 2 | E38: - | F38: - | G38: 1 | H38: tak | I38: - | J38: - | K38: 1
A39: Zielęcice | B39: Wiejska | C39: 24 | D39: 3 | E39: - | F39: 1 | G39: - | H39: tak | I39: 1 | J39: - | K39: 1
A40: Zielęcice | B40: Wiejska | C40: 25 | D40: 10 | E40: - | F40: 2 | G40: 1 | H40: tak | I40: 1 | J40: - | K40: 1
A41: Zielęcice | B41: Wiejska | C41: 27 | D41: 4 | E41: - | F41: - | G41: - | H41: nie | I41: - | J41: 1 | K41: 1
A42: Zielęcice | B42: Wiejska | C42: 29 | D42: 4 | E42: - | F42: - | G42: 1 | H42: tak | I42: - | J42: - | K42: 1
A43: Zielęcice | B43: Wiejska | C43: 37 | D43: 2 | E43: - | F43: 1 | G43: - | H43: tak | I43: - | J43: - | K43: 1
C44: suma | D44: =SUM(D15:D43) -> 101 | E44: =SUM(E15:E43) -> 0 | F44: =SUM(F15:F43) -> 17 | G44: =SUM(G15:G43) -> 11 | I44: =SUM(I15:I43) -> 12 | J44: =SUM(J15:J43) -> 3 | K44: =SUM(K15:K43) -> 29
A48: nieruchomości zamieszkałe: | C48: 33

Sheet Zielęcice, ul.Og Piek,Pol Rz
A1: Miejscowość | B1: Ulica | C1: Nr posesji | D1: Liczba Mieszkańców | E1: Pojemniki zadeklarowane | H1: kompostownik | I1: Zapotrzebowanie na pojemniki | L1: Uwagi | N1: O G R O D O W A
I2: odpady zmieszane | K2: szkło
E3: 110 l. | F3: 120 l. | G3: 240 l. | I3: 120 l. | J3: 240 l. | K3: 120 l.
A4: Zielęcice | B4: Ogrodowa | C4: 1 | D4: 2 | E4: 1 | F4: - | G4: - | H4: nie | I4: - | J4: - | K4: 1
A5: Zielęcice | B5: Ogrodowa | C5: 2 | D5: 3 | E5: - | F5: - | G5: 1 | H5: nie | I5: - | J5: - | K5: 1
A6: Zielęcice | B6: Ogrodowa | C6: 4 | D6: 3 | E6: - | F6: 1 | G6: - | H6: nie | I6: 1 | J6: - | K6: 1
C7: suma | D7: =SUM(D4:D6) -> 8 | E7: =SUM(E4:E6) -> 1 | F7: =SUM(F4:F6) -> 1 | G7: =SUM(G4:G6) -> 1 | I7: =SUM(I4:I6) -> 1 | J7: =SUM(J4:J6) -> 0 | K7: =SUM(K4:K6) -> 3
A11: Miejscowość | B11: Ulica | C11: Nr posesji | D11: Liczba Mieszkańców | E11: Pojemniki zadeklarowane | H11: kompostownik | I11: Zapotrzebowanie na pojemniki | L11: Uwagi | N11: P I E K A R S K A
I12: odpady zmieszane | K12: szkło
E13: 110 l. | F13: 120 l. | G13: 240 l. | I13: 120 l. | J13: 240 l. | K13: 120 l.
A14: Zielęcice | B14: Piekarska | C14: 3 | D14: 3 | E14: - | F14: 1 | G14: - | H14: nie | I14: 1 | J14: - | K14: 1
A15: Zielęcice | B15: Piekarska | C15: 4 | D15: 1 | E15: - | F15: 1 | G15: - | H15: nie | I15: - | J15: - | K15: 1
A16: Zielęcice | B16: Piekarska | C16: 5 | D16: 3 | E16: - | F16: - | G16: 1 | H16: nie | I16: - | J16: - | K16: 1
A17: Zielęcice | B17: Piekarska | C17: 6 | D17: 3 | E17: - | F17: 1 | G17: - | H17: tak | I17: 1 | J17: - | K17: 1
C18: suma | D18: =SUM(D14:D17) -> 10 | E18: =SUM(E14:E17) -> 0 | F18: =SUM(F14:F17) -> 3 | G18: =SUM(G14:G17) -> 1 | I18: =SUM(I14:I17) -> 2 | J18: =SUM(J14:J17) -> 0 | K18: =SUM(K14:K17) -> 4
A22: Miejscowość | B22: Ulica | C22: Nr posesji | D22: Liczba Mieszkańców | E22: Pojemniki zadeklarowane | H22: kompostownik | I22: Zapotrzebowanie na pojemniki | L22: Uwagi | N22: P O L N A
I23: odpady zmieszane | K23: szkło
E24: 110 l. | F24: 120 l. | G24: 240 l. | I24: 120 l. | J24: 240 l. | K24: 120 l.
A25: Zielęcice | B25: Polna | C25: 2 | D25: 2 | E25: - | F25: - | G25: 1 | H25: tak | I25: - | J25: - | K25: 1
C26: suma | D26: =SUM(D25:D25) -> 2 | E26: =SUM(E25:E25) -> 0 | F26: =SUM(F25:F25) -> 0 | G26: =SUM(G25:G25) -> 1 | I26: =SUM(I25:I25) -> 0 | J26: =SUM(J25:J25) -> 0 | K26: =SUM(K25) -> 1
A30: Miejscowość | B30: Ulica | C30: Nr posesji | D30: Liczba Mieszkańców | E30: Pojemniki zadeklarowane | H30: kompostownik | I30: Zapotrzebowanie na pojemniki | L30: Uwagi
I31: odpady zmieszane | K31: szkło | N31: R Z E M I E Ś L N I C Z A
E32: 110 l. | F32: 120 l. | G32: 240 l. | I32: 120 l. | J32: 240 l. | K32: 120 l.
A33: Zielęcice | B33: Rzemiślnicza | C33: 2 | D33: 4 | E33: - | F33: - | G33: - | H33: tak | I33: - | J33: 1 | K33: 1
A34: Zielęcice | B34: Rzemiślnicza | C34: 4 | D34: 4 | E34: - | F34: 1 | G34: - | H34: tak | I34: 1 | J34: - | K34: 1
A35: Zielęcice | B35: Rzemiślnicza | C35: 6 | D35: 3 | E35: - | F35: 1 | G35: - | H35: tak | I35: 1 | J35: - | K35: 1
A36: Zielęcice | B36: Rzemiślnicza | C36: 9 | D36: 2 | E36: - | F36: 1 | G36: - | H36: tak | I36: - | J36: - | K36: 1
A37: Zielęcice | B37: Rzemiślnicza | C37: 10 | D37: 5 | E37: - | F37: - | G37: 1 | H37: tak | I37: - | J37: - | K37: 1
A38: Zielęcice | B38: Rzemiślnicza | C38: 11 | D38: 2 | E38: - | F38: - | G38: 1 | H38: nie | I38: - | J38: - | K38: 1
A39: Zielęcice | B39: Rzemiślnicza | C39: 12 | D39: 2 | E39: - | F39: 1 | G39: - | H39: nie | I39: - | J39: - | K39: 1
A40: Zielęcice | B40: Rzemiślnicza | C40: 15 | D40: 2 | E40: - | F40: - | G40: - | H40: tak | I40: 1 | J40: - | K40: 1
A41: Zielęcice | B41: Rzemiślnicza | C41: 17 | D41: 2 | E41: - | F41: - | G41: - | H41: tak | I41: 1 | J41: - | K41: 1
A42: Zielęcice | B42: Rzemiślnicza | C42: 26 | D42: 4 | E42: - | F42: - | G42: 1 | H42: tak | I42: - | J42: - | K42: 1
C43: suma | D43: =SUM(D33:D42) -> 30 | E43: 0 | F43: 4 | G43: 3 | I43: 4 | J43: 1 | K43: =SUM(K33:K42) -> 10
A47: nieruchomości zamieszkałe: | C47: 18

Sheet Zielęcice, ul.Koś,Leś,Lip,Łąk
A1: Miejscowość | B1: Ulica | C1: Nr posesji | D1: Liczba Mieszkańców | E1: Pojemniki zadeklarowane | H1: kompostownik | I1: Zapotrzebowanie na pojemniki | L1: Uwagi | N1: K O Ś C I E L N A
I2: odpady zmieszane | K2: szkło
E3: 110 l. | F3: 120 l. | G3: 240 l. | I3: 120 l. | J3: 240 l. | K3: 120 l.
A4: Zielęcice | B4: Kościelna | C4: 1/1 | D4: 2 | E4: - | F4: 1 | G4: 1 | H4: tak | I4: - | J4: - | K4: 1
A5: Zielęcice | B5: Kościelna | C5: 1/2 | D5: 1 | E5: - | F5: - | G5: 1 | H5: tak | I5: - | J5: - | K5: 1
A6: Zielęcice | B6: Kościelna | C6: 2 | D6: 2 | E6: - | F6: 1 | G6: - | H6: nie | I6: - | J6: - | K6: 1
C7: suma | D7: =SUM(D4:D6) -> 5 | E7: 0 | F7: 2 | G7: 2 | I7: 0 | J7: 0 | K7: =SUM(K4:K6) -> 3
A11: Miejscowość | B11: Ulica | C11: Nr posesji | D11: Liczba Mieszkańców | E11: Pojemniki zadeklarowane | H11: kompostownik | I11: Zapotrzebowanie na pojemniki | L11: Uwagi | N11: L I P O W A
I12: odpady zmieszane | K12: szkło
E13: 110 l. | F13: 120 l. | G13: 240 l. | I13: 120 l. | J13: 240 l. | K13: 120 l.
A14: Zielęcice | B14: Lipowa | C14: 1 | D14: 4 | E14: - | F14: 1 | G14: - | H14: tak | I14: 1 | J14: - | K14: 1
C15: suma | D15: =SUM(D14) -> 4 | E15: =SUM(E14) -> 0 | F15: =SUM(F14:F14) -> 1 | G15: =SUM(G14) -> 0 | I15: =SUM(I14:I14) -> 1 | J15: =SUM(J14) -> 0 | K15: =SUM(K14) -> 1
A19: Miejscowość | B19: Ulica | C19: Nr posesji | D19: Liczba Mieszkańców | E19: Pojemniki zadeklarowane | H19: kompostownik | I19: Zapotrzebowanie na pojemniki | L19: Uwagi
I20: odpady zmieszane | K20: szkło
E21: 110 l. | F21: 120 l. | G21: 240 l. | I21: 120 l. | J21: 240 l. | K21: 120 l.
A22: Zielęcice | B22: Łąkowa | C22: 2A | D22: 3 | E22: - | F22: - | G22: - | H22: nie | I22: - | J22: 1 | K22: 1 | N22: Ł Ą K O W A
A23: Zielęcice | B23: Łąkowa | C23: 5 | D23: 4 | E23: - | F23: - | G23: - | H23: nie | I23: - | J23: 1 | K23: 1
A24: Zielęcice | B24: Łąkowa | C24: 6 | D24: 4 | E24: - | F24: - | G24: - | H24: tak | I24: - | J24: 1 | K24: 1
A25: Zielęcice | B25: Łąkowa | C25: 7 | D25: 4 | E25: - | F25: - | G25: 1 | H25: tak | I25: - | J25: - | K25: 1
A26: Zielęcice | B26: Łąkowa | C26: 9 | D26: 6 | E26: - | F26: - | G26: 2 | H26: tak | I26: - | J26: - | K26: 1
A27: Zielęcice | B27: Łąkowa | C27: 15 | D27: 3 | E27: 1 | F27: - | G27: - | H27: tak | I27: 1 | J27: - | K27: 1
A28: Zielęcice | B28: Łąkowa | C28: 19 | D28: 3 | E28: - | F28: 1 | G28: - | H28: nie | I28: 1 | J28: - | K28: 1
A29: Zielęcice | B29: Łąkowa | C29: 21 | D29: 5 | E29: - | F29: - | G29: 1 | H29: nie | I29: - | J29: - | K29: 1
A30: Zielęcice | B30: Łąkowa | C30: 23 | D30: 2 | E30: - | F30: 1 | G30: - | H30: tak | I30: - | J30: - | K30: 1
C31: suma | D31: =SUM(D22:D30) -> 34 | E31: =SUM(E22:E30) -> 1 | F31: =SUM(F22:F30) -> 2 | G31: =SUM(G22:G30) -> 4 | I31: =SUM(I22:I30) -> 2 | J31: =SUM(J22:J30) -> 3 | K31: =SUM(K22:K30) -> 9
A35: nieruchomości zamieszkałe: | C35: 13

Sheet Skarbimierz-Os., ul. Akacjowa
A1: Miejscowość | B1: Ulica | C1: Nr posesji | D1: Liczba Mieszkańców | E1: Pojemniki zadeklarowane | H1: kompostownik | I1: Zapotrzebowanie na pojemniki | L1: Uwagi
I2: odpady zmieszane | K2: szkło
E3: 110 l. | F3: 120 l. | G3: 240 l. | I3: 120 l. | J3: 240 l. | K3: 120 l.
A4: Skarbimierz-Osiedle | B4: Akacjowa | C4: 1B | D4: 4 | E4: - | F4: 1 | G4: - | H4: nie | I4: 1 | J4: - | K4: 1
A5: Skarbimierz-Osiedle | B5: Akacjowa | C5: 3 | D5: 3 | E5: - | F5: - | G5: - | H5: tak | I5: - | J5: 1 | K5: 1
A6: Skarbimierz-Osiedle | B6: Akacjowa | C6: 3B/1 | D6: 3 | E6: - | F6: - | G6: - | H6: tak | I6: 1 | J6: - | K6: 1
A7: Skarbimierz-Osiedle | B7: Akacjowa | C7: 3/3 | D7: 2 | E7: - | F7: 1 | G7: - | H7: nie | I7: - | J7: - | K7: 1
A8: Skarbimierz-Osiedle | B8: Akacjowa | C8: 3/4 | D8: 4 | E8: - | F8: 1 | G8: - | H8: tak | I8: 1 | J8: - | K8: 1
A9: Skarbimierz-Osiedle | B9: Akacjowa | C9: 12A | D9: 5 | E9: - | F9: - | G9: 1 | H9: nie | I9: - | J9: - | K9: 1
A10: Skarbimierz-Osiedle | B10: Akacjowa | C10: 12B | D10: 2 | E10: - | F10: 1 | G10: - | H10: nie | I10: - | J10: - | K10: 1
A11: Skarbimierz-Osiedle | B11: Akacjowa | C11: 12C | D11: 4 | E11: - | F11: 1 | G11: - | H11: nie | I11: 1 | J11: - | K11: 1 | N11: A K A C J O W A
A12: Skarbimierz-Osiedle | B12: Akacjowa | C12: 12D | D12: 3 | E12: - | F12: - | G12: - | H12: nie | I12: - | J12: 1 | K12: 1
A13: Skarbimierz-Osiedle | B13: Akacjowa | C13: 13A | D13: 2 | E13: 1 | F13: - | G13: - | H13: nie | I13: - | J13: - | K13: 1
A14: Skarbimierz-Osiedle | B14: Akacjowa | C14: 13B | D14: 3 | E14: - | F14: - | G14: - | H14: nie | I14: - | J14: 1 | K14: 1
A15: Skarbimierz-Osiedle | B15: Akacjowa | C15: 13C | D15: 1 | E15: - | F15: - | G15: - | H15: nie | I15: 1 | J15: - | K15: 1
A16: Skarbimierz-Osiedle | B16: Akacjowa | C16: 13D | D16: 1 | E16: - | F16: - | G16: - | H16: tak | I16: 1 | J16: - | K16: 1
A17: Skarbimierz-Osiedle | B17: Akacjowa | C17: 14A | D17: 1 | E17: - | F17: 1 | G17: - | H17: nie | I17: - | J17: - | K17: 1
A18: Skarbimierz-Osiedle | B18: Akacjowa | C18: 14B | D18: 3 | E18: - | F18: 1 | G18: - | H18: nie | I18: 1 | J18: - | K18: 1
A19: Skarbimierz-Osiedle | B19: Akacjowa | C19: 14C | D19: 2 | E19: - | F19: - | G19: - | H19: nie | I19: 1 | J19: - | K19: 1
A20: Skarbimierz-Osiedle | B20: Akacjowa | C20: 14D | D20: 3 | E20: - | F20: 1 | G20: - | H20: nie | I20: 1 | J20: - | K20: 1
A21: Skarbimierz-Osiedle | B21: Akacjowa | C21: 15A | D21: 3 | E21: - | F21: - | G21: - | H21: nie | I21: - | J21: 1 | K21: 1
A22: Skarbimierz-Osiedle | B22: Akacjowa | C22: 15B | D22: 5 | E22: - | F22: - | G22: 1 | H22: tak | I22: - | J22: - | K22: 1
A23: Skarbimierz-Osiedle | B23: Akacjowa | C23: 15C | D23: 2 | E23: - | F23: - | G23: - | H23: nie | I23: 1 | J23: - | K23: 1
A24: Skarbimierz-Osiedle | B24: Akacjowa | C24: 15D | D24: 4 | E24: - | F24: 1 | G24: - | H24: nie | I24: 1 | J24: - | K24: 1
A25: Skarbimierz-Osiedle | B25: Akacjowa | C25: 16A | D25: 4 | E25: - | F25: 1 | G25: - | H25: nie | I25: 1 | J25: - | K25: 1
A26: Skarbimierz-Osiedle | B26: Akacjowa | C26: 16C | D26: 3 | E26: - | F26: 1 | G26: - | H26: tak | I26: 1 | J26: - | K26: 1
A27: Skarbimierz-Osiedle | B27: Akacjowa | C27: 16D | D27: 4 | E27: - | F27: - | G27: 1 | H27: nie | I27: - | J27: - | K27: 1
A28: Skarbimierz-Osiedle | B28: Akacjowa | C28: 17A | D28: 4 | E28: - | F28: - | G28: - | H28: nie | I28: - | J28: 1 | K28: 1
A29: Skarbimierz-Osiedle | B29: Akacjowa | C29: 17B | D29: 3 | E29: - | F29: 1 | G29: - | H29: nie | I29: 1 | J29: - | K29: 1
A30: Skarbimierz-Osiedle | B30: Akacjowa | C30: 17C | D30: 2 | E30: - | F30: - | G30: - | H30: nie | I30: 1 | J30: - | K30: 1
A31: Skarbimierz-Osiedle | B31: Akacjowa | C31: 17D | D31: 3 | E31: - | F31: - | G31: - | H31: nie | I31: - | J31: 1 | K31: 1
A32: Skarbimierz-Osiedle | B32: Akacjowa | C32: 18A | D32: 3 | E32: - | F32: 1 | G32: - | H32: tak | I32: 1 | J32: - | K32: 1
A33: Skarbimierz-Osiedle | B33: Akacjowa | C33: 18B | D33: 4 | E33: - | F33: 2 | G33: - | H33: nie | I33: - | J33: - | K33: 1
A34: Skarbimierz-Osiedle | B34: Akacjowa | C34: 18C | D34: 2 | E34: - | F34: 1 | G34: - | H34: nie | I34: - | J34: - | K34: 1
A35: Skarbimierz-Osiedle | B35: Akacjowa | C35: 18D | D35: 1 | E35: - | F35: 1 | G35: - | H35: tak | I35: - | J35: - | K35: 1
A36: Skarbimierz-Osiedle | B36: Akacjowa | C36: 18D | D36: 2 | E36: - | F36: - | G36: - | H36: nie | I36: 1 | J36: - | K36: 1
A37: Skarbimierz-Osiedle | B37: Akacjowa | C37: 19A | D37: 1 | E37: - | F37: - | G37: 1 | H37: nie | I37: - | J37: - | K37: 1
A38: Skarbimierz-Osiedle | B38: Akacjowa | C38: 19B | D38: 4 | E38: - | F38: 1 | G38: - | H38: nie | I38: 1 | J38: - | K38: 1
A39: Skarbimierz-Osiedle | B39: Akacjowa | C39: 19C | D39: 8 | E39: 1 | F39: - | G39: - | H39: nie | I39: - | J39: 1 | K39: 1
A40: Skarbimierz-Osiedle | B40: Akacjowa | C40: 19D | D40: 1 | E40: - | F40: 1 | G40: - | H40: tak | I40: - | J40: - | K40: 1
A41: Skarbimierz-Osiedle | B41: Akacjowa | C41: 20A | D41: 1 | E41: - | F41: - | G41: - | H41: tak | I41: 1 | J41: - | K41: 1
A42: Skarbimierz-Osiedle | B42: Akacjowa | C42: 20B | D42: 2 | E42: - | F42: 1 | G42: - | H42: nie | I42: - | J42: - | K42: 1
A43: Skarbimierz-Osiedle | B43: Akacjowa | C43: 20C | D43: 2 | E43: - | F43: - | G43: - | H43: nie | I43: 1 | J43: - | K43: 1
A44: Skarbimierz-Osiedle | B44: Akacjowa | C44: 20D | D44: 1 | E44: - | F44: 1 | G44: - | H44: nie | I44: 1 | J44: - | K44: 1
A45: Skarbimierz-Osiedle | B45: Akacjowa | C45: 21A | D45: 3 | E45: - | F45: 1 | G45: - | H45: nie | I45: 1 | J45: - | K45: 1
A46: Skarbimierz-Osiedle | B46: Akacjowa | C46: 21C | D46: 2 | E46: - | F46: 1 | G46: - | H46: nie | I46: - | J46: - | K46: 1
A47: Skarbimierz-Osiedle | B47: Akacjowa | C47: 21D | D47: 3 | E47: - | F47: - | G47: 1 | H47: nie | I47: - | J47: - | K47: 1
A48: Skarbimierz-Osiedle | B48: Akacjowa | C48: 22A | D48: 4 | E48: - | F48: - | G48: - | H48: tak | I48: - | J48: 1 | K48: 1
A49: Skarbimierz-Osiedle | B49: Akacjowa | C49: 22B | D49: 1 | E49: - | F49: 1 | G49: - | H49: nie | I49: - | J49: - | K49: 1
A50: Skarbimierz-Osiedle | B50: Akacjowa | C50: 22D | D50: 1 | E50: - | F50: 1 | G50: - | H50: nie | I50: - | J50: - | K50: 1
A51: Skarbimierz-Osiedle | B51: Akacjowa | C51: 23A | D51: 1 | E51: - | F51: - | G51: - | H51: nie | I51: 1 | J51: - | K51: 1
A52: Skarbimierz-Osiedle | B52: Akacjowa | C52: 23D | D52: 3 | E52: - | F52: - | G52: - | H52: nie | I52: - | J52: 1 | K52: 1
C53: suma | D53: =SUM(D5:D52) -> 129 | E53: =SUM(E5:E52) -> 2 | F53: =SUM(F5:F52) -> 24 | G53: =SUM(G5:G52) -> 5 | I53: =SUM(I5:I52) -> 22 | J53: =SUM(J5:J52) -> 9 | K53: =SUM(K4:K52) -> 49
A57: nieruchomości zamieszkałe: | C57: 49

Sheet Skarb.-Os.,ul.Brz,Jaś, Kasz,Dęb
A1: Miejscowość | B1: Ulica | C1: Nr posesji | D1: Liczba Mieszkańców | E1: Pojemniki zadeklarowane | H1: kompostownik | I1: Zapotrzebowanie na pojemniki | L1: Uwagi | N1: B R Z O Z O W A
I2: odpady zmieszane | K2: szkło
E3: 110 l. | F3: 120 l. | G3: 240 l. | I3: 120 l. | J3: 240 l. | K3: 120 l.
A4: Skarbimierz-Osiedle | B4: Brzozowa | C4: 3A | D4: 2 | E4: - | F4: - | G4: - | H4: nie | I4: 1 | J4: - | K4: 1
A5: Skarbimierz-Osiedle | B5: Brzozowa | C5: 3B | D5: 4 | E5: - | F5: 1 | G5: - | H5: nie | I5: 1 | J5: - | K5: 1
A6: Skarbimierz-Osiedle | B6: Brzozowa | C6: 3C | D6: 4 | E6: - | F6: 1 | G6: - | H6: nie | I6: 1 | J6: - | K6: 1
C7: suma | D7: =SUM(D4:D6) -> 10 | E7: 0 | F7: 2 | G7: 0 | I7: 3 | J7: 0 | K7: =SUM(K4:K6) -> 3
A11: Miejscowość | B11: Ulica | C11: Nr posesji | D11: Liczba Mieszkańców | E11: Pojemniki zadeklarowane | H11: kompostownik | I11: Zapotrzebowanie na pojemniki | L11: Uwagi | N11: J A Ś M I N O W A
I12: odpady zmieszane | K12: szkło
E13: 110 l. | F13: 120 l. | G13: 240 l. | I13: 120 l. | J13: 240 l. | K13: 120 l.
A14: Skarbimierz-Osiedle | B14: Jaśminowa | C14: 1 | D14: 4 | E14: - | F14: 1 | G14: - | H14: tak | I14: 1 | J14: - | K14: 1
A15: Skarbimierz-Osiedle | B15: Jaśminowa | C15: 2 | D15: 3 | E15: - | F15: 1 | G15: - | H15: tak | I15: 1 | J15: - | K15: 1
A16: Skarbimierz-Osiedle | B16: Jaśminowa | C16: 4 | D16: 4 | E16: - | F16: 1 | G16: - | H16: tak | I16: 1 | J16: - | K16: 1
A17: Skarbimierz-Osiedle | B17: Jaśminowa | C17: 5 | D17: 4 | E17: - | F17: - | G17: 1 | H17: nie | I17: - | J17: - | K17: 1
A18: Skarbimierz-Osiedle | B18: Jaśminowa | C18: 6 | D18: 4 | E18: - | F18: 1 | G18: - | H18: tak | I18: 1 | J18: - | K18: 1
C19: suma | D19: =SUM(D14:D18) -> 19 | E19: 0 | F19: 4 | G19: 1 | I19: 4 | J19: 0 | K19: =SUM(K14:K18) -> 5
A23: Miejscowość | B23: Ulica | C23: Nr posesji | D23: Liczba Mieszkańców | E23: Pojemniki zadeklarowane | H23: kompostownik | I23: Zapotrzebowanie na pojemniki | L23: Uwagi | N23: K A S Z T A N O W A
I24: odpady zmieszane | K24: szkło
E25: 110 l. | F25: 120 l. | G25: 240 l. | I25: 120 l. | J25: 240 l. | K25: 120 l.
A26: Skarbimierz-Osiedle | B26: Kasztanowa | C26: 2 | D26: 4 | E26: - | F26: 1 | G26: - | H26: tak | I26: 1 | J26: - | K26: 1
A27: Skarbimierz-Osiedle | B27: Kasztanowa | C27: 22 | D27: 2 | E27: 1 | F27: - | G27: - | H27: nie | I27: - | J27: - | K27: 1
C28: suma | D28: =SUM(D26:D27) -> 6 | E28: 1 | F28: 1 | G28: 0 | I28: 1 | J28: 0 | K28: =SUM(K26:K27) -> 2
A32: Miejscowość | B32: Ulica | C32: Nr posesji | D32: Liczba Mieszkańców | E32: Pojemniki zadeklarowane | H32: kompostownik | I32: Zapotrzebowanie na pojemniki | L32: Uwagi | N32: D Ę B O W A
I33: odpady zmieszane | K33: szkło
E34: 110 l. | F34: 120 l. | G34: 240 l. | I34: 120 l. | J34: 240 l. | K34: 120 l.
A35: Skarbimierz-Osiedle | B35: Dębowa | C35: 4A | D35: 4 | E35: - | F35: - | G35: - | H35: nie | I35: - | J35: 1 | K35: 1
A36: Skarbimierz-Osiedle | B36: Dębowa | C36: 4B | D36: 3 | E36: - | F36: - | G36: - | H36: nie | I36: - | J36: 1 | K36: 1
A37: Skarbimierz-Osiedle | B37: Dębowa | C37: 4C | D37: 3 | E37: - | F37: - | G37: - | H37: nie | I37: - | J37: 1 | K37: 1
C38: suma | D38: =SUM(D37:D37) -> 3 | E38: 0 | F38: 0 | G38: 0 | I38: 0 | J38: 1 | K38: =SUM(K35:K37) -> 3
A43: Miejscowość | B43: Ulica | C43: Nr posesji | D43: Liczba Mieszkańców | E43: Pojemniki zadeklarowane | H43: kompostownik | I43: Zapotrzebowanie na pojemniki | L43: Uwagi
I44: odpady zmieszane | K44: szkło
E45: 110 l. | F45: 120 l. | G45: 240 l. | I45: 120 l. | J45: 240 l. | K45: 120 l.
A46: Skarbimierz-Osiedle | B46: Brzeska | C46: 14 | D46: 4 | E46: - | F46: 1 | G46: - | H46: nie | I46: 1 | J46: - | K46: 1
A47: Skarbimierz-Osiedle | B47: Brzeska | C47: 15 | D47: 2 | E47: - | F47: - | G47: 1 | H47: nie | I47: - | J47: - | K47: 1
A48: Skarbimierz-Osiedle | B48: Brzeska | C48: 16A/1 | D48: 4 | E48: - | F48: - | G48: - | H48: tak | I48: - | J48: 1 | K48: 1
A49: Skarbimierz-Osiedle | B49: Brzeska | C49: 16A/2 | D49: 1 | E49: - | F49: - | G49: - | H49: nie | I49: 1 | J49: - | K49: 1
A50: Skarbimierz-Osiedle | B50: Brzeska | C50: 16B/1 | D50: 1 | E50: - | F50: - | G50: - | H50: nie | I50: 1 | J50: - | K50: 1
A51: Skarbimierz-Osiedle | B51: Brzeska | C51: 16B/2 | D51: 4 | E51: - | F51: - | G51: - | H51: nie | I51: - | J51: 1 | K51: 1
A52: Skarbimierz-Osiedle | B52: Brzeska | C52: 16C/1 | D52: 3 | E52: - | F52: 1 | G52: - | H52: nie | I52: 1 | J52: - | K52: 1
A53: Skarbimierz-Osiedle | B53: Brzeska | C53: 16C/2 | D53: 3 | E53: - | F53: - | G53: - | H53: nie | I53: - | J53: 1 | K53: 1
A54: Skarbimierz-Osiedle | B54: Brzeska | C54: 16D/1 | D54: 3 | E54: - | F54: - | G54: - | H54: nie | I54: - | J54: 1 | K54: 1
A55: Skarbimierz-Osiedle | B55: Brzeska | C55: 17 | D55: 4 | E55: - | F55: - | G55: 1 | H55: nie | I55: - | J55: - | K55: 1
A56: Skarbimierz-Osiedle | B56: Brzeska | C56: 18A | D56: 2 | E56: - | F56: - | G56: - | H56: tak | I56: 1 | J56: - | K56: 1
A57: Skarbimierz-Osiedle | B57: Brzeska | C57: 18B | D57: 4 | E57: - | F57: - | G57: - | H57: nie | I57: - | J57: 1 | K57: 1
A58: Skarbimierz-Osiedle | B58: Brzeska | C58: 18C | D58: 4 | E58: - | F58: - | G58: - | H58: nie | I58: - | J58: 1 | K58: 1
A59: Skarbimierz-Osiedle | B59: Brzeska | C59: 18D | D59: 2 | E59: - | F59: - | G59: - | H59: nie | I59: 1 | J59: - | K59: 1
A60: Skarbimierz-Osiedle | B60: Brzeska | C60: 18E | D60: 4 | E60: - | F60: - | G60: 1 | H60: nie | I60: - | J60: - | K60: 1
A61: Skarbimierz-Osiedle | B61: Brzeska | C61: 21 | D61: 3 | E61: - | F61: - | G61: - | H61: nie | I61: - | J61: 1 | K61: 1
A62: Skarbimierz-Osiedle | B62: Brzeska | C62: 23A | D62: 4 | E62: - | F62: - | G62: - | H62: nie | I62: - | J62: 1 | K62: 1
A63: Skarbimierz-Osiedle | B63: Brzeska | C63: 23B | D63: 3 | E63: - | F63: - | G63: - | H63: nie | I63: - | J63: 1 | K63: 1
A64: Skarbimierz-Osiedle | B64: Brzeska | C64: 26 | D64: 4 | E64: - | F64: - | G64: - | H64: nie | I64: - | J64: 1 | K64: 1
A65: Skarbimierz-Osiedle | B65: Brzeska | C65: 26A | D65: 4 | E65: - | F65: - | G65: - | H65: nie | I65: - | J65: 1 | K65: 1
A66: Skarbimierz-Osiedle | B66: Brzeska | C66: 26B | D66: 4 | E66: - | F66: - | G66: - | H66: nie | I66: - | J66: 1 | K66: 1
A67: Skarbimierz-Osiedle | B67: Brzeska | C67: 26D | D67: 3 | E67: - | F67: - | G67: - | H67: nie | I67: - | J67: 1 | K67: 1
A68: Skarbimierz-Osiedle | B68: Brzeska | C68: 26E | D68: 4 | E68: - | F68: - | G68: - | H68: nie | I68: - | J68: 1 | K68: 1
C69: suma | D69: =SUM(D46:D68) -> 74 | E69: 0 | F69: 2 | G69: 3 | I69: 6 | J69: 14 | K69: =SUM(K46:K68) -> 23
A72: nieruchomości zamieszkałe: | C72: 36

Sheet Skarbimierz-Os, ul. Klonowa
A1: Miejscowość | B1: Ulica | C1: Nr posesji | D1: Liczba Mieszkańców | E1: Pojemniki zadeklarowane | H1: kompostownik | I1: Zapotrzebowanie na pojemniki | L1: Uwagi
I2: odpady zmieszane | K2: szkło
E3: 110 l. | F3: 120 l. | G3: 240 l. | I3: 120 l. | J3: 240 l. | K3: 120 l.
A4: Skarbimierz-Osiedle | B4: Klonowa | C4: 1A | D4: 4 | E4: - | F4: - | G4: 1 | H4: nie | I4: - | J4: - | K4: 1
A5: Skarbimierz-Osiedle | B5: Klonowa | C5: 1C | D5: 4 | E5: - | F5: 1 | G5: - | H5: nie | I5: 1 | J5: - | K5: 1
A6: Skarbimierz-Osiedle | B6: Klonowa | C6: 1D | D6: 1 | E6: - | F6: 1 | G6: - | H6: nie | I6: - | J6: - | K6: 1
A7: Skarbimierz-Osiedle | B7: Klonowa | C7: 2A | D7: 3 | E7: - | F7: - | G7: - | H7: nie | I7: - | J7: 1 | K7: 1
A8: Skarbimierz-Osiedle | B8: Klonowa | C8: 2C | D8: 2 | E8: - | F8: 1 | G8: - | H8: nie | I8: - | J8: - | K8: 1
A9: Skarbimierz-Osiedle | B9: Klonowa | C9: 2D | D9: 3 | E9: - | F9: - | G9: - | H9: nie | I9: - | J9: 1 | K9: 1
A10: Skarbimierz-Osiedle | B10: Klonowa | C10: 3A | D10: 3 | E10: - | F10: 1 | G10: - | H10: nie | I10: 1 | J10: - | K10: 1
A11: Skarbimierz-Osiedle | B11: Klonowa | C11: 3B | D11: 2 | E11: - | F11: - | G11: - | H11: nie | I11: 1 | J11: - | K11: 1
A12: Skarbimierz-Osiedle | B12: Klonowa | C12: 3C | D12: 2 | E12: - | F12: - | G12: - | H12: nie | I12: 1 | J12: - | K12: 1
A13: Skarbimierz-Osiedle | B13: Klonowa | C13: 3D | D13: 5 | E13: - | F13: - | G13: - | H13: nie | I13: - | J13: 1 | K13: 1
A14: Skarbimierz-Osiedle | B14: Klonowa | C14: 4A | D14: 1 | E14: - | F14: - | G14: 1 | H14: nie | I14: - | J14: - | K14: 1
A15: Skarbimierz-Osiedle | B15: Klonowa | C15: 4B | D15: 1 | E15: - | F15: 1 | G15: - | H15: nie | I15: - | J15: - | K15: 1
A16: Skarbimierz-Osiedle | B16: Klonowa | C16: 4C | D16: 5 | E16: - | F16: 1 | G16: - | H16: nie | I16: 1 | J16: - | K16: 1
A17: Skarbimierz-Osiedle | B17: Klonowa | C17: 4D | D17: 3 | E17: - | F17: 1 | G17: - | H17: nie | I17: 1 | J17: - | K17: 1 | N17: K L O N O W A
A18: Skarbimierz-Osiedle | B18: Klonowa | C18: 5A | D18: 3 | E18: - | F18: - | G18: 1 | H18: nie | I18: - | J18: - | K18: 1
A19: Skarbimierz-Osiedle | B19: Klonowa | C19: 5B | D19: 2 | E19: - | F19: 1 | G19: - | H19: nie | I19: - | J19: - | K19: 1
A20: Skarbimierz-Osiedle | B20: Klonowa | C20: 5C | D20: 1 | E20: - | F20: 1 | G20: - | H20: nie | I20: - | J20: - | K20: 1
A21: Skarbimierz-Osiedle | B21: Klonowa | C21: 5D | D21: 2 | E21: - | F21: 1 | G21: - | H21: nie | I21: - | J21: - | K21: 1
A22: Skarbimierz-Osiedle | B22: Klonowa | C22: 6A | D22: 4 | E22: - | F22: - | G22: - | H22: nie | I22: - | J22: 1 | K22: 1
A23: Skarbimierz-Osiedle | B23: Klonowa | C23: 6B | D23: 4 | E23: 1 | F23: - | G23: - | H23: tak | I23: 1 | J23: - | K23: 1
A24: Skarbimierz-Osiedle | B24: Klonowa | C24: 6D | D24: 1 | E24: - | F24: 1 | G24: - | H24: tak | I24: - | J24: - | K24: 1
A25: Skarbimierz-Osiedle | B25: Klonowa | C25: 7A | D25: 2 | E25: - | F25: - | G25: - | H25: nie | I25: 1 | J25: - | K25: 1
A26: Skarbimierz-Osiedle | B26: Klonowa | C26: 7B | D26: 2 | E26: - | F26: 1 | G26: - | H26: nie | I26: - | J26: - | K26: 1
A27: Skarbimierz-Osiedle | B27: Klonowa | C27: 7C | D27: 3 | E27: - | F27: - | G27: - | H27: nie | I27: - | J27: 1 | K27: 1
A28: Skarbimierz-Osiedle | B28: Klonowa | C28: 7D | D28: 1 | E28: - | F28: - | G28: - | H28: nie | I28: 1 | J28: - | K28: 1
A29: Skarbimierz-Osiedle | B29: Klonowa | C29: 7D | D29: 2 | E29: - | F29: 1 | G29: - | H29: nie | I29: - | J29: - | K29: 1
A30: Skarbimierz-Osiedle | B30: Klonowa | C30: 8A | D30: 4 | E30: - | F30: 1 | G30: - | H30: nie | I30: 1 | J30: - | K30: 1
A31: Skarbimierz-Osiedle | B31: Klonowa | C31: 8C | D31: 2 | E31: - | F31: - | G31: - | H31: nie | I31: 1 | J31: - | K31: 1
A32: Skarbimierz-Osiedle | B32: Klonowa | C32: 8D | D32: 5 | E32: - | F32: - | G32: - | H32: nie | I32: - | J32: 1 | K32: 1
A33: Skarbimierz-Osiedle | B33: Klonowa | C33: 9A | D33: 4 | E33: - | F33: 1 | G33: - | H33: nie | I33: 1 | J33: - | K33: 1
A34: Skarbimierz-Osiedle | B34: Klonowa | C34: 9B | D34: 2 | E34: 1 | F34: - | G34: - | H34: nie | I34: - | J34: - | K34: 1
A35: Skarbimierz-Osiedle | B35: Klonowa | C35: 9C | D35: 3 | E35: 1 | F35: - | G35: - | H35: nie | I35: 1 | J35: - | K35: 1
A36: Skarbimierz-Osiedle | B36: Klonowa | C36: 10A | D36: 2 | E36: - | F36: - | G36: 1 | H36: nie | I36: - | J36: - | K36: 1
A37: Skarbimierz-Osiedle | B37: Klonowa | C37: 10B | D37: 2 | E37: - | F37: 2 | G37: - | H37: nie | I37: - | J37: - | K37: 1
A38: Skarbimierz-Osiedle | B38: Klonowa | C38: 10C | D38: 1 | E38: - | F38: 2 | G38: - | H38: nie | I38: - | J38: - | K38: 1
A39: Skarbimierz-Osiedle | B39: Klonowa | C39: 10D | D39: 2 | E39: - | F39: 1 | G39: - | H39: tak | I39: - | J39: - | K39: 1
A40: Skarbimierz-Osiedle | B40: Klonowa | C40: 11A | D40: 1 | E40: 1 | F40: - | G40: - | H40: nie | I40: - | J40: - | K40: 1
A41: Skarbimierz-Osiedle | B41: Klonowa | C41: 11A | D41: 1 | E41: - | F41: - | G41: - | H41: nie | I41: 1 | J41: - | K41: 1
A42: Skarbimierz-Osiedle | B42: Klonowa | C42: 11C | D42: 3 | E42: - | F42: - | G42: - | H42: nie | I42: - | J42: 1 | K42: 1
A43: Skarbimierz-Osiedle | B43: Klonowa | C43: 11D | D43: 6 | E43: - | F43: - | G43: - | H43: nie | I43: 1 | J43: 1 | K43: 1
A44: Skarbimierz-Osiedle | B44: Klonowa | C44: 12A | D44: 6 | E44: - | F44: - | G44: - | H44: nie | I44: 1 | J44: 1 | K44: 1
A45: Skarbimierz-Osiedle | B45: Klonowa | C45: 12B | D45: 4 | E45: 1 | F45: - | G45: - | H45: nie | I45: 1 | J45: - | K45: 1
A46: Skarbimierz-Osiedle | B46: Klonowa | C46: 12C | D46: 3 | E46: - | F46: 1 | G46: - | H46: nie | I46: 1 | J46: - | K46: 1
A47: Skarbimierz-Osiedle | B47: Klonowa | C47: 12D | D47: 3 | E47: 1 | F47: - | G47: - | H47: nie | I47: 1 | J47: - | K47: 1
A48: Skarbimierz-Osiedle | B48: Klonowa | C48: 13A | D48: 2 | E48: - | F48: - | G48: 1 | H48: nie | I48: - | J48: - | K48: 1
A49: Skarbimierz-Osiedle | B49: Klonowa | C49: 13B | D49: 7 | E49: - | F49: - | G49: - | H49: nie | I49: 1 | J49: 1 | K49: 1
A50: Skarbimierz-Osiedle | B50: Klonowa | C50: 13C | D50: 2 | E50: - | F50: - | G50: 1 | H50: nie | I50: - | J50: - | K50: 1
A51: Skarbimierz-Osiedle | B51: Klonowa | C51: 13D | D51: 3 | E51: 1 | F51: - | G51: - | H51: tak | I51: 1 | J51: - | K51: 1
A52: Skarbimierz-Osiedle | B52: Klonowa | C52: 13F | D52: 3 | E52: - | F52: 1 | G52: - | H52: nie | I52: 1 | J52: - | K52: 1
A53: Skarbimierz-Osiedle | B53: Klonowa | C53: 19 | D53: 3 | E53: - | F53: - | G53: 1 | H53: nie | I53: - | J53: - | K53: 1
A54: Skarbimierz-Osiedle | B54: Klonowa | C54: 20 | D54: 3 | E54: - | F54: - | G54: 1 | H54: nie | I54: - | J54: - | K54: 1
A55: Skarbimierz-Osiedle | B55: Klonowa | C55: 21 | D55: 3 | E55: - | F55: - | G55: 1 | H55: tak | I55: - | J55: - | K55: 1
A56: Skarbimierz-Osiedle | B56: Klonowa | C56: 22 | D56: 2 | E56: - | F56: - | G56: 1 | H56: tak | I56: - | J56: - | K56: 1
A57: Skarbimierz-Osiedle | B57: Klonowa | C57: 23 | D57: 1 | E57: - | F57: - | G57: 1 | H57: nie | I57: - | J57: - | K57: 1
A58: Skarbimierz-Osiedle | B58: Klonowa | C58: 24 | D58: 4 | E58: - | F58: - | G58: 1 | H58: tak | I58: - | J58: - | K58: 1
A59: Skarbimierz-Osiedle | B59: Klonowa | C59: 26 | D59: 3 | E59: - | F59: - | G59: 1 | H59: nie | I59: - | J59: - | K59: 1
A60: Skarbimierz-Osiedle | B60: Klonowa | C60: brak numeru | D60: 2 | E60: - | F60: - | G60: 1 | H60: nie | I60: - | J60: - | K60: 1
C61: suma | D61: =SUM(D4:D60) -> 158 | E61: 7 | F61: 22 | G61: 14 | I61: 22 | J61: 10 | K61: =SUM(K4:K60) -> 57
A64: nieruchomości zamieszkałe: | C64: 57

Sheet Skarb.-Os.,ul. Li, Mo, Pa,Top.
A1: Miejscowość | B1: Ulica | C1: Nr posesji | D1: Liczba Mieszkańców | E1: Pojemniki zadeklarowane | H1: kompostownik | I1: Zapotrzebowanie na pojemniki | L1: Uwagi
I2: odpady zmiesznane | K2: szkło
E3: 110 l | F3: 120 l | G3: 240 l | I3: 120 l | J3: 240 l | K3: 120 l.
A4: Skarbimierz-Osiedle | B4: Lipowa | C4: 3A/1 | D4: 3 | E4: - | F4: - | G4: - | H4: nie | I4: - | J4: 1 | K4: 1
A5: Skarbimierz-Osiedle | B5: Lipowa | C5: 3A/2 | D5: 3 | E5: - | F5: - | G5: - | H5: nie | I5: - | J5: 1 | K5: 1 | N5: L I P O W A
A6: Skarbimierz-Osiedle | B6: Lipowa | C6: 3B/1 | D6: 2 | E6: - | F6: - | G6: - | H6: nie | I6: 1 | J6: - | K6: 1
A7: Skarbimierz-Osiedle | B7: Lipowa | C7: 3B/2 | D7: 3 | E7: - | F7: - | G7: - | H7: nie | I7: - | J7: 1 | K7: 1
A8: Skarbimierz-Osiedle | B8: Lipowa | C8: 5 | D8: 4 | E8: - | F8: - | G8: 1 | H8: nie | I8: - | J8: - | K8: 1
A9: Skarbimierz-Osiedle | B9: Lipowa | C9: 9 | D9: 4 | E9: - | F9: - | G9: - | H9: nie | I9: - | J9: 1 | K9: 1
A10: Skarbimierz-Osiedle | B10: Lipowa | C10: 10 | D10: 3 | E10: - | F10: - | G10: 1 | H10: nie | I10: - | J10: - | K10: 1
A11: Skarbimierz-Osiedle | B11: Lipowa | C11: 16 | D11: 4 | E11: - | F11: - | G11: 1 | H11: nie | I11: - | J11: - | K11: 1
A12: Skarbimierz-Osiedle | B12: Lipowa | C12: 22 | D12: 3 | E12: - | F12: - | G12: - | H12: nie | I12: - | J12: 1 | K12: 1
A13: Skarbimierz-Osiedle | B13: Lipowa | C13: 23 | D13: 4 | E13: - | F13: - | G13: 1 | H13: tak | I13: - | J13: - | K13: 1
A14: Skarbimierz-Osiedle | B14: Lipowa | C14: 25 | D14: 4 | E14: - | F14: - | G14: 1 | H14: nie | I14: - | J14: - | K14: 1
A15: Skarbimierz-Osiedle | B15: Lipowa | C15: 26 | D15: 4 | E15: - | F15: - | G15: - | H15: tak | I15: - | J15: 1 | K15: 1
C16: suma | E16: =SUM(E8:E15) -> 0 | F16: =SUM(F8:F15) -> 0 | G16: =SUM(G4:G15) -> 5 | I16: =SUM(I8:I15) -> 0 | J16: =SUM(J4:J15) -> 6 | K16: =SUM(K4:K15) -> 12
A20: Miejscowość | B20: Ulica | C20: Nr posesji | D20: Liczba Mieszkańców | E20: Pojemniki zadeklarowane | H20: kompostownik | I20: Zapotrzebowanie na pojemniki | L20: Uwagi | N20: M O D R Z E W I O W A
I21: odpady zmieszane | K21: szkło
E22: 110 l | F22: 120 l | G22: 240 l | I22: 120 l | J22: 240 l | K22: 120 l.
A23: Skarbimierz-Osiedle | B23: Modrzewiowa | C23: 1 | D23: 4 | E23: - | F23: 1 | G23: - | H23: tak | I23: 1 | J23: - | K23: 1
A24: Skarbimierz-Osiedle | B24: Modrzewiowa | C24: 3 | D24: 2 | E24: - | F24: - | G24: - | H24: nie | I24: 1 | J24: - | K24: 1
A25: Skarbimierz-Osiedle | B25: Modrzewiowa | C25: 5 | D25: 4 | E25: - | F25: - | G25: 1 | H25: nie | I25: - | J25: - | K25: 1
C26: suma | D26: =SUM(D23:D25) -> 10 | E26: 0 | F26: 1 | G26: 1 | I26: 2 | J26: 0 | K26: =SUM(K23:K25) -> 3
A30: Miejscowość | B30: Ulica | C30: Nr posesji | D30: Liczba Mieszkańców | E30: Pojemniki zadeklarowane | H30: kompostownik | I30: Zapotrzebowanie na pojemniki | L30: Uwagi
I31: odpady zmieszane | K31: szkło
E32: 110 l | F32: 120 l | G32: 240 l | I32: 120 l | J32: 240 l | K32: 120 l.
A33: Skarbimierz-Osiedle | B33: Parkowa | C33: 4 | D33: 2 | E33: - | F33: 1 | G33: - | H33: tak | I33: - | J33: - | K33: 1 | N33: P A R K O W A
A34: Skarbimierz-Osiedle | B34: Parkowa | C34: 8B/1 | D34: 2 | E34: - | F34: 1 | G34: - | H34: nie | I34: 1 | J34: - | K34: 1
A35: Skarbimierz-Osiedle | B35: Parkowa | C35: 8B/2 | D35: 6 | E35: - | F35: 1 | G35: - | H35: nie | I35: - | J35: 1 | K35: 1
A36: Skarbimierz-Osiedle | B36: Parkowa | C36: 8C/1 | D36: 2 | E36: - | F36: - | G36: - | H36: nie | I36: 1 | J36: - | K36: 1
A37: Skarbimierz-Osiedle | B37: Parkowa | C37: 8C/2 | D37: 3 | E37: - | F37: 1 | G37: - | H37: nie | I37: 1 | J37: - | K37: 1
A38: Skarbimierz-Osiedle | B38: Parkowa | C38: 8D/1 | D38: 4 | E38: - | F38: - | G38: - | H38: nie | I38: - | J38: 1 | K38: 1
A39: Skarbimierz-Osiedle | B39: Parkowa | C39: 8D/2 | D39: 4 | E39: - | F39: - | G39: - | H39: nie | I39: - | J39: 1 | K39: 1
A40: Skarbimierz-Osiedle | B40: Parkowa | C40: 8E/1 | D40: 1 | E40: - | F40: 1 | G40: - | H40: tak | I40: - | J40: - | K40: 1
A41: Skarbimierz-Osiedle | B41: Parkowa | C41: 8E/2 | D41: 3 | E41: - | F41: 1 | G41: - | H41: nie | I41: 1 | J41: - | K41: 1
C42: suma | D42: =SUM(D33:D41) -> 27 | E42: =SUM(E33:E41) -> 0 | F42: =SUM(F33:F41) -> 6 | G42: =SUM(G33:G41) -> 0 | I42: =SUM(I33:I41) -> 4 | J42: =SUM(J33:J41) -> 3 | K42: =SUM(K33:K41) -> 9
A47: Miejscowość | B47: Ulica | C47: Nr posesji | D47: Liczba Mieszkańców | E47: Pojemniki zadeklarowane | H47: kompostownik | I47: Zapotrzebowanie na pojemniki | L47: Uwagi | N47: T O P O L O W A
I48: odpady zmieszane | K48: szkło
E49: 110 l. | F49: 120 l. | G49: 240 l. | I49: 120 l. | J49: 240 l. | K49: 120 l.
A50: Skarbimierz-Osiedle | B50: Topolowa | C50: 1 | D50: 4 | E50: - | F50: - | G50: - | H50: nie | I50: - | J50: 1 | K50: 1
A51: Skarbimierz-Osiedle | B51: Topolowa | C51: 5 | D51: 3 | E51: - | F51: 2 | G51: - | H51: tak | I51: - | J51: - | K51: 1
A52: Skarbimierz-Osiedle | B52: Topolowa | C52: 9 | D52: 4 | E52: - | F52: - | G52: 1 | H52: nie | I52: - | J52: - | K52: 1
C53: suma | D53: =SUM(D50:D52) -> 11 | E53: =SUM(E50:E52) -> 0 | F53: =SUM(F50:F52) -> 2 | G53: =SUM(G50:G52) -> 1 | I53: =SUM(I50:I52) -> 0 | J53: =SUM(J50:J52) -> 1 | K53: =SUM(K50:K52) -> 3
A57: nieruchomości zamieszkałe: | C57: 27

Sheet Skarb-Os. ul. Pol., Mak.,Wie.
A1: Miejscowość | B1: Ulica | C1: Nr posesji | D1: Liczba Mieszkańców | E1: Pojemniki zadeklarowane | H1: kompostownik | I1: Zapotrzebowanie na pojemniki | L1: Uwagi
I2: odpady zmieszane | K2: szkło
E3: 110 l | F3: 120 l | G3: 240 l | I3: 120 l | J3: 240 l | K3: 120 l.
A4: Skarbimierz-Osiedle | B4: Polna | C4: 1 | D4: 3 | E4: - | F4: 1 | G4: - | H4: nie | I4: 1 | J4: - | K4: 1 | N4: P O L N A
A5: Skarbimierz-Osiedle | B5: Polna | C5: 2 | D5: 4 | E5: - | F5: 1 | G5: - | H5: nie | I5: 1 | J5: - | K5: 1
A6: Skarbimierz-Osiedle | B6: Polna | C6: 3 | D6: 3 | E6: - | F6: 1 | G6: - | H6: tak | I6: 1 | J6: - | K6: 1
A7: Skarbimierz-Osiedle | B7: Polna | C7: 4A | D7: 1 | E7: - | F7: 1 | G7: - | H7: tak | I7: - | J7: - | K7: 1
A8: Skarbimierz-Osiedle | B8: Polna | C8: 4A/1 | D8: 2 | E8: - | F8: - | G8: - | H8: nie | I8: 1 | J8: - | K8: 1
A9: Skarbimierz-Osiedle | B9: Polna | C9: 4A/2 | D9: 2 | E9: - | F9: - | G9: - | H9: tak | I9: 1 | J9: - | K9: 1
A10: Skarbimierz-Osiedle | B10: Polna | C10: 4B/1 | D10: 1 | E10: - | F10: - | G10: - | H10: nie | I10: 1 | J10: - | K10: 1
A11: Skarbimierz-Osiedle | B11: Polna | C11: 4B/2 | D11: 3 | E11: - | F11: 1 | G11: - | H11: tak | I11: 1 | J11: - | K11: 1
A12: Skarbimierz-Osiedle | B12: Polna | C12: 4C/1 | D12: 3 | E12: - | F12: - | G12: - | H12: tak | I12: - | J12: 1 | K12: 1
A13: Skarbimierz-Osiedle | B13: Polna | C13: 4C/2 | D13: 3 | E13: - | F13: - | G13: - | H13: nie | I13: - | J13: 1 | K13: 1
A14: Skarbimierz-Osiedle | B14: Polna | C14: 5A/1 | D14: 1 | E14: - | F14: - | G14: - | H14: nie | I14: 1 | J14: - | K14: 1
A15: Skarbimierz-Osiedle | B15: Polna | C15: 5A/2 | D15: 3 | E15: - | F15: - | G15: - | H15: nie | I15: - | J15: 1 | K15: 1
A16: Skarbimierz-Osiedle | B16: Polna | C16: 5B/2 | D16: 3 | E16: - | F16: - | G16: - | H16: nie | I16: - | J16: 1 | K16: 1
A17: Skarbimierz-Osiedle | B17: Polna | C17: 5C/1 | D17: 1 | E17: - | F17: - | G17: - | H17: nie | I17: 1 | J17: - | K17: 1
A18: Skarbimierz-Osiedle | B18: Polna | C18: 5C/2 | D18: 4 | E18: - | F18: - | G18: 1 | H18: nie | I18: - | J18: - | K18: 1
C19: suma | D19: =SUM(D4:D18) -> 37 | E19: =SUM(E4:E11) -> 0 | F19: =SUM(F4:F18) -> 5 | G19: =SUM(G4:G11) -> 0 | I19: =SUM(I4:I18) -> 9 | J19: =SUM(J4:J18) -> 4 | K19: =SUM(K4:K18) -> 15
A22: Miejscowość | B22: Ulica | C22: Nr posesji | D22: Liczba Mieszkańców | E22: Pojemniki zadeklarowane | H22: kompostownik | I22: Zapotrzebowanie na pojemniki | L22: Uwagi
I23: odpady zmieszane | K23: szkło | N23: M A K Ó W
E24: 110 l | F24: 120 l | G24: 240 l | I24: 120 l | J24: 240 l | K24: 120 l.
A25: Skarbimierz-Osiedle | B25: Maków | C25: 6B | D25: 2 | E25: - | F25: - | G25: 1 | H25: nie | I25: - | J25: - | K25: - | L25: brak selektywnej zbiórki
A26: Skarbimierz-Osiedle | B26: Maków | C26: 6D | D26: 2 | E26: - | F26: - | G26: - | H26: nie | I26: 1 | J26: - | K26: 1
A27: Skarbimierz-Osiedle | B27: Maków | C27: 10C | D27: 4 | E27: - | F27: - | G27: - | H27: nie | I27: - | J27: 1 | K27: 1
A28: Skarbimierz-Osiedle | B28: Maków | C28: 10D | D28: 5 | E28: - | F28: - | G28: - | H28: nie | I28: - | J28: 1 | K28: 1
C29: suma | D29: =SUM(D25:D28) -> 13 | E29: =SUM(E25:E28) -> 0 | F29: =SUM(F25:F28) -> 0 | G29: =SUM(G25:G28) -> 1 | I29: =SUM(I25:I28) -> 1 | J29: =SUM(J25:J28) -> 2 | K29: =SUM(K25:K28) -> 3
A34: Miejscowość | B34: Ulica | C34: Nr posesji | D34: Liczba Mieszkańców | E34: Pojemniki zadeklarowane | H34: kompostownik | I34: Zapotrzebowanie na pojemniki | L34: Uwagi | N34: W I E R Z B O W A
I35: odpady zmieszane | K35: szkło
E36: 110 l | F36: 120 l | G36: 240 l | I36: 120 l | J36: 240 l | K36: 120 l.
A37: Skarbimierz-Osiedle | B37: Wierzbowa | C37: 4 | D37: 4 | E37: - | F37: 1 | G37: - | H37: nie | I37: 1 | J37: - | K37: 1
A38: Skarbimierz-Osiedle | B38: Wierzbowa | C38: 6 | D38: 3 | E38: - | F38: - | G38: 1 | H38: tak | I38: - | J38: - | K38: 1
A39: Skarbimierz-Osiedle | B39: Wierzbowa | C39: 8 | D39: 4 | E39: - | F39: 1 | G39: 1 | H39: tak | I39: - | J39: - | K39: 1
A40: Skarbimierz-Osiedle | B40: Wierzbowa | C40: 12A | D40: 4 | E40: - | F40: - | G40: 1 | H40: tak | I40: - | J40: - | K40: 1
A41: Skarbimierz-Osiedle | B41: Wierzbowa | C41: 12B | D41: 4 | E41: - | F41: - | G41: - | H41: nie | I41: - | J41: 1 | K41: 1
C42: suma | D42: =SUM(D37:D41) -> 19 | E42: =SUM(E37:E41) -> 0 | F42: =SUM(F37:F41) -> 2 | G42: =SUM(G37:G41) -> 3 | I42: =SUM(I37:I41) -> 1 | J42: =SUM(J37:J41) -> 1 | K42: =SUM(K37:K41) -> 5
A46: nieruchomości zamieszkałe: | C46: 23

Sheet Skarb.-Os. wielorodzinne
A1: Miejscowość | B1: Ulica | C1: Nr posesji | D1: Liczba Mieszkańców | E1: Pojemniki zadeklarowane | H1: Zapotrzebowanie na pojemniki | K1: Uwagi
E2: 110 l | F2: 120 l | G2: 240 l | H2: 120 l | I2: 240 l | J2: 2200 l
A3: Skarbimierz-Osiedle | B3: Akacjowa | C3: 1A | D3: 164 | J3: 1 | K3: wg zameldowania
C4: 1B | K4: wg zameldowania
C5: 1C | K5: wg zameldowania
C6: 1D | K6: wg zameldowania
C7: 1E | K7: wg zameldowania
A8: Skarbimierz-Osiedle | B8: Akacjowa | C8: 2A | D8: 186 | J8: 1 | K8: wg zameldowania
C9: 2B | K9: wg zameldowania
C10: 2C | K10: wg zameldowania
C11: 2D | K11: wg zameldowania
C12: 2E | K12: wg zameldowania
A13: Skarbimierz-Osiedle | B13: Akacjowa | C13: 4A | D13: 157 | J13: 1 | K13: wg zameldowania
C14: 4B | K14: wg zameldowania
C15: 4C | K15: wg zameldowania
C16: 4D | K16: wg zameldowania
C17: 4E | K17: wg zameldowania
A18: Skarbimierz-Osiedle | B18: Akacjowa | C18: 5A | D18: 170 | J18: 1 | K18: wg zameldowania
C19: 5B | K19: wg zameldowania
C20: 5C | K20: wg zameldowania
C21: 5D | K21: wg zameldowania
C22: 5E | K22: wg zameldowania
A23: Skarbimierz-Osiedle | B23: Akacjowa | C23: 6A | D23: 164 | J23: 1 | K23: wg zameldowania
C24: 6B | K24: wg zameldowania
C25: 6C | K25: wg zameldowania
C26: 6D | K26: wg zameldowania
C27: 6E | K27: wg zameldowania
A28: Skarbimierz-Osiedle | B28: Akacjowa | C28: 7A | D28: 156 | J28: 1 | K28: wg zameldowania
C29: 7B | K29: wg zameldowania
C30: 7C | K30: wg zameldowania
C31: 7D | K31: wg zameldowania
C32: 7E | K32: wg zameldowania
A33: Skarbimierz-Osiedle | B33: Akacjowa | C33: 8A | D33: 165 | J33: 1 | K33: wg zameldowania
C34: 8B | K34: wg zameldowania
C35: 8C | K35: wg zameldowania
C36: 8D | K36: wg zameldowania
C37: 8E | K37: wg zameldowania
A38: Skarbimierz-Osiedle | B38: Akacjowa | C38: 10 ABC | D38: 30 | J38: 1 | K38: wg zameldowania
K39: wg zameldowania
K40: wg zameldowania
K41: wg zameldowania
A42: Skarbimierz-Osiedle | B42: Brzozowa | C42: 1A | D42: 142 | J42: 1 | K42: wg zameldowania
C43: 1B | K43: wg zameldowania
C44: 1C | K44: wg zameldowania
C45: 1D | K45: wg zameldowania
A46: Skarbimierz-Osiedle | B46: Brzozowa | C46: 2A | D46: 154 | J46: 1 | K46: wg zameldowania
C47: 2B | K47: wg zameldowania
C48: 2C | K48: wg zameldowania
C49: 2D | K49: wg zameldowania
A50: Skarbimierz-Osiedle | B50: Klonowa | C50: 14A | D50: 51 | J50: 1 | K50: wg zameldowania
C51: 14B | K51: wg zameldowania
C52: 14C | K52: wg zameldowania
A53: Skarbimierz-Osiedle | B53: Klonowa | C53: 15A | D53: 45 | J53: 1 | K53: wg zameldowania
C54: 15B | K54: wg zameldowania
C55: 15C | K55: wg zameldowania
A56: Skarbimierz-Osiedle | B56: Klonowa | C56: 17A | D56: 28 | J56: 1 | K56: wg zameldowania
C57: 17B | K57: wg zameldowania
C58: suma | D58: =SUM(D3:D57) -> 1612 | E58: 0 | F58: 0 | G58: 0 | H58: 0 | I58: 0 | J58: 13
A60: Uwaga: W uzasadnionych przypadkach (mniejsza wspólnota) Wykonawca może zastąpić sugerowany kontener zbiorczy na proporcjonalnie mniejszy

Sheet Zwanowice
A1: Miejscowość | B1: Nr posesji | C1: Liczba Mieszkańców | D1: Pojemniki zadeklarowane | G1: Kompostownik | H1: Zapotrzebowanie na pojemniki | K1: Uwagi
H2: odpady zmieszane | J2: szkło
D3: 110 l. | E3: 120 l. | F3: 240 l. | H3: 120 l. | I3: 240 l. | J3: 120 l.
A4: Zwanowice | B4: 1A | C4: 5 | D4: - | E4: 1 | F4: - | G4: nie | H4: 1 | I4: - | J4: 1
A5: Zwanowice | B5: 2 | C5: 1 | D5: - | E5: 1 | F5: - | G5: tak | H5: - | I5: - | J5: 1
A6: Zwanowice | B6: 3 | C6: 4 | D6: - | E6: 1 | F6: - | G6: tak | H6: 1 | I6: - | J6: 1
A7: Zwanowice | B7: 4 | C7: 5 | D7: 1 | E7: - | F7: - | G7: tak | H7: 1 | I7: - | J7: 1
A8: Zwanowice | B8: 5 | C8: 2 | D8: - | E8: - | F8: - | G8: tak | H8: 1 | I8: - | J8: 1
A9: Zwanowice | B9: 8 | C9: 3 | D9: - | E9: 1 | F9: - | G9: tak | H9: 1 | I9: - | J9: 1
A10: Zwanowice | B10: 9 | C10: 4 | D10: 1 | E10: - | F10: - | G10: tak | H10: 1 | I10: - | J10: 1
A11: Zwanowice | B11: 10 | C11: 3 | D11: - | E11: - | F11: - | G11: tak | H11: - | I11: 1 | J11: 1
A12: Zwanowice | B12: 11 | C12: 2 | D12: - | E12: - | F12: - | G12: nie | H12: 1 | I12: - | J12: 1
A13: Zwanowice | B13: 11 | C13: 2 | D13: - | E13: 1 | F13: - | G13: nie | H13: - | I13: - | J13: 1
A14: Zwanowice | B14: 13 | C14: 3 | D14: - | E14: 1 | F14: - | G14: tak | H14: 1 | I14: - | J14: 1
A15: Zwanowice | B15: 15 | C15: 8 | D15: 2 | E15: - | F15: - | G15: tak | H15: 1 | I15: - | J15: 1
A16: Zwanowice | B16: 16 | C16: 2 | D16: 1 | E16: - | F16: - | G16: nie | H16: - | I16: - | J16: 1
A17: Zwanowice | B17: 17 | C17: 1 | D17: - | E17: 1 | F17: - | G17: nie | H17: - | I17: - | J17: 1
A18: Zwanowice | B18: 18A | C18: 2 | D18: - | E18: - | F18: 1 | G18: tak | H18: - | I18: 1 | J18: 1
A19: Zwanowice | B19: 19 | C19: 10 | D19: - | E19: 1 | F19: 1 | G19: nie | H19: 1 | I19: - | J19: 1
A20: Zwanowice | B20: 21 | C20: 2 | D20: - | E20: 1 | F20: - | G20: nie | H20: - | I20: - | J20: 1
A21: Zwanowice | B21: 22 | C21: 10 | D21: - | E21: - | F21: - | G21: tak | H21: - | I21: 2 | J21: 1
A22: Zwanowice | B22: 23 | C22: 1 | D22: - | E22: - | F22: - | G22: nie | H22: 1 | I22: - | J22: 1
A23: Zwanowice | B23: 24 | C23: 2 | D23: 1 | E23: - | F23: - | G23: nie | H23: - | I23: - | J23: 1
A24: Zwanowice | B24: 25 | C24: 1 | D24: - | E24: 1 | F24: - | G24: tak | H24: - | I24: - | J24: 1
A25: Zwanowice | B25: 25A | C25: 4 | D25: - | E25: - | F25: - | G25: tak | H25: - | I25: 1 | J25: 1
A26: Zwanowice | B26: 26 | C26: 2 | D26: - | E26: 1 | F26: - | G26: nie | H26: - | I26: - | J26: 1
A27: Zwanowice | B27: 28 | C27: 4 | D27: - | E27: 1 | F27: - | G27: nie | H27: 1 | I27: - | J27: 1
A28: Zwanowice | B28: 29 | C28: 7 | D28: - | E28: - | F28: - | G28: nie | H28: 1 | I28: 1 | J28: 1
A29: Zwanowice | B29: 31 | C29: 3 | D29: - | E29: - | F29: - | G29: tak | H29: - | I29: 1 | J29: 1
A30: Zwanowice | B30: 32 | C30: 6 | D30: - | E30: 1 | F30: - | G30: tak | H30: 1 | I30: 1 | J30: 1
A31: Zwanowice | B31: 32A | C31: 2 | D31: - | E31: 1 | F31: - | G31: nie | H31: - | I31: - | J31: 1
A32: Zwanowice | B32: 33 | C32: 2 | D32: 1 | E32: - | F32: - | G32: nie | H32: - | I32: - | J32: 1
A33: Zwanowice | B33: 34 | C33: 1 | D33: - | E33: 1 | F33: - | G33: nie | H33: - | I33: - | J33: 1
A34: Zwanowice | B34: 35 | C34: 4 | D34: - | E34: 1 | F34: - | G34: tak | H34: 1 | I34: - | J34: 1
A35: Zwanowice | B35: 36 | C35: 2 | D35: - | E35: 1 | F35: - | G35: tak | H35: - | I35: - | J35: 1
A36: Zwanowice | B36: 37 | C36: 1 | D36: 1 | E36: - | F36: - | G36: tak | H36: - | I36: - | J36: 1
A37: Zwanowice | B37: 38 | C37: 2 | D37: - | E37: - | F37: - | G37: tak | H37: 1 | I37: - | J37: 1
A38: Zwanowice | B38: 38 | C38: 7 | D38: 1 | E38: - | F38: - | G38: nie | H38: - | I38: 1 | J38: 1
A39: Zwanowice | B39: 39 | C39: 4 | D39: - | E39: - | F39: - | G39: tak | H39: - | I39: 1 | J39: 1
A40: Zwanowice | B40: 40 | C40: 3 | D40: 1 | E40: - | F40: - | G40: tak | H40: 1 | I40: - | J40: 1
A41: Zwanowice | B41: 41 | C41: 7 | D41: - | E41: 1 | F41: 1 | G41: tak | H41: - | I41: - | J41: 1
A42: Zwanowice | B42: 43 | C42: 5 | D42: 1 | E42: - | F42: - | G42: tak | H42: 1 | I42: - | J42: 1
A43: Zwanowice | B43: 45 | C43: 7 | D43: 1 | E43: - | F43: - | G43: nie | H43: - | I43: 1 | J43: 1
A44: Zwanowice | B44: 46 | C44: 2 | D44: - | E44: - | F44: - | G44: tak | H44: 1 | I44: - | J44: 1
A45: Zwanowice | B45: 47 | C45: 6 | D45: - | E45: - | F45: - | G45: tak | H45: 1 | I45: 1 | J45: 1
A46: Zwanowice | B46: 48 | C46: 2 | D46: 1 | E46: - | F46: - | G46: nie | H46: - | I46: - | J46: 1
A47: Zwanowice | B47: 49 | C47: 3 | D47: - | E47: - | F47: 1 | G47: nie | H47: - | I47: - | J47: 1
A48: Zwanowice | B48: 50 | C48: 5 | D48: - | E48: - | F48: 1 | G48: nie | H48: - | I48: 1 | J48: 1
A49: Zwanowice | B49: 51A | C49: 4 | D49: - | E49: - | F49: - | G49: tak | H49: - | I49: 1 | J49: 1
A50: Zwanowice | B50: 52/3 | C50: 7 | D50: - | E50: - | F50: 1 | G50: nie | H50: 1 | I50: - | J50: 1
A51: Zwanowice | B51: 53 | C51: 6 | D51: - | E51: 1 | F51: - | G51: tak | H51: - | I51: 1 | J51: 1
A52: Zwanowice | B52: 54 | C52: 3 | D52: 1 | E52: - | F52: - | G52: nie | H52: 1 | I52: - | J52: 1
A53: Zwanowice | B53: 55 | C53: 7 | D53: - | E53: 1 | F53: - | G53: tak | H53: - | I53: 1 | J53: 1
A54: Zwanowice | B54: 56 | C54: 1 | D54: 1 | E54: - | F54: - | G54: nie | H54: - | I54: - | J54: 1
A55: Zwanowice | B55: 57 | C55: 2 | D55: - | E55: 1 | F55: - | G55: nie | H55: - | I55: - | J55: 1 | M55: UWAGA: Budynek wielorodzinny 58 A-G Wykonawca może wyposażyć w pojemnik zbiorczy, zamiast indywidualnych
A56: Zwanowice | B56: 58A | C56: 1 | D56: - | E56: - | F56: 1 | G56: nie | H56: - | I56: - | J56: - | K56: pojemnik zbiorczy
A57: Zwanowice | B57: 58B/1 | C57: 3 | D57: - | E57: - | F57: - | G57: nie | H57: - | I57: - | J57: - | K57: pojemnik zbiorczy
A58: Zwanowice | B58: 58B/3 | C58: 4 | D58: - | E58: - | F58: - | G58: nie | H58: - | I58: - | J58: - | K58: pojemnik zbiorczy
A59: Zwanowice | B59: 58C | C59: 4 | D59: - | E59: - | F59: - | G59: nie | H59: - | I59: - | J59: - | K59: pojemnik zbiorczy
A60: Zwanowice | B60: 58E/1 | C60: 4 | D60: - | E60: - | F60: - | G60: nie | H60: - | I60: - | J60: - | K60: pojemnik zbiorczy
A61: Zwanowice | B61: 58E/2 | C61: 3 | D61: - | E61: - | F61: - | G61: nie | H61: - | I61: - | J61: - | K61: pojemnik zbiorczy
A62: Zwanowice | B62: 58E/3 | C62: 3 | D62: - | E62: - | F62: - | G62: tak | H62: - | I62: - | J62: - | K62: pojemnik zbiorczy
A63: Zwanowice | B63: 58E/4 | C63: 1 | D63: - | E63: - | F63: - | G63: nie | H63: - | I63: - | J63: - | K63: pojemnik zbiorczy
A64: Zwanowice | B64: 58F/1 | C64: 2 | D64: - | E64: - | F64: - | G64: nie | H64: - | I64: - | J64: - | K64: pojemnik zbiorczy
A65: Zwanowice | B65: 58F/2 | C65: 3 | D65: - | E65: - | F65: - | G65: nie | H65: - | I65: - | J65: - | K65: pojemnik zbiorczy
A66: Zwanowice | B66: 58F/3 | C66: 2 | D66: - | E66: - | F66: - | G66: nie | H66: - | I66: - | J66: - | K66: pojemnik zbiorczy
A67: Zwanowice | B67: 58F/4 | C67: 2 | D67: - | E67: - | F67: - | G67: nie | H67: - | I67: - | J67: - | K67: pojemnik zbiorczy
A68: Zwanowice | B68: 58G/1 | C68: 3 | D68: - | E68: - | F68: - | G68: nie | H68: - | I68: - | J68: - | K68: pojemnik zbiorczy
A69: Zwanowice | B69: 58G/2 | C69: 2 | D69: - | E69: - | F69: - | G69: nie | H69: - | I69: - | J69: - | K69: pojemnik zbiorczy
A70: Zwanowice | B70: 58G/3 | C70: 1 | D70: - | E70: - | F70: - | G70: nie | H70: - | I70: - | J70: - | K70: pojemnik zbiorczy
A71: Zwanowice | B71: 58G/4 | C71: 2 | D71: - | E71: - | F71: - | G71: nie | H71: - | I71: - | J71: - | K71: pojemnik zbiorczy
A72: Zwanowice | B72: 59 | C72: 1 | D72: - | E72: - | F72: 1 | G72: nie | H72: - | I72: - | J72: 1
A73: Zwanowice | B73: 60 | C73: 8 | D73: - | E73: 2 | F73: - | G73: tak | H73: - | I73: 1 | J73: 1
A74: Zwanowice | B74: 60A | C74: 4 | D74: - | E74: 1 | F74: - | G74: nie | H74: 1 | I74: - | J74: 1
A75: Zwanowice | B75: 61 | C75: 4 | D75: - | E75: 1 | F75: - | G75: nie | H75: 1 | I75: - | J75: 1
A76: Zwanowice | B76: 62 | C76: 2 | D76: - | E76: - | F76: - | G76: tak | H76: 1 | I76: - | J76: 1
A77: Zwanowice | B77: 63 | C77: 1 | D77: - | E77: - | F77: - | G77: nie | H77: 1 | I77: - | J77: 1
A78: Zwanowice | B78: 64 | C78: 1 | D78: - | E78: - | F78: - | G78: nie | H78: 1 | I78: - | J78: 1
A79: Zwanowice | B79: 66 | C79: 4 | D79: - | E79: 1 | F79: 1 | G79: tak | H79: - | I79: - | J79: 1
A80: Zwanowice | B80: 67A/1 | C80: 2 | D80: 1 | E80: - | F80: - | G80: nie | H80: - | I80: - | J80: 1
A81: Zwanowice | B81: 67A/2 | C81: 2 | D81: - | E81: 1 | F81: - | G81: nie | H81: - | I81: - | J81: 1
A82: Zwanowice | B82: 67A/3 | C82: 1 | D82: - | E82: 1 | F82: - | G82: nie | H82: - | I82: - | J82: 1
A83: Zwanowice | B83: 67B/1 | C83: 5 | D83: - | E83: 1 | F83: 1 | G83: nie | H83: - | I83: - | J83: 1
A84: Zwanowice | B84: 67B/2 | C84: 3 | D84: 1 | E84: - | F84: - | G84: nie | H84: 1 | I84: - | J84: 1
A85: Zwanowice | B85: 67B/3 | C85: 1 | D85: - | E85: 1 | F85: - | G85: nie | H85: - | I85: - | J85: 1
A86: Zwanowice | B86: 67C/1 | C86: 1 | D86: 1 | E86: - | F86: - | G86: nie | H86: - | I86: - | J86: 1
A87: Zwanowice | B87: 67C/2 | C87: 1 | D87: - | E87: 1 | F87: - | G87: nie | H87: - | I87: - | J87: 1
A88: Zwanowice | B88: 67C/3 | C88: 3 | D88: - | E88: - | F88: - | G88: nie | H88: - | I88: 1 | J88: 1
A89: Zwanowice | B89: 67D/1 | C89: 5 | D89: - | E89: 1 | F89: - | G89: nie | H89: 1 | I89: - | J89: 1
A90: Zwanowice | B90: 67D/2 | C90: 3 | D90: 1 | E90: - | F90: - | G90: tak | H90: 1 | I90: - | J90: 1
A91: Zwanowice | B91: 67E/1 | C91: 1 | D91: - | E91: 1 | F91: - | G91: tak | H91: - | I91: - | J91: 1
A92: Zwanowice | B92: 67E/2 | C92: 4 | D92: 1 | E92: - | F92: - | G92: tak | H92: 1 | I92: - | J92: 1
A93: Zwanowice | B93: 67F/1 | C93: 1 | D93: - | E93: - | F93: - | G93: nie | H93: 1 | I93: - | J93: 1
A94: Zwanowice | B94: 68A/1 | C94: 3 | D94: 1 | E94: - | F94: - | G94: nie | H94: 1 | I94: - | J94: 1
A95: Zwanowice | B95: 68B/2 | C95: 6 | D95: - | E95: 3 | F95: - | G95: nie | H95: - | I95: - | J95: 1
A96: Zwanowice | B96: 68C/1 | C96: 2 | D96: - | E96: - | F96: - | G96: nie | H96: 1 | I96: - | J96: 1
A97: Zwanowice | B97: 68D/1 | C97: 6 | D97: 1 | E97: - | F97: - | G97: nie | H97: - | I97: 1 | J97: 1
A98: Zwanowice | B98: 68E/1 | C98: 4 | D98: - | E98: - | F98: - | G98: tak | H98: - | I98: 1 | J98: 1
A99: Zwanowice | B99: 68E/2 | C99: 4 | D99: - | E99: 1 | F99: - | G99: tak | H99: 1 | I99: - | J99: 1
A100: Zwanowice | B100: 69/2 | C100: 3 | D100: - | E100: 2 | F100: - | G100: tak | H100: - | I100: - | J100: 1
A101: Zwanowice | B101: 69a/1 | C101: 3 | D101: - | E101: - | F101: - | G101: nie | H101: - | I101: 1 | J101: 1
A102: Zwanowice | B102: 72 | C102: 3 | D102: - | E102: - | F102: - | G102: nie | H102: - | I102: 1 | J102: 1
A103: Zwanowice | B103: 73 | C103: 5 | D103: 1 | E103: - | F103: - | G103: tak | H103: 1 | I103: - | J103: 1
B104: suma | C104: =SUM(C4:C103) -> 331 | D104: =SUM(D4:D103) -> 23 | E104: =SUM(E4:E103) -> 39 | F104: =SUM(F4:F103) -> 10 | H104: =SUM(H4:H103) -> 36 | I104: =SUM(I4:I103) -> 22 | J104: =SUM(J4:J103) -> 84
A108: nieruchomości zamieszkałe: | C108: 100
